Department Family,Entity,Date,Expense Type,Expense Area,Supplier ,Supplier Type,Transaction Number,Amount,Description,Expenditure Type
Land Registry,Land Registry,01/05/2014,IS Service Delivery,Computer Equipment Maintenance,Experian Ltd,Large,1010029,32458,Computer Equipment Maintenance,Administration
Land Registry,Land Registry,01/05/2014,Birkenhead Office,Rates Payable,Wirral Metrpolitan Borough Council,Large,481517,3446,Rates Payable,Administration
Land Registry,Land Registry,01/05/2014,Birkenhead Office,Rates Payable,Wirral Metrpolitan Borough Council,Large,481517,24582,Rates Payable,Administration
Land Registry,Land Registry,02/05/2014,Professional Library,Online Law Updated,Thomson Reuters,Large,1010288,24508,Online Law Updated,Administration
Land Registry,Land Registry,06/05/2014,IS Service Delivery,Computer Equipment Maintenance,IBM United Kingdom Ltd,Large,1010469,2562697,Computer Equipment Maintenance,Administration
Land Registry,Land Registry,06/05/2014,Weymouth Office,Rates Payable,West Dorset District Council,Large,481591,18919,Rates Payable,Administration
Land Registry,Land Registry,07/05/2014,IS Service Delivery,Computer Equipment Maintenance,Specialist Computer Centres Plc - SCC,Large,1010779,111714.54,Computer Equipment Maintenance,Administration
Land Registry,Land Registry,07/05/2014,Central Facilities Management Team,Reprographic Copy Costs,Canon (UK) Ltd,Large,1010768,-97835.84,Reprographic Copy Costs,Administration
Land Registry,Land Registry,07/05/2014,Central Facilities Management Team,Reprographic Copy Costs,Canon (UK) Ltd,Large,1010768,-125068.02,Reprographic Copy Costs,Administration
Land Registry,Land Registry,08/05/2014,Dir: Operations,Property Maintenance,C Paddock Contracting Ltd,SME,1011101,29168.1,Property Maintenance,Administration
Land Registry,Land Registry,08/05/2014,Nottingham Office,Stationery National Contracts,Banner Business Services Ltd,Large,1011100,9.47,Stationery National Contracts,Administration
Land Registry,Land Registry,08/05/2014,Plymouth Office,Stationery National Contracts,Banner Business Services Ltd,Large,1011100,26.9,Stationery National Contracts,Administration
Land Registry,Land Registry,08/05/2014,Nottingham Office,Stationery National Contracts,Banner Business Services Ltd,Large,1011100,10.4,Stationery National Contracts,Administration
Land Registry,Land Registry,08/05/2014,Plymouth Office,Stationery National Contracts,Banner Business Services Ltd,Large,1011100,4.18,Stationery National Contracts,Administration
Land Registry,Land Registry,08/05/2014,Nottingham Office,Stationery National Contracts,Banner Business Services Ltd,Large,1011100,31.22,Stationery National Contracts,Administration
Land Registry,Land Registry,08/05/2014,Telford Office,Stationery National Contracts,Banner Business Services Ltd,Large,1011100,63.38,Stationery National Contracts,Administration
Land Registry,Land Registry,08/05/2014,Plymouth Office,Stationery National Contracts,Banner Business Services Ltd,Large,1011100,2.19,Stationery National Contracts,Administration
Land Registry,Land Registry,08/05/2014,Durham Office,Stationery National Contracts,Banner Business Services Ltd,Large,1011100,1.64,Stationery National Contracts,Administration
Land Registry,Land Registry,08/05/2014,Nottingham Office,Stationery National Contracts,Banner Business Services Ltd,Large,1011100,5.01,Stationery National Contracts,Administration
Land Registry,Land Registry,08/05/2014,Central Operations Group,Stationery National Contracts,Banner Business Services Ltd,Large,1011100,1.51,Stationery National Contracts,Administration
Land Registry,Land Registry,08/05/2014,Telford Office,Stationery National Contracts,Banner Business Services Ltd,Large,1011100,6.41,Stationery National Contracts,Administration
Land Registry,Land Registry,08/05/2014,Plymouth Office,Stationery National Contracts,Banner Business Services Ltd,Large,1011100,9.6,Stationery National Contracts,Administration
Land Registry,Land Registry,08/05/2014,Durham Office,Stationery National Contracts,Banner Business Services Ltd,Large,1011100,58.3,Stationery National Contracts,Administration
Land Registry,Land Registry,08/05/2014,Coventry Office,Stationery National Contracts,Banner Business Services Ltd,Large,1011100,93.66,Stationery National Contracts,Administration
Land Registry,Land Registry,08/05/2014,Nottingham Office,Stationery National Contracts,Banner Business Services Ltd,Large,1011100,45.6,Stationery National Contracts,Administration
Land Registry,Land Registry,08/05/2014,Central Operations Group,Stationery National Contracts,Banner Business Services Ltd,Large,1011100,0.69,Stationery National Contracts,Administration
Land Registry,Land Registry,08/05/2014,Telford Office,Stationery National Contracts,Banner Business Services Ltd,Large,1011100,1.05,Stationery National Contracts,Administration
Land Registry,Land Registry,08/05/2014,Gloucester Office,Stationery National Contracts,Banner Business Services Ltd,Large,1011100,0.32,Stationery National Contracts,Administration
Land Registry,Land Registry,08/05/2014,Durham Office,Stationery National Contracts,Banner Business Services Ltd,Large,1011100,78.24,Stationery National Contracts,Administration
Land Registry,Land Registry,08/05/2014,Coventry Office,Stationery National Contracts,Banner Business Services Ltd,Large,1011100,3.77,Stationery National Contracts,Administration
Land Registry,Land Registry,08/05/2014,Plymouth Office,Stationery National Contracts,Banner Business Services Ltd,Large,1011100,2.7,Stationery National Contracts,Administration
Land Registry,Land Registry,08/05/2014,Coventry Office,Stationery National Contracts,Banner Business Services Ltd,Large,1011100,2.66,Stationery National Contracts,Administration
Land Registry,Land Registry,08/05/2014,Birkenhead Office,Stationery National Contracts,Banner Business Services Ltd,Large,1011100,203.6,Stationery National Contracts,Administration
Land Registry,Land Registry,08/05/2014,Nottingham Office,Stationery National Contracts,Banner Business Services Ltd,Large,1011100,2.4,Stationery National Contracts,Administration
Land Registry,Land Registry,08/05/2014,Internal Solutions Group,Stationery National Contracts,Banner Business Services Ltd,Large,1011100,7.2,Stationery National Contracts,Administration
Land Registry,Land Registry,08/05/2014,Weymouth Office,Stationery National Contracts,Banner Business Services Ltd,Large,1011100,38.17,Stationery National Contracts,Administration
Land Registry,Land Registry,08/05/2014,Telford Office,Stationery National Contracts,Banner Business Services Ltd,Large,1011100,10.97,Stationery National Contracts,Administration
Land Registry,Land Registry,08/05/2014,Plymouth Office,Stationery National Contracts,Banner Business Services Ltd,Large,1011100,26.26,Stationery National Contracts,Administration
Land Registry,Land Registry,08/05/2014,Peterborough Office,Stationery National Contracts,Banner Business Services Ltd,Large,1011100,18.08,Stationery National Contracts,Administration
Land Registry,Land Registry,08/05/2014,Nottingham Office,Stationery National Contracts,Banner Business Services Ltd,Large,1011100,1.64,Stationery National Contracts,Administration
Land Registry,Land Registry,08/05/2014,Gloucester Office,Stationery National Contracts,Banner Business Services Ltd,Large,1011100,25.92,Stationery National Contracts,Administration
Land Registry,Land Registry,08/05/2014,Durham Office,Stationery National Contracts,Banner Business Services Ltd,Large,1011100,12.11,Stationery National Contracts,Administration
Land Registry,Land Registry,08/05/2014,Coventry Office,Stationery National Contracts,Banner Business Services Ltd,Large,1011100,3.77,Stationery National Contracts,Administration
Land Registry,Land Registry,08/05/2014,Birkenhead Office,Stationery National Contracts,Banner Business Services Ltd,Large,1011100,329.87,Stationery National Contracts,Administration
Land Registry,Land Registry,08/05/2014,Coventry Office,Stationery National Contracts,Banner Business Services Ltd,Large,1011100,0.32,Stationery National Contracts,Administration
Land Registry,Land Registry,08/05/2014,Nottingham Office,Stationery National Contracts,Banner Business Services Ltd,Large,1011100,20.18,Stationery National Contracts,Administration
Land Registry,Land Registry,08/05/2014,Internal Solutions Group,Stationery National Contracts,Banner Business Services Ltd,Large,1011100,20.22,Stationery National Contracts,Administration
Land Registry,Land Registry,08/05/2014,Central Operations Group,Stationery National Contracts,Banner Business Services Ltd,Large,1011100,3.46,Stationery National Contracts,Administration
Land Registry,Land Registry,08/05/2014,Weymouth Office,Stationery National Contracts,Banner Business Services Ltd,Large,1011100,162.14,Stationery National Contracts,Administration
Land Registry,Land Registry,08/05/2014,Wales Office,Stationery National Contracts,Banner Business Services Ltd,Large,1011100,45.62,Stationery National Contracts,Administration
Land Registry,Land Registry,08/05/2014,Telford Office,Stationery National Contracts,Banner Business Services Ltd,Large,1011100,3.71,Stationery National Contracts,Administration
Land Registry,Land Registry,08/05/2014,Plymouth Office,Stationery National Contracts,Banner Business Services Ltd,Large,1011100,74.67,Stationery National Contracts,Administration
Land Registry,Land Registry,08/05/2014,Peterborough Office,Stationery National Contracts,Banner Business Services Ltd,Large,1011100,132.5,Stationery National Contracts,Administration
Land Registry,Land Registry,08/05/2014,Nottingham Office,Stationery National Contracts,Banner Business Services Ltd,Large,1011100,4.11,Stationery National Contracts,Administration
Land Registry,Land Registry,08/05/2014,Fylde Office,Stationery National Contracts,Banner Business Services Ltd,Large,1011100,6,Stationery National Contracts,Administration
Land Registry,Land Registry,08/05/2014,Gloucester Office,Stationery National Contracts,Banner Business Services Ltd,Large,1011100,10.54,Stationery National Contracts,Administration
Land Registry,Land Registry,08/05/2014,Durham Office,Stationery National Contracts,Banner Business Services Ltd,Large,1011100,64.05,Stationery National Contracts,Administration
Land Registry,Land Registry,08/05/2014,Hull Office,Stationery National Contracts,Banner Business Services Ltd,Large,1011100,10.22,Stationery National Contracts,Administration
Land Registry,Land Registry,08/05/2014,Croydon Office,Stationery National Contracts,Banner Business Services Ltd,Large,1011100,13.82,Stationery National Contracts,Administration
Land Registry,Land Registry,08/05/2014,Coventry Office,Stationery National Contracts,Banner Business Services Ltd,Large,1011100,5.55,Stationery National Contracts,Administration
Land Registry,Land Registry,08/05/2014,Birkenhead Office,Stationery National Contracts,Banner Business Services Ltd,Large,1011100,170.82,Stationery National Contracts,Administration
Land Registry,Land Registry,08/05/2014,Nottingham Office,Stationery National Contracts,Banner Business Services Ltd,Large,1011100,0.77,Stationery National Contracts,Administration
Land Registry,Land Registry,08/05/2014,Marketing Services Team,Stationery National Contracts,Banner Business Services Ltd,Large,1011100,12.1,Stationery National Contracts,Administration
Land Registry,Land Registry,08/05/2014,Internal Solutions Group,Stationery National Contracts,Banner Business Services Ltd,Large,1011100,20.8,Stationery National Contracts,Administration
Land Registry,Land Registry,08/05/2014,Central Operations Group,Stationery National Contracts,Banner Business Services Ltd,Large,1011100,14.89,Stationery National Contracts,Administration
Land Registry,Land Registry,08/05/2014,Finance Group,Stationery National Contracts,Banner Business Services Ltd,Large,1011100,45.4,Stationery National Contracts,Administration
Land Registry,Land Registry,08/05/2014,Weymouth Office,Stationery National Contracts,Banner Business Services Ltd,Large,1011100,155.15,Stationery National Contracts,Administration
Land Registry,Land Registry,08/05/2014,Wales Office,Stationery National Contracts,Banner Business Services Ltd,Large,1011100,106.25,Stationery National Contracts,Administration
Land Registry,Land Registry,08/05/2014,Telford Office,Stationery National Contracts,Banner Business Services Ltd,Large,1011100,7.65,Stationery National Contracts,Administration
Land Registry,Land Registry,08/05/2014,Plymouth Office,Stationery National Contracts,Banner Business Services Ltd,Large,1011100,44.7,Stationery National Contracts,Administration
Land Registry,Land Registry,08/05/2014,Wales Office,Stationery National Contracts,Banner Business Services Ltd,Large,1011100,1.34,Stationery National Contracts,Administration
Land Registry,Land Registry,08/05/2014,Plymouth Office,Stationery National Contracts,Banner Business Services Ltd,Large,1011100,55.6,Stationery National Contracts,Administration
Land Registry,Land Registry,08/05/2014,Peterborough Office,Stationery National Contracts,Banner Business Services Ltd,Large,1011100,43.79,Stationery National Contracts,Administration
Land Registry,Land Registry,08/05/2014,Nottingham Office,Stationery National Contracts,Banner Business Services Ltd,Large,1011100,7.21,Stationery National Contracts,Administration
Land Registry,Land Registry,08/05/2014,Leicester Office,Stationery National Contracts,Banner Business Services Ltd,Large,1011100,0.13,Stationery National Contracts,Administration
Land Registry,Land Registry,08/05/2014,Fylde Office,Stationery National Contracts,Banner Business Services Ltd,Large,1011100,6,Stationery National Contracts,Administration
Land Registry,Land Registry,08/05/2014,Hull Office,Stationery National Contracts,Banner Business Services Ltd,Large,1011100,66.08,Stationery National Contracts,Administration
Land Registry,Land Registry,08/05/2014,Gloucester Office,Stationery National Contracts,Banner Business Services Ltd,Large,1011100,2.47,Stationery National Contracts,Administration
Land Registry,Land Registry,08/05/2014,Durham Office,Stationery National Contracts,Banner Business Services Ltd,Large,1011100,6.08,Stationery National Contracts,Administration
Land Registry,Land Registry,08/05/2014,Croydon Office,Stationery National Contracts,Banner Business Services Ltd,Large,1011100,3.18,Stationery National Contracts,Administration
Land Registry,Land Registry,08/05/2014,Coventry Office,Stationery National Contracts,Banner Business Services Ltd,Large,1011100,34.32,Stationery National Contracts,Administration
Land Registry,Land Registry,08/05/2014,Croydon Office,Stationery National Contracts,Banner Business Services Ltd,Large,1011100,12.03,Stationery National Contracts,Administration
Land Registry,Land Registry,08/05/2014,Birkenhead Office,Stationery National Contracts,Banner Business Services Ltd,Large,1011100,63.24,Stationery National Contracts,Administration
Land Registry,Land Registry,08/05/2014,Nottingham Office,Stationery National Contracts,Banner Business Services Ltd,Large,1011100,1.6,Stationery National Contracts,Administration
Land Registry,Land Registry,08/05/2014,Marketing Services Team,Stationery National Contracts,Banner Business Services Ltd,Large,1011100,2.57,Stationery National Contracts,Administration
Land Registry,Land Registry,08/05/2014,Internal Solutions Group,Stationery National Contracts,Banner Business Services Ltd,Large,1011100,9.56,Stationery National Contracts,Administration
Land Registry,Land Registry,08/05/2014,Central Operations Group,Stationery National Contracts,Banner Business Services Ltd,Large,1011100,3.12,Stationery National Contracts,Administration
Land Registry,Land Registry,08/05/2014,Projects and Programme Centre,Stationery National Contracts,Banner Business Services Ltd,Large,1011100,0.91,Stationery National Contracts,Administration
Land Registry,Land Registry,08/05/2014,Finance Group,Stationery National Contracts,Banner Business Services Ltd,Large,1011100,0.85,Stationery National Contracts,Administration
Land Registry,Land Registry,08/05/2014,IS Service Delivery,Stationery National Contracts,Banner Business Services Ltd,Large,1011100,98.91,Stationery National Contracts,Administration
Land Registry,Land Registry,08/05/2014,Land Charges,Stationery National Contracts,Banner Business Services Ltd,Large,1011100,77.49,Stationery National Contracts,Administration
Land Registry,Land Registry,08/05/2014,Weymouth Office,Stationery National Contracts,Banner Business Services Ltd,Large,1011100,48.04,Stationery National Contracts,Administration
Land Registry,Land Registry,08/05/2014,Wales Office,Stationery National Contracts,Banner Business Services Ltd,Large,1011100,12.57,Stationery National Contracts,Administration
Land Registry,Land Registry,08/05/2014,Telford Office,Stationery National Contracts,Banner Business Services Ltd,Large,1011100,6.96,Stationery National Contracts,Administration
Land Registry,Land Registry,08/05/2014,Wales Office,Stationery National Contracts,Banner Business Services Ltd,Large,1011100,54.24,Stationery National Contracts,Administration
Land Registry,Land Registry,08/05/2014,Telford Office,Stationery National Contracts,Banner Business Services Ltd,Large,1011100,3.57,Stationery National Contracts,Administration
Land Registry,Land Registry,08/05/2014,Plymouth Office,Stationery National Contracts,Banner Business Services Ltd,Large,1011100,143.78,Stationery National Contracts,Administration
Land Registry,Land Registry,08/05/2014,Peterborough Office,Stationery National Contracts,Banner Business Services Ltd,Large,1011100,113.15,Stationery National Contracts,Administration
Land Registry,Land Registry,08/05/2014,Nottingham Office,Stationery National Contracts,Banner Business Services Ltd,Large,1011100,45.82,Stationery National Contracts,Administration
Land Registry,Land Registry,08/05/2014,Leicester Office,Stationery National Contracts,Banner Business Services Ltd,Large,1011100,5.76,Stationery National Contracts,Administration
Land Registry,Land Registry,08/05/2014,Fylde Office,Stationery National Contracts,Banner Business Services Ltd,Large,1011100,99.44,Stationery National Contracts,Administration
Land Registry,Land Registry,08/05/2014,Hull Office,Stationery National Contracts,Banner Business Services Ltd,Large,1011100,158.29,Stationery National Contracts,Administration
Land Registry,Land Registry,08/05/2014,Gloucester Office,Stationery National Contracts,Banner Business Services Ltd,Large,1011100,96.97,Stationery National Contracts,Administration
Land Registry,Land Registry,08/05/2014,Durham Office,Stationery National Contracts,Banner Business Services Ltd,Large,1011100,42.24,Stationery National Contracts,Administration
Land Registry,Land Registry,08/05/2014,Croydon Office,Stationery National Contracts,Banner Business Services Ltd,Large,1011100,100.89,Stationery National Contracts,Administration
Land Registry,Land Registry,08/05/2014,Coventry Office,Stationery National Contracts,Banner Business Services Ltd,Large,1011100,33.48,Stationery National Contracts,Administration
Land Registry,Land Registry,08/05/2014,Birkenhead Office,Stationery National Contracts,Banner Business Services Ltd,Large,1011100,23.76,Stationery National Contracts,Administration
Land Registry,Land Registry,08/05/2014,Nottingham Office,Stationery National Contracts,Banner Business Services Ltd,Large,1011100,0.99,Stationery National Contracts,Administration
Land Registry,Land Registry,08/05/2014,Internal Solutions Group,Stationery National Contracts,Banner Business Services Ltd,Large,1011100,8.15,Stationery National Contracts,Administration
Land Registry,Land Registry,08/05/2014,Central Operations Group,Stationery National Contracts,Banner Business Services Ltd,Large,1011100,27.07,Stationery National Contracts,Administration
Land Registry,Land Registry,08/05/2014,Customer Services,Stationery National Contracts,Banner Business Services Ltd,Large,1011100,28.34,Stationery National Contracts,Administration
Land Registry,Land Registry,08/05/2014,Marketing Services Team,Stationery National Contracts,Banner Business Services Ltd,Large,1011100,0.91,Stationery National Contracts,Administration
Land Registry,Land Registry,08/05/2014,Projects and Programme Centre,Stationery National Contracts,Banner Business Services Ltd,Large,1011100,0.78,Stationery National Contracts,Administration
Land Registry,Land Registry,08/05/2014,Finance Group,Stationery National Contracts,Banner Business Services Ltd,Large,1011100,14.56,Stationery National Contracts,Administration
Land Registry,Land Registry,08/05/2014,International Unit,Stationery National Contracts,Banner Business Services Ltd,Large,1011100,0.32,Stationery National Contracts,Administration
Land Registry,Land Registry,08/05/2014,IS Service Delivery,Stationery National Contracts,Banner Business Services Ltd,Large,1011100,367.52,Stationery National Contracts,Administration
Land Registry,Land Registry,08/05/2014,Land Charges,Stationery National Contracts,Banner Business Services Ltd,Large,1011100,1.95,Stationery National Contracts,Administration
Land Registry,Land Registry,08/05/2014,Weymouth Office,Stationery National Contracts,Banner Business Services Ltd,Large,1011100,110.8,Stationery National Contracts,Administration
Land Registry,Land Registry,08/05/2014,Wales Office,Stationery National Contracts,Banner Business Services Ltd,Large,1011100,115.38,Stationery National Contracts,Administration
Land Registry,Land Registry,08/05/2014,Telford Office,Stationery National Contracts,Banner Business Services Ltd,Large,1011100,24.8,Stationery National Contracts,Administration
Land Registry,Land Registry,08/05/2014,Plymouth Office,Stationery National Contracts,Banner Business Services Ltd,Large,1011100,208.44,Stationery National Contracts,Administration
Land Registry,Land Registry,08/05/2014,Peterborough Office,Stationery National Contracts,Banner Business Services Ltd,Large,1011100,145.08,Stationery National Contracts,Administration
Land Registry,Land Registry,08/05/2014,Nottingham Office,Stationery National Contracts,Banner Business Services Ltd,Large,1011100,120.9,Stationery National Contracts,Administration
Land Registry,Land Registry,08/05/2014,Leicester Office,Stationery National Contracts,Banner Business Services Ltd,Large,1011100,31.7,Stationery National Contracts,Administration
Land Registry,Land Registry,08/05/2014,Fylde Office,Stationery National Contracts,Banner Business Services Ltd,Large,1011100,248.74,Stationery National Contracts,Administration
Land Registry,Land Registry,08/05/2014,Hull Office,Stationery National Contracts,Banner Business Services Ltd,Large,1011100,25.32,Stationery National Contracts,Administration
Land Registry,Land Registry,08/05/2014,Gloucester Office,Stationery National Contracts,Banner Business Services Ltd,Large,1011100,2.55,Stationery National Contracts,Administration
Land Registry,Land Registry,08/05/2014,Hull Office,Stationery National Contracts,Banner Business Services Ltd,Large,1011100,20.61,Stationery National Contracts,Administration
Land Registry,Land Registry,08/05/2014,Gloucester Office,Stationery National Contracts,Banner Business Services Ltd,Large,1011100,165.01,Stationery National Contracts,Administration
Land Registry,Land Registry,08/05/2014,Durham Office,Stationery National Contracts,Banner Business Services Ltd,Large,1011100,89.44,Stationery National Contracts,Administration
Land Registry,Land Registry,08/05/2014,Croydon Office,Stationery National Contracts,Banner Business Services Ltd,Large,1011100,2.2,Stationery National Contracts,Administration
Land Registry,Land Registry,08/05/2014,Coventry Office,Stationery National Contracts,Banner Business Services Ltd,Large,1011100,1.44,Stationery National Contracts,Administration
Land Registry,Land Registry,08/05/2014,Croydon Office,Stationery National Contracts,Banner Business Services Ltd,Large,1011100,45.2,Stationery National Contracts,Administration
Land Registry,Land Registry,08/05/2014,Coventry Office,Stationery National Contracts,Banner Business Services Ltd,Large,1011100,22.62,Stationery National Contracts,Administration
Land Registry,Land Registry,08/05/2014,Birkenhead Office,Stationery National Contracts,Banner Business Services Ltd,Large,1011100,46.62,Stationery National Contracts,Administration
Land Registry,Land Registry,08/05/2014,Nottingham Office,Stationery National Contracts,Banner Business Services Ltd,Large,1011100,0.58,Stationery National Contracts,Administration
Land Registry,Land Registry,08/05/2014,Marketing Services Team,Stationery National Contracts,Banner Business Services Ltd,Large,1011100,2.61,Stationery National Contracts,Administration
Land Registry,Land Registry,08/05/2014,Internal Solutions Group,Stationery National Contracts,Banner Business Services Ltd,Large,1011100,17.16,Stationery National Contracts,Administration
Land Registry,Land Registry,08/05/2014,Central Operations Group,Stationery National Contracts,Banner Business Services Ltd,Large,1011100,2.66,Stationery National Contracts,Administration
Land Registry,Land Registry,08/05/2014,Customer Services,Stationery National Contracts,Banner Business Services Ltd,Large,1011100,2.4,Stationery National Contracts,Administration
Land Registry,Land Registry,08/05/2014,Projects and Programme Centre,Stationery National Contracts,Banner Business Services Ltd,Large,1011100,1.34,Stationery National Contracts,Administration
Land Registry,Land Registry,08/05/2014,Finance Group,Stationery National Contracts,Banner Business Services Ltd,Large,1011100,21.44,Stationery National Contracts,Administration
Land Registry,Land Registry,08/05/2014,International Unit,Stationery National Contracts,Banner Business Services Ltd,Large,1011100,0.32,Stationery National Contracts,Administration
Land Registry,Land Registry,08/05/2014,IS Service Delivery,Stationery National Contracts,Banner Business Services Ltd,Large,1011100,434.12,Stationery National Contracts,Administration
Land Registry,Land Registry,08/05/2014,Land Charges,Stationery National Contracts,Banner Business Services Ltd,Large,1011100,16.63,Stationery National Contracts,Administration
Land Registry,Land Registry,08/05/2014,Weymouth Office,Stationery National Contracts,Banner Business Services Ltd,Large,1011100,462.91,Stationery National Contracts,Administration
Land Registry,Land Registry,08/05/2014,Wales Office,Stationery National Contracts,Banner Business Services Ltd,Large,1011100,109.37,Stationery National Contracts,Administration
Land Registry,Land Registry,08/05/2014,Weymouth Office,Stationery National Contracts,Banner Business Services Ltd,Large,1011100,37.94,Stationery National Contracts,Administration
Land Registry,Land Registry,08/05/2014,Wales Office,Stationery National Contracts,Banner Business Services Ltd,Large,1011100,2.16,Stationery National Contracts,Administration
Land Registry,Land Registry,08/05/2014,Telford Office,Stationery National Contracts,Banner Business Services Ltd,Large,1011100,63.24,Stationery National Contracts,Administration
Land Registry,Land Registry,08/05/2014,Plymouth Office,Stationery National Contracts,Banner Business Services Ltd,Large,1011100,121.07,Stationery National Contracts,Administration
Land Registry,Land Registry,08/05/2014,Peterborough Office,Stationery National Contracts,Banner Business Services Ltd,Large,1011100,227.73,Stationery National Contracts,Administration
Land Registry,Land Registry,08/05/2014,Nottingham Office,Stationery National Contracts,Banner Business Services Ltd,Large,1011100,38.87,Stationery National Contracts,Administration
Land Registry,Land Registry,08/05/2014,Leicester Office,Stationery National Contracts,Banner Business Services Ltd,Large,1011100,10.84,Stationery National Contracts,Administration
Land Registry,Land Registry,08/05/2014,Nottingham Office,Stationery National Contracts,Banner Business Services Ltd,Large,1011100,5.2,Stationery National Contracts,Administration
Land Registry,Land Registry,08/05/2014,Leicester Office,Stationery National Contracts,Banner Business Services Ltd,Large,1011100,32.04,Stationery National Contracts,Administration
Land Registry,Land Registry,08/05/2014,Fylde Office,Stationery National Contracts,Banner Business Services Ltd,Large,1011100,403.88,Stationery National Contracts,Administration
Land Registry,Land Registry,08/05/2014,Hull Office,Stationery National Contracts,Banner Business Services Ltd,Large,1011100,56.44,Stationery National Contracts,Administration
Land Registry,Land Registry,08/05/2014,Gloucester Office,Stationery National Contracts,Banner Business Services Ltd,Large,1011100,338.1,Stationery National Contracts,Administration
Land Registry,Land Registry,08/05/2014,Durham Office,Stationery National Contracts,Banner Business Services Ltd,Large,1011100,248.24,Stationery National Contracts,Administration
Land Registry,Land Registry,08/05/2014,Croydon Office,Stationery National Contracts,Banner Business Services Ltd,Large,1011100,183.36,Stationery National Contracts,Administration
Land Registry,Land Registry,08/05/2014,Coventry Office,Stationery National Contracts,Banner Business Services Ltd,Large,1011100,584.63,Stationery National Contracts,Administration
Land Registry,Land Registry,08/05/2014,Birkenhead Office,Stationery National Contracts,Banner Business Services Ltd,Large,1011100,109.68,Stationery National Contracts,Administration
Land Registry,Land Registry,08/05/2014,Marketing Services Team,Stationery National Contracts,Banner Business Services Ltd,Large,1011100,6.24,Stationery National Contracts,Administration
Land Registry,Land Registry,08/05/2014,Governance & Policy,Stationery National Contracts,Banner Business Services Ltd,Large,1011100,7.02,Stationery National Contracts,Administration
Land Registry,Land Registry,08/05/2014,Internal Solutions Group,Stationery National Contracts,Banner Business Services Ltd,Large,1011100,11.66,Stationery National Contracts,Administration
Land Registry,Land Registry,08/05/2014,Registration Legal Services Group,Stationery National Contracts,Banner Business Services Ltd,Large,1011100,25.79,Stationery National Contracts,Administration
Land Registry,Land Registry,08/05/2014,Central Operations Group,Stationery National Contracts,Banner Business Services Ltd,Large,1011100,15.82,Stationery National Contracts,Administration
Land Registry,Land Registry,08/05/2014,Customer Services,Stationery National Contracts,Banner Business Services Ltd,Large,1011100,0.73,Stationery National Contracts,Administration
Land Registry,Land Registry,08/05/2014,Projects and Programme Centre,Stationery National Contracts,Banner Business Services Ltd,Large,1011100,1.4,Stationery National Contracts,Administration
Land Registry,Land Registry,08/05/2014,Finance Group,Stationery National Contracts,Banner Business Services Ltd,Large,1011100,13.1,Stationery National Contracts,Administration
Land Registry,Land Registry,08/05/2014,International Unit,Stationery National Contracts,Banner Business Services Ltd,Large,1011100,10.6,Stationery National Contracts,Administration
Land Registry,Land Registry,08/05/2014,HR,Stationery National Contracts,Banner Business Services Ltd,Large,1011100,2.23,Stationery National Contracts,Administration
Land Registry,Land Registry,08/05/2014,IS Service Delivery,Stationery National Contracts,Banner Business Services Ltd,Large,1011100,1.16,Stationery National Contracts,Administration
Land Registry,Land Registry,08/05/2014,Land Charges,Stationery National Contracts,Banner Business Services Ltd,Large,1011100,21.68,Stationery National Contracts,Administration
Land Registry,Land Registry,08/05/2014,Weymouth Office,Stationery National Contracts,Banner Business Services Ltd,Large,1011100,18.08,Stationery National Contracts,Administration
Land Registry,Land Registry,08/05/2014,IS Service Delivery,Stationery National Contracts,Banner Business Services Ltd,Large,1011100,0.6,Stationery National Contracts,Administration
Land Registry,Land Registry,08/05/2014,Weymouth Office,Stationery National Contracts,Banner Business Services Ltd,Large,1011100,329.51,Stationery National Contracts,Administration
Land Registry,Land Registry,08/05/2014,Wales Office,Stationery National Contracts,Banner Business Services Ltd,Large,1011100,153.74,Stationery National Contracts,Administration
Land Registry,Land Registry,08/05/2014,Telford Office,Stationery National Contracts,Banner Business Services Ltd,Large,1011100,476.76,Stationery National Contracts,Administration
Land Registry,Land Registry,08/05/2014,Plymouth Office,Stationery National Contracts,Banner Business Services Ltd,Large,1011100,318.15,Stationery National Contracts,Administration
Land Registry,Land Registry,08/05/2014,Peterborough Office,Stationery National Contracts,Banner Business Services Ltd,Large,1011100,192.32,Stationery National Contracts,Administration
Land Registry,Land Registry,08/05/2014,Nottingham Office,Stationery National Contracts,Banner Business Services Ltd,Large,1011100,12.22,Stationery National Contracts,Administration
Land Registry,Land Registry,08/05/2014,Peterborough Office,Stationery National Contracts,Banner Business Services Ltd,Large,1011100,156.1,Stationery National Contracts,Administration
Land Registry,Land Registry,08/05/2014,Nottingham Office,Stationery National Contracts,Banner Business Services Ltd,Large,1011100,115.17,Stationery National Contracts,Administration
Land Registry,Land Registry,08/05/2014,Leicester Office,Stationery National Contracts,Banner Business Services Ltd,Large,1011100,202.54,Stationery National Contracts,Administration
Land Registry,Land Registry,08/05/2014,Fylde Office,Stationery National Contracts,Banner Business Services Ltd,Large,1011100,496.73,Stationery National Contracts,Administration
Land Registry,Land Registry,08/05/2014,Hull Office,Stationery National Contracts,Banner Business Services Ltd,Large,1011100,28.86,Stationery National Contracts,Administration
Land Registry,Land Registry,08/05/2014,Fylde Office,Stationery National Contracts,Banner Business Services Ltd,Large,1011100,1.74,Stationery National Contracts,Administration
Land Registry,Land Registry,08/05/2014,Hull Office,Stationery National Contracts,Banner Business Services Ltd,Large,1011100,12.1,Stationery National Contracts,Administration
Land Registry,Land Registry,08/05/2014,Gloucester Office,Stationery National Contracts,Banner Business Services Ltd,Large,1011100,296.17,Stationery National Contracts,Administration
Land Registry,Land Registry,08/05/2014,Durham Office,Stationery National Contracts,Banner Business Services Ltd,Large,1011100,578.21,Stationery National Contracts,Administration
Land Registry,Land Registry,08/05/2014,Croydon Office,Stationery National Contracts,Banner Business Services Ltd,Large,1011100,809.54,Stationery National Contracts,Administration
Land Registry,Land Registry,08/05/2014,Coventry Office,Stationery National Contracts,Banner Business Services Ltd,Large,1011100,539.91,Stationery National Contracts,Administration
Land Registry,Land Registry,08/05/2014,Birkenhead Office,Stationery National Contracts,Banner Business Services Ltd,Large,1011100,75.15,Stationery National Contracts,Administration
Land Registry,Land Registry,08/05/2014,Nottingham Office,Stationery National Contracts,Banner Business Services Ltd,Large,1011100,0.58,Stationery National Contracts,Administration
Land Registry,Land Registry,08/05/2014,Birkenhead Office,Stationery National Contracts,Banner Business Services Ltd,Large,1011100,23.32,Stationery National Contracts,Administration
Land Registry,Land Registry,08/05/2014,Marketing Services Team,Stationery National Contracts,Banner Business Services Ltd,Large,1011100,0.43,Stationery National Contracts,Administration
Land Registry,Land Registry,08/05/2014,Central Facilities Management Team,Stationery National Contracts,Banner Business Services Ltd,Large,1011100,7.02,Stationery National Contracts,Administration
Land Registry,Land Registry,08/05/2014,Governance & Policy,Stationery National Contracts,Banner Business Services Ltd,Large,1011100,7.02,Stationery National Contracts,Administration
Land Registry,Land Registry,08/05/2014,Internal Solutions Group,Stationery National Contracts,Banner Business Services Ltd,Large,1011100,11.66,Stationery National Contracts,Administration
Land Registry,Land Registry,08/05/2014,Registration Legal Services Group,Stationery National Contracts,Banner Business Services Ltd,Large,1011100,9.6,Stationery National Contracts,Administration
Land Registry,Land Registry,08/05/2014,Central Operations Group,Stationery National Contracts,Banner Business Services Ltd,Large,1011100,31.96,Stationery National Contracts,Administration
Land Registry,Land Registry,08/05/2014,Customer Services,Stationery National Contracts,Banner Business Services Ltd,Large,1011100,0.18,Stationery National Contracts,Administration
Land Registry,Land Registry,08/05/2014,Projects and Programme Centre,Stationery National Contracts,Banner Business Services Ltd,Large,1011100,9.49,Stationery National Contracts,Administration
Land Registry,Land Registry,08/05/2014,Corp Procurement,Stationery National Contracts,Banner Business Services Ltd,Large,1011100,1.3,Stationery National Contracts,Administration
Land Registry,Land Registry,08/05/2014,Finance Group,Stationery National Contracts,Banner Business Services Ltd,Large,1011100,34.82,Stationery National Contracts,Administration
Land Registry,Land Registry,08/05/2014,International Unit,Stationery National Contracts,Banner Business Services Ltd,Large,1011100,8.7,Stationery National Contracts,Administration
Land Registry,Land Registry,08/05/2014,HR,Stationery National Contracts,Banner Business Services Ltd,Large,1011100,35.42,Stationery National Contracts,Administration
Land Registry,Land Registry,08/05/2014,IS Service Delivery,Stationery National Contracts,Banner Business Services Ltd,Large,1011100,154.65,Stationery National Contracts,Administration
Land Registry,Land Registry,08/05/2014,Land Charges,Stationery National Contracts,Banner Business Services Ltd,Large,1011100,118.64,Stationery National Contracts,Administration
Land Registry,Land Registry,08/05/2014,Weymouth Office,Stationery National Contracts,Banner Business Services Ltd,Large,1011100,150.02,Stationery National Contracts,Administration
Land Registry,Land Registry,08/05/2014,Wales Office,Stationery National Contracts,Banner Business Services Ltd,Large,1011100,731.03,Stationery National Contracts,Administration
Land Registry,Land Registry,08/05/2014,Telford Office,Stationery National Contracts,Banner Business Services Ltd,Large,1011100,206.62,Stationery National Contracts,Administration
Land Registry,Land Registry,08/05/2014,Plymouth Office,Stationery National Contracts,Banner Business Services Ltd,Large,1011100,151.83,Stationery National Contracts,Administration
Land Registry,Land Registry,08/05/2014,Peterborough Office,Stationery National Contracts,Banner Business Services Ltd,Large,1011100,283.01,Stationery National Contracts,Administration
Land Registry,Land Registry,08/05/2014,Nottingham Office,Stationery National Contracts,Banner Business Services Ltd,Large,1011100,194,Stationery National Contracts,Administration
Land Registry,Land Registry,08/05/2014,Leicester Office,Stationery National Contracts,Banner Business Services Ltd,Large,1011100,309.39,Stationery National Contracts,Administration
Land Registry,Land Registry,08/05/2014,Fylde Office,Stationery National Contracts,Banner Business Services Ltd,Large,1011100,345.22,Stationery National Contracts,Administration
Land Registry,Land Registry,08/05/2014,Hull Office,Stationery National Contracts,Banner Business Services Ltd,Large,1011100,515.71,Stationery National Contracts,Administration
Land Registry,Land Registry,08/05/2014,Gloucester Office,Stationery National Contracts,Banner Business Services Ltd,Large,1011100,845.04,Stationery National Contracts,Administration
Land Registry,Land Registry,08/05/2014,Durham Office,Stationery National Contracts,Banner Business Services Ltd,Large,1011100,338.2,Stationery National Contracts,Administration
Land Registry,Land Registry,08/05/2014,Croydon Office,Stationery National Contracts,Banner Business Services Ltd,Large,1011100,4.96,Stationery National Contracts,Administration
Land Registry,Land Registry,08/05/2014,Durham Office,Stationery National Contracts,Banner Business Services Ltd,Large,1011100,11.28,Stationery National Contracts,Administration
Land Registry,Land Registry,08/05/2014,Croydon Office,Stationery National Contracts,Banner Business Services Ltd,Large,1011100,19.69,Stationery National Contracts,Administration
Land Registry,Land Registry,08/05/2014,Coventry Office,Stationery National Contracts,Banner Business Services Ltd,Large,1011100,704.5,Stationery National Contracts,Administration
Land Registry,Land Registry,08/05/2014,Birkenhead Office,Stationery National Contracts,Banner Business Services Ltd,Large,1011100,216.26,Stationery National Contracts,Administration
Land Registry,Land Registry,08/05/2014,Birkenhead Office,Stationery National Contracts,Banner Business Services Ltd,Large,1011100,1.18,Stationery National Contracts,Administration
Land Registry,Land Registry,08/05/2014,Nottingham Office,Stationery National Contracts,Banner Business Services Ltd,Large,1011100,1.18,Stationery National Contracts,Administration
Land Registry,Land Registry,08/05/2014,Marketing Services Team,Stationery National Contracts,Banner Business Services Ltd,Large,1011100,9.31,Stationery National Contracts,Administration
Land Registry,Land Registry,08/05/2014,Central Facilities Management Team,Stationery National Contracts,Banner Business Services Ltd,Large,1011100,7.02,Stationery National Contracts,Administration
Land Registry,Land Registry,08/05/2014,IS Service Delivery,Stationery National Contracts,Banner Business Services Ltd,Large,1011100,21.18,Stationery National Contracts,Administration
Land Registry,Land Registry,08/05/2014,Governance & Policy,Stationery National Contracts,Banner Business Services Ltd,Large,1011100,103.31,Stationery National Contracts,Administration
Land Registry,Land Registry,08/05/2014,Internal Solutions Group,Stationery National Contracts,Banner Business Services Ltd,Large,1011100,51.27,Stationery National Contracts,Administration
Land Registry,Land Registry,08/05/2014,Registration Legal Services Group,Stationery National Contracts,Banner Business Services Ltd,Large,1011100,30.61,Stationery National Contracts,Administration
Land Registry,Land Registry,08/05/2014,Central RFS,Stationery National Contracts,Banner Business Services Ltd,Large,1011100,146.3,Stationery National Contracts,Administration
Land Registry,Land Registry,08/05/2014,Central Operations Group,Stationery National Contracts,Banner Business Services Ltd,Large,1011100,1.82,Stationery National Contracts,Administration
Land Registry,Land Registry,08/05/2014,Customer Services,Stationery National Contracts,Banner Business Services Ltd,Large,1011100,0.73,Stationery National Contracts,Administration
Land Registry,Land Registry,08/05/2014,Projects and Programme Centre,Stationery National Contracts,Banner Business Services Ltd,Large,1011100,20.54,Stationery National Contracts,Administration
Land Registry,Land Registry,08/05/2014,Corp Procurement,Stationery National Contracts,Banner Business Services Ltd,Large,1011100,1.28,Stationery National Contracts,Administration
Land Registry,Land Registry,08/05/2014,Finance Group,Stationery National Contracts,Banner Business Services Ltd,Large,1011100,47.49,Stationery National Contracts,Administration
Land Registry,Land Registry,08/05/2014,International Unit,Stationery National Contracts,Banner Business Services Ltd,Large,1011100,11.4,Stationery National Contracts,Administration
Land Registry,Land Registry,08/05/2014,HR,Stationery National Contracts,Banner Business Services Ltd,Large,1011100,5.49,Stationery National Contracts,Administration
Land Registry,Land Registry,08/05/2014,Chief Executives Office,Stationery National Contracts,Banner Business Services Ltd,Large,1011100,13.29,Stationery National Contracts,Administration
Land Registry,Land Registry,08/05/2014,IS Service Delivery,Stationery National Contracts,Banner Business Services Ltd,Large,1011100,1085.73,Stationery National Contracts,Administration
Land Registry,Land Registry,08/05/2014,Land Charges,Stationery National Contracts,Banner Business Services Ltd,Large,1011100,172.88,Stationery National Contracts,Administration
Land Registry,Land Registry,08/05/2014,Weymouth Office,Stationery National Contracts,Banner Business Services Ltd,Large,1011100,26.26,Stationery National Contracts,Administration
Land Registry,Land Registry,08/05/2014,Wales Office,Stationery National Contracts,Banner Business Services Ltd,Large,1011100,58.52,Stationery National Contracts,Administration
Land Registry,Land Registry,08/05/2014,Weymouth Office,Stationery National Contracts,Banner Business Services Ltd,Large,1011100,8.51,Stationery National Contracts,Administration
Land Registry,Land Registry,08/05/2014,Wales Office,Stationery National Contracts,Banner Business Services Ltd,Large,1011100,1641.31,Stationery National Contracts,Administration
Land Registry,Land Registry,08/05/2014,Telford Office,Stationery National Contracts,Banner Business Services Ltd,Large,1011100,280.72,Stationery National Contracts,Administration
Land Registry,Land Registry,08/05/2014,Plymouth Office,Stationery National Contracts,Banner Business Services Ltd,Large,1011100,468.25,Stationery National Contracts,Administration
Land Registry,Land Registry,08/05/2014,Peterborough Office,Stationery National Contracts,Banner Business Services Ltd,Large,1011100,879.61,Stationery National Contracts,Administration
Land Registry,Land Registry,08/05/2014,Nottingham Office,Stationery National Contracts,Banner Business Services Ltd,Large,1011100,1212.43,Stationery National Contracts,Administration
Land Registry,Land Registry,08/05/2014,Leicester Office,Stationery National Contracts,Banner Business Services Ltd,Large,1011100,669.45,Stationery National Contracts,Administration
Land Registry,Land Registry,08/05/2014,Fylde Office,Stationery National Contracts,Banner Business Services Ltd,Large,1011100,507.37,Stationery National Contracts,Administration
Land Registry,Land Registry,08/05/2014,Hull Office,Stationery National Contracts,Banner Business Services Ltd,Large,1011100,547.26,Stationery National Contracts,Administration
Land Registry,Land Registry,08/05/2014,Gloucester Office,Stationery National Contracts,Banner Business Services Ltd,Large,1011100,135.83,Stationery National Contracts,Administration
Land Registry,Land Registry,08/05/2014,Hull Office,Stationery National Contracts,Banner Business Services Ltd,Large,1011100,32.13,Stationery National Contracts,Administration
Land Registry,Land Registry,08/05/2014,Gloucester Office,Stationery National Contracts,Banner Business Services Ltd,Large,1011100,493.61,Stationery National Contracts,Administration
Land Registry,Land Registry,08/05/2014,Durham Office,Stationery National Contracts,Banner Business Services Ltd,Large,1011100,957.77,Stationery National Contracts,Administration
Land Registry,Land Registry,08/05/2014,Croydon Office,Stationery National Contracts,Banner Business Services Ltd,Large,1011100,611.7,Stationery National Contracts,Administration
Land Registry,Land Registry,08/05/2014,Coventry Office,Stationery National Contracts,Banner Business Services Ltd,Large,1011100,2384.88,Stationery National Contracts,Administration
Land Registry,Land Registry,08/05/2014,Birkenhead Office,Stationery National Contracts,Banner Business Services Ltd,Large,1011100,74.51,Stationery National Contracts,Administration
Land Registry,Land Registry,08/05/2014,Central Facilities Management Team,Waste Disposal,Banner Business Services Ltd,Large,1011100,240,Waste Disposal,Administration
Land Registry,Land Registry,08/05/2014,Central Facilities Management Team,Waste Disposal,Banner Business Services Ltd,Large,1011100,32.5,Waste Disposal,Administration
Land Registry,Land Registry,08/05/2014,Central Facilities Management Team,Waste Disposal,Banner Business Services Ltd,Large,1011100,1894.5,Waste Disposal,Administration
Land Registry,Land Registry,08/05/2014,Central Facilities Management Team,Waste Disposal,Banner Business Services Ltd,Large,1011100,7758.9,Waste Disposal,Administration
Land Registry,Land Registry,08/05/2014,Central Facilities Management Team,Waste Disposal,Banner Business Services Ltd,Large,1011100,360,Waste Disposal,Administration
Land Registry,Land Registry,08/05/2014,Central Facilities Management Team,Waste Disposal,Banner Business Services Ltd,Large,1011100,2045.5,Waste Disposal,Administration
Land Registry,Land Registry,09/05/2014,Forward Scanning,Maps & Plans Data Migration,TNT (UK) Ltd,Large,1011356,164057.05,Maps & Plans Data Migration,Administration
Land Registry,Land Registry,12/05/2014,Survey & Mapping Services,Ordnance Survey Surveys,Ordnance Survey,Large,1011604,751329,Ordnance Survey Surveys,Administration
Land Registry,Land Registry,12/05/2014,Hull Office,Rates Payable,Kingston Upon Hull City Council,Large,481827,13737,Rates Payable,Administration
Land Registry,Land Registry,13/05/2014,Finance Director,Employment Agency Staff Costs,Penna Plc,Large,1011858,25520,Employment Agency Staff Costs,Administration
Land Registry,Land Registry,15/05/2014,Hull Office,FF&F:Maintenance,Carillion Services Ltd,Large,1012245,183.16,FF&F:Maintenance,Administration
Land Registry,Land Registry,15/05/2014,Fylde Office,FF&F:Maintenance,Carillion Services Ltd,Large,1012245,183.16,FF&F:Maintenance,Administration
Land Registry,Land Registry,15/05/2014,Durham Office,FF&F:Maintenance,Carillion Services Ltd,Large,1012245,183.16,FF&F:Maintenance,Administration
Land Registry,Land Registry,15/05/2014,Birkenhead Office,FF&F:Maintenance,Carillion Services Ltd,Large,1012245,183.16,FF&F:Maintenance,Administration
Land Registry,Land Registry,15/05/2014,Telford Office,FF&F:Maintenance,Carillion Services Ltd,Large,1012245,183.16,FF&F:Maintenance,Administration
Land Registry,Land Registry,15/05/2014,Leicester Office,FF&F:Maintenance,Carillion Services Ltd,Large,1012245,91.58,FF&F:Maintenance,Administration
Land Registry,Land Registry,15/05/2014,Leicester Office,FF&F:Maintenance,Carillion Services Ltd,Large,1012245,183.16,FF&F:Maintenance,Administration
Land Registry,Land Registry,15/05/2014,Gloucester Computer Centre,FF&F:Maintenance,Carillion Services Ltd,Large,1012245,183.16,FF&F:Maintenance,Administration
Land Registry,Land Registry,15/05/2014,Gloucester Office,FF&F:Maintenance,Carillion Services Ltd,Large,1012245,183.16,FF&F:Maintenance,Administration
Land Registry,Land Registry,15/05/2014,Coventry Office,FF&F:Maintenance,Carillion Services Ltd,Large,1012245,183.16,FF&F:Maintenance,Administration
Land Registry,Land Registry,15/05/2014,Wales Office,FF&F:Maintenance,Carillion Services Ltd,Large,1012245,183.16,FF&F:Maintenance,Administration
Land Registry,Land Registry,15/05/2014,Wales Office,FF&F:Maintenance,Carillion Services Ltd,Large,1012245,183.16,FF&F:Maintenance,Administration
Land Registry,Land Registry,15/05/2014,Croydon Office,FF&F:Maintenance,Carillion Services Ltd,Large,1012245,183.16,FF&F:Maintenance,Administration
Land Registry,Land Registry,15/05/2014,Weymouth Office,FF&F:Maintenance,Carillion Services Ltd,Large,1012245,183.16,FF&F:Maintenance,Administration
Land Registry,Land Registry,15/05/2014,Governance & Policy,FF&F:Maintenance,Carillion Services Ltd,Large,1012245,183.16,FF&F:Maintenance,Administration
Land Registry,Land Registry,15/05/2014,Governance & Policy,FF&F:Maintenance,Carillion Services Ltd,Large,1012245,183.16,FF&F:Maintenance,Administration
Land Registry,Land Registry,15/05/2014,Governance & Policy,FF&F:Maintenance,Carillion Services Ltd,Large,1012245,183.16,FF&F:Maintenance,Administration
Land Registry,Land Registry,15/05/2014,Peterborough Office,FM Ext Helpdesk,Carillion Services Ltd,Large,1012245,505.94,Facilities External Helpdesk,Administration
Land Registry,Land Registry,15/05/2014,Nottingham Office,FM Ext Helpdesk,Carillion Services Ltd,Large,1012245,1531.8,Facilities External Helpdesk,Administration
Land Registry,Land Registry,15/05/2014,RFS4 - Coventry,FM Ext Helpdesk,Carillion Services Ltd,Large,1012245,7.13,Facilities External Helpdesk,Administration
Land Registry,Land Registry,15/05/2014,Hull Office,FM Ext Helpdesk,Carillion Services Ltd,Large,1012245,387.41,Facilities External Helpdesk,Administration
Land Registry,Land Registry,15/05/2014,Fylde Office,FM Ext Helpdesk,Carillion Services Ltd,Large,1012245,344.73,Facilities External Helpdesk,Administration
Land Registry,Land Registry,15/05/2014,Durham Office,FM Ext Helpdesk,Carillion Services Ltd,Large,1012245,495.7,Facilities External Helpdesk,Administration
Land Registry,Land Registry,15/05/2014,Birkenhead Office,FM Ext Helpdesk,Carillion Services Ltd,Large,1012245,394.97,Facilities External Helpdesk,Administration
Land Registry,Land Registry,15/05/2014,Telford Office,FM Ext Helpdesk,Carillion Services Ltd,Large,1012245,523.54,Facilities External Helpdesk,Administration
Land Registry,Land Registry,15/05/2014,Leicester Office,FM Ext Helpdesk,Carillion Services Ltd,Large,1012245,21.03,Facilities External Helpdesk,Administration
Land Registry,Land Registry,15/05/2014,Leicester Office,FM Ext Helpdesk,Carillion Services Ltd,Large,1012245,412.61,Facilities External Helpdesk,Administration
Land Registry,Land Registry,15/05/2014,Gloucester Computer Centre,FM Ext Helpdesk,Carillion Services Ltd,Large,1012245,460.58,Facilities External Helpdesk,Administration
Land Registry,Land Registry,15/05/2014,Gloucester Office,FM Ext Helpdesk,Carillion Services Ltd,Large,1012245,496.48,Facilities External Helpdesk,Administration
Land Registry,Land Registry,15/05/2014,Coventry Office,FM Ext Helpdesk,Carillion Services Ltd,Large,1012245,801.42,Facilities External Helpdesk,Administration
Land Registry,Land Registry,15/05/2014,Wales Office,FM Ext Helpdesk,Carillion Services Ltd,Large,1012245,29.18,Facilities External Helpdesk,Administration
Land Registry,Land Registry,15/05/2014,Wales Office,FM Ext Helpdesk,Carillion Services Ltd,Large,1012245,346.17,Facilities External Helpdesk,Administration
Land Registry,Land Registry,15/05/2014,Croydon Office,FM Ext Helpdesk,Carillion Services Ltd,Large,1012245,475.42,Facilities External Helpdesk,Administration
Land Registry,Land Registry,15/05/2014,Weymouth Office,FM Ext Helpdesk,Carillion Services Ltd,Large,1012245,305.13,Facilities External Helpdesk,Administration
Land Registry,Land Registry,15/05/2014,Governance & Policy,FM Ext Helpdesk,Carillion Services Ltd,Large,1012245,394.72,Facilities External Helpdesk,Administration
Land Registry,Land Registry,15/05/2014,Governance & Policy,FM Ext Helpdesk,Carillion Services Ltd,Large,1012245,390.01,Facilities External Helpdesk,Administration
Land Registry,Land Registry,15/05/2014,Governance & Policy,FM Ext Helpdesk,Carillion Services Ltd,Large,1012245,593,Facilities External Helpdesk,Administration
Land Registry,Land Registry,15/05/2014,Peterborough Office,FM Managed Services,Carillion Services Ltd,Large,1012245,4425.82,Facilities Managed Services,Administration
Land Registry,Land Registry,15/05/2014,Nottingham Office,FM Managed Services,Carillion Services Ltd,Large,1012245,13686.86,Facilities Managed Services,Administration
Land Registry,Land Registry,15/05/2014,RFS4 - Coventry,FM Managed Services,Carillion Services Ltd,Large,1012245,13.67,Facilities Managed Services,Administration
Land Registry,Land Registry,15/05/2014,Hull Office,FM Managed Services,Carillion Services Ltd,Large,1012245,4228.24,Facilities Managed Services,Administration
Land Registry,Land Registry,15/05/2014,Fylde Office,FM Managed Services,Carillion Services Ltd,Large,1012245,6951.41,Facilities Managed Services,Administration
Land Registry,Land Registry,15/05/2014,Durham Office,FM Managed Services,Carillion Services Ltd,Large,1012245,7704.76,Facilities Managed Services,Administration
Land Registry,Land Registry,15/05/2014,Birkenhead Office,FM Managed Services,Carillion Services Ltd,Large,1012245,4828.99,Facilities Managed Services,Administration
Land Registry,Land Registry,15/05/2014,Telford Office,FM Managed Services,Carillion Services Ltd,Large,1012245,4046.23,Facilities Managed Services,Administration
Land Registry,Land Registry,15/05/2014,Leicester Office,FM Managed Services,Carillion Services Ltd,Large,1012245,70.34,Facilities Managed Services,Administration
Land Registry,Land Registry,15/05/2014,Leicester Office,FM Managed Services,Carillion Services Ltd,Large,1012245,3675.19,Facilities Managed Services,Administration
Land Registry,Land Registry,15/05/2014,Gloucester Computer Centre,FM Managed Services,Carillion Services Ltd,Large,1012245,1867.62,Facilities Managed Services,Administration
Land Registry,Land Registry,15/05/2014,Gloucester Office,FM Managed Services,Carillion Services Ltd,Large,1012245,4198.77,Facilities Managed Services,Administration
Land Registry,Land Registry,15/05/2014,Coventry Office,FM Managed Services,Carillion Services Ltd,Large,1012245,7911.83,Facilities Managed Services,Administration
Land Registry,Land Registry,15/05/2014,Wales Office,FM Managed Services,Carillion Services Ltd,Large,1012245,412.48,Facilities Managed Services,Administration
Land Registry,Land Registry,15/05/2014,Wales Office,FM Managed Services,Carillion Services Ltd,Large,1012245,7188.41,Facilities Managed Services,Administration
Land Registry,Land Registry,15/05/2014,Croydon Office,FM Managed Services,Carillion Services Ltd,Large,1012245,8118.66,Facilities Managed Services,Administration
Land Registry,Land Registry,15/05/2014,Weymouth Office,FM Managed Services,Carillion Services Ltd,Large,1012245,3965.73,Facilities Managed Services,Administration
Land Registry,Land Registry,15/05/2014,Governance & Policy,FM Managed Services,Carillion Services Ltd,Large,1012245,2237.88,Facilities Managed Services,Administration
Land Registry,Land Registry,15/05/2014,Governance & Policy,FM Managed Services,Carillion Services Ltd,Large,1012245,2211.17,Facilities Managed Services,Administration
Land Registry,Land Registry,15/05/2014,Governance & Policy,FM Managed Services,Carillion Services Ltd,Large,1012245,7387.71,Facilities Managed Services,Administration
Land Registry,Land Registry,15/05/2014,Nottingham Office,Grounds Maintenance,Carillion Services Ltd,Large,1012245,94.97,Grounds Maintenance,Administration
Land Registry,Land Registry,15/05/2014,Hull Office,Grounds Maintenance,Carillion Services Ltd,Large,1012245,667.98,Grounds Maintenance,Administration
Land Registry,Land Registry,15/05/2014,Fylde Office,Grounds Maintenance,Carillion Services Ltd,Large,1012245,1380.88,Grounds Maintenance,Administration
Land Registry,Land Registry,15/05/2014,Durham Office,Grounds Maintenance,Carillion Services Ltd,Large,1012245,956.75,Grounds Maintenance,Administration
Land Registry,Land Registry,15/05/2014,Birkenhead Office,Grounds Maintenance,Carillion Services Ltd,Large,1012245,387.21,Grounds Maintenance,Administration
Land Registry,Land Registry,15/05/2014,Telford Office,Grounds Maintenance,Carillion Services Ltd,Large,1012245,1247.04,Grounds Maintenance,Administration
Land Registry,Land Registry,15/05/2014,Leicester Office,Grounds Maintenance,Carillion Services Ltd,Large,1012245,79.86,Grounds Maintenance,Administration
Land Registry,Land Registry,15/05/2014,Leicester Office,Grounds Maintenance,Carillion Services Ltd,Large,1012245,157.79,Grounds Maintenance,Administration
Land Registry,Land Registry,15/05/2014,Gloucester Computer Centre,Grounds Maintenance,Carillion Services Ltd,Large,1012245,157.79,Grounds Maintenance,Administration
Land Registry,Land Registry,15/05/2014,Gloucester Office,Grounds Maintenance,Carillion Services Ltd,Large,1012245,674.85,Grounds Maintenance,Administration
Land Registry,Land Registry,15/05/2014,Coventry Office,Grounds Maintenance,Carillion Services Ltd,Large,1012245,791.26,Grounds Maintenance,Administration
Land Registry,Land Registry,15/05/2014,Wales Office,Grounds Maintenance,Carillion Services Ltd,Large,1012245,9.16,Grounds Maintenance,Administration
Land Registry,Land Registry,15/05/2014,Wales Office,Grounds Maintenance,Carillion Services Ltd,Large,1012245,523.75,Grounds Maintenance,Administration
Land Registry,Land Registry,15/05/2014,Croydon Office,Grounds Maintenance,Carillion Services Ltd,Large,1012245,81.23,Grounds Maintenance,Administration
Land Registry,Land Registry,15/05/2014,Weymouth Office,Grounds Maintenance,Carillion Services Ltd,Large,1012245,642.25,Grounds Maintenance,Administration
Land Registry,Land Registry,15/05/2014,Governance & Policy,Grounds Maintenance,Carillion Services Ltd,Large,1012245,151.84,Grounds Maintenance,Administration
Land Registry,Land Registry,15/05/2014,Governance & Policy,Grounds Maintenance,Carillion Services Ltd,Large,1012245,151.84,Grounds Maintenance,Administration
Land Registry,Land Registry,15/05/2014,Governance & Policy,Grounds Maintenance,Carillion Services Ltd,Large,1012245,1636.95,Grounds Maintenance,Administration
Land Registry,Land Registry,15/05/2014,Weymouth Office,Letter Post,Royal Mail,Large,1012263,9.3,Letter Post,Administration
Land Registry,Land Registry,15/05/2014,Durham Office,Letter Post,Royal Mail,Large,1012263,9.25,Letter Post,Administration
Land Registry,Land Registry,15/05/2014,Birkenhead Office,Letter Post,Royal Mail,Large,1012263,6.47,Letter Post,Administration
Land Registry,Land Registry,15/05/2014,Croydon Office,Letter Post,Royal Mail,Large,1012263,67.62,Letter Post,Administration
Land Registry,Land Registry,15/05/2014,Fylde Office,Letter Post,Royal Mail,Large,1012263,4730.23,Letter Post,Administration
Land Registry,Land Registry,15/05/2014,Birkenhead Office,Letter Post,Royal Mail,Large,1012263,2896.4,Letter Post,Administration
Land Registry,Land Registry,15/05/2014,Nottingham Office,Letter Post,Royal Mail,Large,1012263,3345.82,Letter Post,Administration
Land Registry,Land Registry,15/05/2014,Durham Office,Letter Post,Royal Mail,Large,1012263,6047.37,Letter Post,Administration
Land Registry,Land Registry,15/05/2014,Nottingham Office,Letter Post,Royal Mail,Large,1012263,5.19,Letter Post,Administration
Land Registry,Land Registry,15/05/2014,Durham Office,Letter Post,Royal Mail,Large,1012263,104.92,Letter Post,Administration
Land Registry,Land Registry,15/05/2014,Birkenhead Office,Letter Post,Royal Mail,Large,1012263,0.39,Letter Post,Administration
Land Registry,Land Registry,15/05/2014,Durham Office,Letter Post,Royal Mail,Large,1012263,1.92,Letter Post,Administration
Land Registry,Land Registry,15/05/2014,Hull Office,Letter Post,Royal Mail,Large,1012263,2129.04,Letter Post,Administration
Land Registry,Land Registry,15/05/2014,Croydon Office,Letter Post,Royal Mail,Large,1012263,1786.79,Letter Post,Administration
Land Registry,Land Registry,15/05/2014,Peterborough Office,Letter Post,Royal Mail,Large,1012263,2065.87,Letter Post,Administration
Land Registry,Land Registry,15/05/2014,Telford Office,Letter Post,Royal Mail,Large,1012263,2880.81,Letter Post,Administration
Land Registry,Land Registry,15/05/2014,Leicester Office,Letter Post,Royal Mail,Large,1012263,2069.54,Letter Post,Administration
Land Registry,Land Registry,15/05/2014,Coventry Office,Letter Post,Royal Mail,Large,1012263,7249.62,Letter Post,Administration
Land Registry,Land Registry,15/05/2014,Land Charges,Letter Post,Royal Mail,Large,1012263,881.56,Letter Post,Administration
Land Registry,Land Registry,15/05/2014,Plymouth Office,Letter Post,Royal Mail,Large,1012263,2644.67,Letter Post,Administration
Land Registry,Land Registry,15/05/2014,IS Service Delivery,Letter Post,Royal Mail,Large,1012263,15705.87,Letter Post,Administration
Land Registry,Land Registry,15/05/2014,Gloucester Office,Letter Post,Royal Mail,Large,1012263,2285.58,Letter Post,Administration
Land Registry,Land Registry,15/05/2014,Weymouth Office,Letter Post,Royal Mail,Large,1012263,2091.19,Letter Post,Administration
Land Registry,Land Registry,15/05/2014,Wales Office,Letter Post,Royal Mail,Large,1012263,12296.8,Letter Post,Administration
Land Registry,Land Registry,15/05/2014,Leicester Office,Letter Post,Royal Mail,Large,1012263,0.84,Letter Post,Administration
Land Registry,Land Registry,15/05/2014,Coventry Office,Letter Post,Royal Mail,Large,1012263,2.64,Letter Post,Administration
Land Registry,Land Registry,15/05/2014,Croydon Office,Letter Post,Royal Mail,Large,1012263,3.28,Letter Post,Administration
Land Registry,Land Registry,15/05/2014,Telford Office,Letter Post,Royal Mail,Large,1012263,10.08,Letter Post,Administration
Land Registry,Land Registry,15/05/2014,Land Charges,Letter Post,Royal Mail,Large,1012263,0.75,Letter Post,Administration
Land Registry,Land Registry,15/05/2014,Plymouth Office,Letter Post,Royal Mail,Large,1012263,2.25,Letter Post,Administration
Land Registry,Land Registry,15/05/2014,Wales Office,Letter Post,Royal Mail,Large,1012263,24.98,Letter Post,Administration
Land Registry,Land Registry,15/05/2014,Hull Office,Letter Post,Royal Mail,Large,1012263,8.76,Letter Post,Administration
Land Registry,Land Registry,15/05/2014,Weymouth Office,Letter Post,Royal Mail,Large,1012263,20.52,Letter Post,Administration
Land Registry,Land Registry,15/05/2014,Birkenhead Office,Letter Post,Royal Mail,Large,1012263,98.76,Letter Post,Administration
Land Registry,Land Registry,15/05/2014,Land Charges,Letter Post,Royal Mail,Large,1012263,1.04,Letter Post,Administration
Land Registry,Land Registry,15/05/2014,Plymouth Office,Letter Post,Royal Mail,Large,1012263,3.11,Letter Post,Administration
Land Registry,Land Registry,15/05/2014,Nottingham Office,Letter Post,Royal Mail,Large,1012263,291.25,Letter Post,Administration
Land Registry,Land Registry,15/05/2014,Weymouth Office,Letter Post,Royal Mail,Large,1012263,291.25,Letter Post,Administration
Land Registry,Land Registry,15/05/2014,Coventry Office,Letter Post,Royal Mail,Large,1012263,291.25,Letter Post,Administration
Land Registry,Land Registry,15/05/2014,Leicester Office,Letter Post,Royal Mail,Large,1012263,291.25,Letter Post,Administration
Land Registry,Land Registry,15/05/2014,Land Charges,Letter Post,Royal Mail,Large,1012263,12,Letter Post,Administration
Land Registry,Land Registry,15/05/2014,Plymouth Office,Letter Post,Royal Mail,Large,1012263,36,Letter Post,Administration
Land Registry,Land Registry,15/05/2014,Croydon Office,Letter Post,Royal Mail,Large,1012263,339.25,Letter Post,Administration
Land Registry,Land Registry,15/05/2014,Gloucester Office,Letter Post,Royal Mail,Large,1012263,291.25,Letter Post,Administration
Land Registry,Land Registry,15/05/2014,Durham Office,Letter Post,Royal Mail,Large,1012263,291.25,Letter Post,Administration
Land Registry,Land Registry,15/05/2014,Croydon Office,Letter Post,Royal Mail,Large,1012263,291.25,Letter Post,Administration
Land Registry,Land Registry,15/05/2014,Peterborough Office,Office Cleaning Expenses,Carillion Services Ltd,Large,1012245,3150.5,Office Cleaning Expenses,Administration
Land Registry,Land Registry,15/05/2014,Nottingham Office,Office Cleaning Expenses,Carillion Services Ltd,Large,1012245,6832.64,Office Cleaning Expenses,Administration
Land Registry,Land Registry,15/05/2014,RFS4 - Coventry,Office Cleaning Expenses,Carillion Services Ltd,Large,1012245,248.61,Office Cleaning Expenses,Administration
Land Registry,Land Registry,15/05/2014,Hull Office,Office Cleaning Expenses,Carillion Services Ltd,Large,1012245,5322.05,Office Cleaning Expenses,Administration
Land Registry,Land Registry,15/05/2014,Fylde Office,Office Cleaning Expenses,Carillion Services Ltd,Large,1012245,5407.55,Office Cleaning Expenses,Administration
Land Registry,Land Registry,15/05/2014,Durham Office,Office Cleaning Expenses,Carillion Services Ltd,Large,1012245,8766.98,Office Cleaning Expenses,Administration
Land Registry,Land Registry,15/05/2014,RFS8 - Birkenhead,Office Cleaning Expenses,Carillion Services Ltd,Large,1012245,7.55,Office Cleaning Expenses,Administration
Land Registry,Land Registry,15/05/2014,Birkenhead Office,Office Cleaning Expenses,Carillion Services Ltd,Large,1012245,5935.66,Office Cleaning Expenses,Administration
Land Registry,Land Registry,15/05/2014,Telford Office,Office Cleaning Expenses,Carillion Services Ltd,Large,1012245,6900.99,Office Cleaning Expenses,Administration
Land Registry,Land Registry,15/05/2014,Leicester Office,Office Cleaning Expenses,Carillion Services Ltd,Large,1012245,186.86,Office Cleaning Expenses,Administration
Land Registry,Land Registry,15/05/2014,Leicester Office,Office Cleaning Expenses,Carillion Services Ltd,Large,1012245,3750.2,Office Cleaning Expenses,Administration
Land Registry,Land Registry,15/05/2014,Gloucester Computer Centre,Office Cleaning Expenses,Carillion Services Ltd,Large,1012245,10.68,Office Cleaning Expenses,Administration
Land Registry,Land Registry,15/05/2014,Gloucester Office,Office Cleaning Expenses,Carillion Services Ltd,Large,1012245,6793.25,Office Cleaning Expenses,Administration
Land Registry,Land Registry,15/05/2014,Coventry Office,Office Cleaning Expenses,Carillion Services Ltd,Large,1012245,7736.05,Office Cleaning Expenses,Administration
Land Registry,Land Registry,15/05/2014,Wales Office,Office Cleaning Expenses,Carillion Services Ltd,Large,1012245,19.29,Office Cleaning Expenses,Administration
Land Registry,Land Registry,15/05/2014,Wales Office,Office Cleaning Expenses,Carillion Services Ltd,Large,1012245,4935.35,Office Cleaning Expenses,Administration
Land Registry,Land Registry,15/05/2014,Croydon Office,Office Cleaning Expenses,Carillion Services Ltd,Large,1012245,6200.85,Office Cleaning Expenses,Administration
Land Registry,Land Registry,15/05/2014,Weymouth Office,Office Cleaning Expenses,Carillion Services Ltd,Large,1012245,3865.85,Office Cleaning Expenses,Administration
Land Registry,Land Registry,15/05/2014,Governance & Policy,Office Cleaning Expenses,Carillion Services Ltd,Large,1012245,446.7,Office Cleaning Expenses,Administration
Land Registry,Land Registry,15/05/2014,Governance & Policy,Office Cleaning Expenses,Carillion Services Ltd,Large,1012245,332.57,Office Cleaning Expenses,Administration
Land Registry,Land Registry,15/05/2014,Governance & Policy,Office Cleaning Expenses,Carillion Services Ltd,Large,1012245,8877.41,Office Cleaning Expenses,Administration
Land Registry,Land Registry,15/05/2014,Peterborough Office,Parcel and Datapost,Royal Mail,Large,1012263,1.76,Parcel and Datapost,Administration
Land Registry,Land Registry,15/05/2014,Peterborough Office,Pest Control,Carillion Services Ltd,Large,1012245,42.47,Pest Control,Administration
Land Registry,Land Registry,15/05/2014,Nottingham Office,Pest Control,Carillion Services Ltd,Large,1012245,139.45,Pest Control,Administration
Land Registry,Land Registry,15/05/2014,Hull Office,Pest Control,Carillion Services Ltd,Large,1012245,50.07,Pest Control,Administration
Land Registry,Land Registry,15/05/2014,Fylde Office,Pest Control,Carillion Services Ltd,Large,1012245,39.62,Pest Control,Administration
Land Registry,Land Registry,15/05/2014,Durham Office,Pest Control,Carillion Services Ltd,Large,1012245,49.02,Pest Control,Administration
Land Registry,Land Registry,15/05/2014,Birkenhead Office,Pest Control,Carillion Services Ltd,Large,1012245,41.9,Pest Control,Administration
Land Registry,Land Registry,15/05/2014,Telford Office,Pest Control,Carillion Services Ltd,Large,1012245,44.98,Pest Control,Administration
Land Registry,Land Registry,15/05/2014,Leicester Office,Pest Control,Carillion Services Ltd,Large,1012245,16.25,Pest Control,Administration
Land Registry,Land Registry,15/05/2014,Leicester Office,Pest Control,Carillion Services Ltd,Large,1012245,39.62,Pest Control,Administration
Land Registry,Land Registry,15/05/2014,Gloucester Computer Centre,Pest Control,Carillion Services Ltd,Large,1012245,28.64,Pest Control,Administration
Land Registry,Land Registry,15/05/2014,Gloucester Office,Pest Control,Carillion Services Ltd,Large,1012245,46.74,Pest Control,Administration
Land Registry,Land Registry,15/05/2014,Coventry Office,Pest Control,Carillion Services Ltd,Large,1012245,53.41,Pest Control,Administration
Land Registry,Land Registry,15/05/2014,Wales Office,Pest Control,Carillion Services Ltd,Large,1012245,18.62,Pest Control,Administration
Land Registry,Land Registry,15/05/2014,Wales Office,Pest Control,Carillion Services Ltd,Large,1012245,40.76,Pest Control,Administration
Land Registry,Land Registry,15/05/2014,Croydon Office,Pest Control,Carillion Services Ltd,Large,1012245,40.24,Pest Control,Administration
Land Registry,Land Registry,15/05/2014,Weymouth Office,Pest Control,Carillion Services Ltd,Large,1012245,41.9,Pest Control,Administration
Land Registry,Land Registry,15/05/2014,Governance & Policy,Pest Control,Carillion Services Ltd,Large,1012245,172.01,Pest Control,Administration
Land Registry,Land Registry,15/05/2014,Governance & Policy,Pest Control,Carillion Services Ltd,Large,1012245,262.93,Pest Control,Administration
Land Registry,Land Registry,15/05/2014,Governance & Policy,Pest Control,Carillion Services Ltd,Large,1012245,90.04,Pest Control,Administration
Land Registry,Land Registry,15/05/2014,Peterborough Office,Property Maintenance,Carillion Services Ltd,Large,1012245,2125.25,Property Maintenance,Administration
Land Registry,Land Registry,15/05/2014,Nottingham Office,Property Maintenance,Carillion Services Ltd,Large,1012245,4536.99,Property Maintenance,Administration
Land Registry,Land Registry,15/05/2014,RFS4 - Coventry,Property Maintenance,Carillion Services Ltd,Large,1012245,55.5,Property Maintenance,Administration
Land Registry,Land Registry,15/05/2014,Hull Office,Property Maintenance,Carillion Services Ltd,Large,1012245,4770.07,Property Maintenance,Administration
Land Registry,Land Registry,15/05/2014,Hull Office,Property Maintenance,Carillion Services Ltd,Large,1012245,137.34,Property Maintenance,Administration
Land Registry,Land Registry,15/05/2014,Fylde Office,Property Maintenance,Carillion Services Ltd,Large,1012245,2558.71,Property Maintenance,Administration
Land Registry,Land Registry,15/05/2014,Fylde Office,Property Maintenance,Carillion Services Ltd,Large,1012245,163.49,Property Maintenance,Administration
Land Registry,Land Registry,15/05/2014,Durham Office,Property Maintenance,Carillion Services Ltd,Large,1012245,9872.61,Property Maintenance,Administration
Land Registry,Land Registry,15/05/2014,Durham Office,Property Maintenance,Carillion Services Ltd,Large,1012245,117.88,Property Maintenance,Administration
Land Registry,Land Registry,15/05/2014,Birkenhead Office,Property Maintenance,Carillion Services Ltd,Large,1012245,3787.76,Property Maintenance,Administration
Land Registry,Land Registry,15/05/2014,Birkenhead Office,Property Maintenance,Carillion Services Ltd,Large,1012245,150.34,Property Maintenance,Administration
Land Registry,Land Registry,15/05/2014,Telford Office,Property Maintenance,Carillion Services Ltd,Large,1012245,6265.05,Property Maintenance,Administration
Land Registry,Land Registry,15/05/2014,Telford Office,Property Maintenance,Carillion Services Ltd,Large,1012245,154.13,Property Maintenance,Administration
Land Registry,Land Registry,15/05/2014,Nottingham Office,Property Maintenance,Carillion Services Ltd,Large,1012245,20516.26,Property Maintenance,Administration
Land Registry,Land Registry,15/05/2014,Leicester Office,Property Maintenance,Carillion Services Ltd,Large,1012245,369.99,Property Maintenance,Administration
Land Registry,Land Registry,15/05/2014,Leicester Office,Property Maintenance,Carillion Services Ltd,Large,1012245,6898.31,Property Maintenance,Administration
Land Registry,Land Registry,15/05/2014,Leicester Office,Property Maintenance,Carillion Services Ltd,Large,1012245,111.13,Property Maintenance,Administration
Land Registry,Land Registry,15/05/2014,Gloucester Computer Centre,Property Maintenance,Carillion Services Ltd,Large,1012245,6968.12,Property Maintenance,Administration
Land Registry,Land Registry,15/05/2014,Gloucester Computer Centre,Property Maintenance,Carillion Services Ltd,Large,1012245,55.63,Property Maintenance,Administration
Land Registry,Land Registry,15/05/2014,Gloucester Office,Property Maintenance,Carillion Services Ltd,Large,1012245,2164.37,Property Maintenance,Administration
Land Registry,Land Registry,15/05/2014,Gloucester Office,Property Maintenance,Carillion Services Ltd,Large,1012245,111.13,Property Maintenance,Administration
Land Registry,Land Registry,15/05/2014,Coventry Office,Property Maintenance,Carillion Services Ltd,Large,1012245,9557.99,Property Maintenance,Administration
Land Registry,Land Registry,15/05/2014,Coventry Office,Property Maintenance,Carillion Services Ltd,Large,1012245,295.81,Property Maintenance,Administration
Land Registry,Land Registry,15/05/2014,Wales Office,Property Maintenance,Carillion Services Ltd,Large,1012245,757.54,Property Maintenance,Administration
Land Registry,Land Registry,15/05/2014,Wales Office,Property Maintenance,Carillion Services Ltd,Large,1012245,111.13,Property Maintenance,Administration
Land Registry,Land Registry,15/05/2014,Wales Office,Property Maintenance,Carillion Services Ltd,Large,1012245,2874.99,Property Maintenance,Administration
Land Registry,Land Registry,15/05/2014,Wales Office,Property Maintenance,Carillion Services Ltd,Large,1012245,197.23,Property Maintenance,Administration
Land Registry,Land Registry,15/05/2014,Croydon Office,Property Maintenance,Carillion Services Ltd,Large,1012245,6125.61,Property Maintenance,Administration
Land Registry,Land Registry,15/05/2014,Croydon Office,Property Maintenance,Carillion Services Ltd,Large,1012245,100.28,Property Maintenance,Administration
Land Registry,Land Registry,15/05/2014,Weymouth Office,Property Maintenance,Carillion Services Ltd,Large,1012245,1326.58,Property Maintenance,Administration
Land Registry,Land Registry,15/05/2014,Weymouth Office,Property Maintenance,Carillion Services Ltd,Large,1012245,237.19,Property Maintenance,Administration
Land Registry,Land Registry,15/05/2014,Governance & Policy,Property Maintenance,Carillion Services Ltd,Large,1012245,5153.25,Property Maintenance,Administration
Land Registry,Land Registry,15/05/2014,Governance & Policy,Property Maintenance,Carillion Services Ltd,Large,1012245,139.18,Property Maintenance,Administration
Land Registry,Land Registry,15/05/2014,Governance & Policy,Property Maintenance,Carillion Services Ltd,Large,1012245,4991.08,Property Maintenance,Administration
Land Registry,Land Registry,15/05/2014,Governance & Policy,Property Maintenance,Carillion Services Ltd,Large,1012245,115.83,Property Maintenance,Administration
Land Registry,Land Registry,15/05/2014,RFS15 - Plymouth Drakes Hill Court,Property Maintenance,Carillion Services Ltd,Large,1012245,-41792.67,Property Maintenance,Administration
Land Registry,Land Registry,15/05/2014,Governance & Policy,Property Maintenance,Carillion Services Ltd,Large,1012245,4154.13,Property Maintenance,Administration
Land Registry,Land Registry,15/05/2014,Governance & Policy,Property Maintenance,Carillion Services Ltd,Large,1012245,153.71,Property Maintenance,Administration
Land Registry,Land Registry,15/05/2014,Dir: HR,Property Maintenance,Carillion Services Ltd,Large,1012245,1283.85,Property Maintenance,Administration
Land Registry,Land Registry,15/05/2014,Dir: HR,"Property Management; Advice, Surveys & Inspections",Carillion Services Ltd,Large,1012245,251.15,"Property Management; Advice, Surveys & Inspections",Administration
Land Registry,Land Registry,15/05/2014,Peterborough Office,Security Expenses,Carillion Services Ltd,Large,1012245,15.85,Security Expenses,Administration
Land Registry,Land Registry,15/05/2014,Nottingham Office,Security Expenses,Carillion Services Ltd,Large,1012245,3434.17,Security Expenses,Administration
Land Registry,Land Registry,15/05/2014,Hull Office,Security Expenses,Carillion Services Ltd,Large,1012245,3249.22,Security Expenses,Administration
Land Registry,Land Registry,15/05/2014,Fylde Office,Security Expenses,Carillion Services Ltd,Large,1012245,2618.38,Security Expenses,Administration
Land Registry,Land Registry,15/05/2014,Durham Office,Security Expenses,Carillion Services Ltd,Large,1012245,3481.8,Security Expenses,Administration
Land Registry,Land Registry,15/05/2014,Birkenhead Office,Security Expenses,Carillion Services Ltd,Large,1012245,3266.87,Security Expenses,Administration
Land Registry,Land Registry,15/05/2014,Telford Office,Security Expenses,Carillion Services Ltd,Large,1012245,2860.81,Security Expenses,Administration
Land Registry,Land Registry,15/05/2014,Leicester Office,Security Expenses,Carillion Services Ltd,Large,1012245,2754.52,Security Expenses,Administration
Land Registry,Land Registry,15/05/2014,Gloucester Computer Centre,Security Expenses,Carillion Services Ltd,Large,1012245,8308.09,Security Expenses,Administration
Land Registry,Land Registry,15/05/2014,Gloucester Office,Security Expenses,Carillion Services Ltd,Large,1012245,10566.8,Security Expenses,Administration
Land Registry,Land Registry,15/05/2014,Coventry Office,Security Expenses,Carillion Services Ltd,Large,1012245,7968.05,Security Expenses,Administration
Land Registry,Land Registry,15/05/2014,Wales Office,Security Expenses,Carillion Services Ltd,Large,1012245,2919.7,Security Expenses,Administration
Land Registry,Land Registry,15/05/2014,Croydon Office,Security Expenses,Carillion Services Ltd,Large,1012245,9414.54,Security Expenses,Administration
Land Registry,Land Registry,15/05/2014,Weymouth Office,Security Expenses,Carillion Services Ltd,Large,1012245,3144.08,Security Expenses,Administration
Land Registry,Land Registry,15/05/2014,Governance & Policy,Security Expenses,Carillion Services Ltd,Large,1012245,4193.09,Security Expenses,Administration
Land Registry,Land Registry,15/05/2014,Governance & Policy,Security Expenses,Carillion Services Ltd,Large,1012245,7811.63,Security Expenses,Administration
Land Registry,Land Registry,15/05/2014,Governance & Policy,Security Expenses,Carillion Services Ltd,Large,1012245,9630.43,Security Expenses,Administration
Land Registry,Land Registry,15/05/2014,Dir: HR,Security Expenses,Carillion Services Ltd,Large,1012245,939.73,Security Expenses,Administration
Land Registry,Land Registry,15/05/2014,Central Facilities Management Team,Transport Hire of Cars and Vans,Enterprise Rent-A-Car (UK) Ltd,Large,1012248,25169.4,Transport Hire of Cars and Vans,Administration
Land Registry,Land Registry,15/05/2014,Peterborough Office,Vending Machine Consumables & Repairs,Carillion Services Ltd,Large,1012245,148.5,Vending Machine Consumables & Repairs,Administration
Land Registry,Land Registry,15/05/2014,Nottingham Office,Vending Machine Consumables & Repairs,Carillion Services Ltd,Large,1012245,135.82,Vending Machine Consumables & Repairs,Administration
Land Registry,Land Registry,15/05/2014,Hull Office,Vending Machine Consumables & Repairs,Carillion Services Ltd,Large,1012245,364.03,Vending Machine Consumables & Repairs,Administration
Land Registry,Land Registry,15/05/2014,Fylde Office,Vending Machine Consumables & Repairs,Carillion Services Ltd,Large,1012245,219.77,Vending Machine Consumables & Repairs,Administration
Land Registry,Land Registry,15/05/2014,RFS8 - Birkenhead,Vending Machine Consumables & Repairs,Carillion Services Ltd,Large,1012245,54.87,Vending Machine Consumables & Repairs,Administration
Land Registry,Land Registry,15/05/2014,Birkenhead Office,Vending Machine Consumables & Repairs,Carillion Services Ltd,Large,1012245,766.32,Vending Machine Consumables & Repairs,Administration
Land Registry,Land Registry,15/05/2014,Telford Office,Vending Machine Consumables & Repairs,Carillion Services Ltd,Large,1012245,286.41,Vending Machine Consumables & Repairs,Administration
Land Registry,Land Registry,15/05/2014,Leicester Office,Vending Machine Consumables & Repairs,Carillion Services Ltd,Large,1012245,158.47,Vending Machine Consumables & Repairs,Administration
Land Registry,Land Registry,15/05/2014,Gloucester Computer Centre,Vending Machine Consumables & Repairs,Carillion Services Ltd,Large,1012245,19.4,Vending Machine Consumables & Repairs,Administration
Land Registry,Land Registry,15/05/2014,Gloucester Office,Vending Machine Consumables & Repairs,Carillion Services Ltd,Large,1012245,733.09,Vending Machine Consumables & Repairs,Administration
Land Registry,Land Registry,15/05/2014,Coventry Office,Vending Machine Consumables & Repairs,Carillion Services Ltd,Large,1012245,223.11,Vending Machine Consumables & Repairs,Administration
Land Registry,Land Registry,15/05/2014,Wales Office,Vending Machine Consumables & Repairs,Carillion Services Ltd,Large,1012245,202.29,Vending Machine Consumables & Repairs,Administration
Land Registry,Land Registry,15/05/2014,Croydon Office,Vending Machine Consumables & Repairs,Carillion Services Ltd,Large,1012245,190,Vending Machine Consumables & Repairs,Administration
Land Registry,Land Registry,15/05/2014,Weymouth Office,Vending Machine Consumables & Repairs,Carillion Services Ltd,Large,1012245,120.66,Vending Machine Consumables & Repairs,Administration
Land Registry,Land Registry,15/05/2014,Governance & Policy,Vending Machine Consumables & Repairs,Carillion Services Ltd,Large,1012245,20.92,Vending Machine Consumables & Repairs,Administration
Land Registry,Land Registry,15/05/2014,Nottingham Office,Waste Disposal,Carillion Services Ltd,Large,1012245,216.05,Waste Disposal,Administration
Land Registry,Land Registry,15/05/2014,Hull Office,Waste Disposal,Carillion Services Ltd,Large,1012245,96.02,Waste Disposal,Administration
Land Registry,Land Registry,15/05/2014,Fylde Office,Waste Disposal,Carillion Services Ltd,Large,1012245,76.51,Waste Disposal,Administration
Land Registry,Land Registry,15/05/2014,Durham Office,Waste Disposal,Carillion Services Ltd,Large,1012245,252.32,Waste Disposal,Administration
Land Registry,Land Registry,15/05/2014,Birkenhead Office,Waste Disposal,Carillion Services Ltd,Large,1012245,434.75,Waste Disposal,Administration
Land Registry,Land Registry,15/05/2014,Telford Office,Waste Disposal,Carillion Services Ltd,Large,1012245,192.09,Waste Disposal,Administration
Land Registry,Land Registry,15/05/2014,Leicester Office,Waste Disposal,Carillion Services Ltd,Large,1012245,228.91,Waste Disposal,Administration
Land Registry,Land Registry,15/05/2014,Gloucester Computer Centre,Waste Disposal,Carillion Services Ltd,Large,1012245,63.97,Waste Disposal,Administration
Land Registry,Land Registry,15/05/2014,Gloucester Office,Waste Disposal,Carillion Services Ltd,Large,1012245,160.68,Waste Disposal,Administration
Land Registry,Land Registry,15/05/2014,Coventry Office,Waste Disposal,Carillion Services Ltd,Large,1012245,240.47,Waste Disposal,Administration
Land Registry,Land Registry,15/05/2014,Wales Office,Waste Disposal,Carillion Services Ltd,Large,1012245,358.35,Waste Disposal,Administration
Land Registry,Land Registry,15/05/2014,Croydon Office,Waste Disposal,Carillion Services Ltd,Large,1012245,167.7,Waste Disposal,Administration
Land Registry,Land Registry,15/05/2014,Weymouth Office,Waste Disposal,Carillion Services Ltd,Large,1012245,152.68,Waste Disposal,Administration
Land Registry,Land Registry,15/05/2014,Governance & Policy,Waste Disposal,Carillion Services Ltd,Large,1012245,220.16,Waste Disposal,Administration
Land Registry,Land Registry,15/05/2014,Governance & Policy,Waste Disposal,Carillion Services Ltd,Large,1012245,124.26,Waste Disposal,Administration
Land Registry,Land Registry,15/05/2014,Governance & Policy,Waste Disposal,Carillion Services Ltd,Large,1012245,1102.54,Waste Disposal,Administration
Land Registry,Land Registry,15/05/2014,Dir: HR,Waste Disposal,Carillion Services Ltd,Large,1012245,41.71,Waste Disposal,Administration
Land Registry,Land Registry,19/05/2014,IS Service Delivery,Computer Equipment Maintenance,IBM United Kingdom Ltd,Large,1012609,23000,Computer Equipment Maintenance,Administration
Land Registry,Land Registry,21/05/2014,Weymouth Office,Electricity,Carillion Services Ltd,Large,1012999,3475.43,Electricity,Administration
Land Registry,Land Registry,21/05/2014,Wales Office,Electricity,Carillion Services Ltd,Large,1012999,4832.22,Electricity,Administration
Land Registry,Land Registry,21/05/2014,Telford Office,Electricity,Carillion Services Ltd,Large,1012999,6565.3,Electricity,Administration
Land Registry,Land Registry,21/05/2014,Governance & Policy,Electricity,Carillion Services Ltd,Large,1012999,40506.17,Electricity,Administration
Land Registry,Land Registry,21/05/2014,RFS15 - Plymouth Drakes Hill Court,Electricity,Carillion Services Ltd,Large,1012999,2148.2,Electricity,Administration
Land Registry,Land Registry,21/05/2014,Wales Office,Electricity,Carillion Services Ltd,Large,1012999,274.92,Electricity,Administration
Land Registry,Land Registry,21/05/2014,Nottingham Office,Electricity,Carillion Services Ltd,Large,1012999,9607.29,Electricity,Administration
Land Registry,Land Registry,21/05/2014,Leicester Office,Electricity,Carillion Services Ltd,Large,1012999,3326.74,Electricity,Administration
Land Registry,Land Registry,21/05/2014,Hull Office,Electricity,Carillion Services Ltd,Large,1012999,6192.3,Electricity,Administration
Land Registry,Land Registry,21/05/2014,Gloucester Office,Electricity,Carillion Services Ltd,Large,1012999,5182.77,Electricity,Administration
Land Registry,Land Registry,21/05/2014,Gloucester Computer Centre,Electricity,Carillion Services Ltd,Large,1012999,24727.17,Electricity,Administration
Land Registry,Land Registry,21/05/2014,Fylde Office,Electricity,Carillion Services Ltd,Large,1012999,4373.15,Electricity,Administration
Land Registry,Land Registry,21/05/2014,Durham Office,Electricity,Carillion Services Ltd,Large,1012999,4201.58,Electricity,Administration
Land Registry,Land Registry,21/05/2014,Croydon Office,Electricity,Carillion Services Ltd,Large,1012999,6156.48,Electricity,Administration
Land Registry,Land Registry,21/05/2014,Coventry Office,Electricity,Carillion Services Ltd,Large,1012999,6273.28,Electricity,Administration
Land Registry,Land Registry,21/05/2014,Birkenhead Office,Electricity,Carillion Services Ltd,Large,1012999,5168.89,Electricity,Administration
Land Registry,Land Registry,21/05/2014,Dir: HR,Electricity,Carillion Services Ltd,Large,1012999,1439.68,Electricity,Administration
Land Registry,Land Registry,21/05/2014,Nottingham Office,FF&F:Maintenance,Carillion Services Ltd,Large,1012999,2485.41,FF&F:Maintenance,Administration
Land Registry,Land Registry,21/05/2014,Hull Office,FF&F:Maintenance,Carillion Services Ltd,Large,1012999,546.74,FF&F:Maintenance,Administration
Land Registry,Land Registry,21/05/2014,Fylde Office,FF&F:Maintenance,Carillion Services Ltd,Large,1012999,569.54,FF&F:Maintenance,Administration
Land Registry,Land Registry,21/05/2014,Durham Office,FF&F:Maintenance,Carillion Services Ltd,Large,1012999,41.25,FF&F:Maintenance,Administration
Land Registry,Land Registry,21/05/2014,Birkenhead Office,FF&F:Maintenance,Carillion Services Ltd,Large,1012999,284.71,FF&F:Maintenance,Administration
Land Registry,Land Registry,21/05/2014,Telford Office,FF&F:Maintenance,Carillion Services Ltd,Large,1012999,610,FF&F:Maintenance,Administration
Land Registry,Land Registry,21/05/2014,Peterborough Office,FF&F:Maintenance,Carillion Services Ltd,Large,1012999,129.48,FF&F:Maintenance,Administration
Land Registry,Land Registry,21/05/2014,Leicester Office,FF&F:Maintenance,Carillion Services Ltd,Large,1012999,94.83,FF&F:Maintenance,Administration
Land Registry,Land Registry,21/05/2014,Gloucester Office,FF&F:Maintenance,Carillion Services Ltd,Large,1012999,1340.96,FF&F:Maintenance,Administration
Land Registry,Land Registry,21/05/2014,Coventry Office,FF&F:Maintenance,Carillion Services Ltd,Large,1012999,618,FF&F:Maintenance,Administration
Land Registry,Land Registry,21/05/2014,Wales Office,FF&F:Maintenance,Carillion Services Ltd,Large,1012999,917,FF&F:Maintenance,Administration
Land Registry,Land Registry,21/05/2014,Weymouth Office,FF&F:Maintenance,Carillion Services Ltd,Large,1012999,103.08,FF&F:Maintenance,Administration
Land Registry,Land Registry,21/05/2014,RFS15 - Plymouth Drakes Hill Court,FF&F:Maintenance,Carillion Services Ltd,Large,1012999,30.53,FF&F:Maintenance,Administration
Land Registry,Land Registry,21/05/2014,Governance & Policy,FF&F:Maintenance,Carillion Services Ltd,Large,1012999,2149.61,FF&F:Maintenance,Administration
Land Registry,Land Registry,21/05/2014,Birkenhead Office,FM Managed Services,Carillion Services Ltd,Large,1012999,706.2,Facilities Managed Services,Administration
Land Registry,Land Registry,21/05/2014,Weymouth Office,Gas,Carillion Services Ltd,Large,1012999,1696.64,Gas,Administration
Land Registry,Land Registry,21/05/2014,Wales Office,Gas,Carillion Services Ltd,Large,1012999,1052.72,Gas,Administration
Land Registry,Land Registry,21/05/2014,RFS1 - Telford,Gas,Carillion Services Ltd,Large,1012999,322.42,Gas,Administration
Land Registry,Land Registry,21/05/2014,Telford Office,Gas,Carillion Services Ltd,Large,1012999,4098.25,Gas,Administration
Land Registry,Land Registry,21/05/2014,Governance & Policy,Gas,Carillion Services Ltd,Large,1012999,2956.47,Gas,Administration
Land Registry,Land Registry,21/05/2014,RFS15 - Plymouth Drakes Hill Court,Gas,Carillion Services Ltd,Large,1012999,1684.53,Gas,Administration
Land Registry,Land Registry,21/05/2014,Peterborough Office,Gas,Carillion Services Ltd,Large,1012999,-30589.3,Gas,Administration
Land Registry,Land Registry,21/05/2014,Nottingham Office,Gas,Carillion Services Ltd,Large,1012999,-9639.74,Gas,Administration
Land Registry,Land Registry,21/05/2014,Leicester Office,Gas,Carillion Services Ltd,Large,1012999,1965.99,Gas,Administration
Land Registry,Land Registry,21/05/2014,Hull Office,Gas,Carillion Services Ltd,Large,1012999,3286.2,Gas,Administration
Land Registry,Land Registry,21/05/2014,Gloucester Office,Gas,Carillion Services Ltd,Large,1012999,1924.34,Gas,Administration
Land Registry,Land Registry,21/05/2014,Gloucester Computer Centre,Gas,Carillion Services Ltd,Large,1012999,607.24,Gas,Administration
Land Registry,Land Registry,21/05/2014,Fylde Office,Gas,Carillion Services Ltd,Large,1012999,1896.3,Gas,Administration
Land Registry,Land Registry,21/05/2014,Durham Office,Gas,Carillion Services Ltd,Large,1012999,1791.8,Gas,Administration
Land Registry,Land Registry,21/05/2014,Croydon Office,Gas,Carillion Services Ltd,Large,1012999,3105.56,Gas,Administration
Land Registry,Land Registry,21/05/2014,Coventry Office,Gas,Carillion Services Ltd,Large,1012999,4505.46,Gas,Administration
Land Registry,Land Registry,21/05/2014,Birkenhead Office,Gas,Carillion Services Ltd,Large,1012999,1765.95,Gas,Administration
Land Registry,Land Registry,21/05/2014,Dir: HR,Gas,Carillion Services Ltd,Large,1012999,1505.41,Gas,Administration
Land Registry,Land Registry,21/05/2014,Hull Office,Grounds Maintenance,Carillion Services Ltd,Large,1012999,622.5,Grounds Maintenance,Administration
Land Registry,Land Registry,21/05/2014,Fylde Office,Grounds Maintenance,Carillion Services Ltd,Large,1012999,1434.39,Grounds Maintenance,Administration
Land Registry,Land Registry,21/05/2014,Durham Office,Grounds Maintenance,Carillion Services Ltd,Large,1012999,933.75,Grounds Maintenance,Administration
Land Registry,Land Registry,21/05/2014,Birkenhead Office,Grounds Maintenance,Carillion Services Ltd,Large,1012999,155.63,Grounds Maintenance,Administration
Land Registry,Land Registry,21/05/2014,Telford Office,Grounds Maintenance,Carillion Services Ltd,Large,1012999,415,Grounds Maintenance,Administration
Land Registry,Land Registry,21/05/2014,Leicester Office,Grounds Maintenance,Carillion Services Ltd,Large,1012999,233.44,Grounds Maintenance,Administration
Land Registry,Land Registry,21/05/2014,Leicester Office,Grounds Maintenance,Carillion Services Ltd,Large,1012999,420.19,Grounds Maintenance,Administration
Land Registry,Land Registry,21/05/2014,Gloucester Computer Centre,Grounds Maintenance,Carillion Services Ltd,Large,1012999,420.19,Grounds Maintenance,Administration
Land Registry,Land Registry,21/05/2014,Gloucester Office,Grounds Maintenance,Carillion Services Ltd,Large,1012999,767.75,Grounds Maintenance,Administration
Land Registry,Land Registry,21/05/2014,Coventry Office,Grounds Maintenance,Carillion Services Ltd,Large,1012999,684.75,Grounds Maintenance,Administration
Land Registry,Land Registry,21/05/2014,Birkenhead Office,Office Cleaning Expenses,Carillion Services Ltd,Large,1012999,31.71,Office Cleaning Expenses,Administration
Land Registry,Land Registry,21/05/2014,Governance & Policy,Office Cleaning Expenses,Carillion Services Ltd,Large,1012999,142.31,Office Cleaning Expenses,Administration
Land Registry,Land Registry,21/05/2014,Dir: HR,Office Cleaning Expenses,Carillion Services Ltd,Large,1012999,305.03,Office Cleaning Expenses,Administration
Land Registry,Land Registry,21/05/2014,Telford Office,Pest Control,Carillion Services Ltd,Large,1012999,123.05,Pest Control,Administration
Land Registry,Land Registry,21/05/2014,Weymouth Office,Pest Control,Carillion Services Ltd,Large,1012999,445.83,Pest Control,Administration
Land Registry,Land Registry,21/05/2014,Birkenhead Office,Property Maintenance,Carillion Services Ltd,Large,1012999,-10124.76,Property Maintenance,Administration
Land Registry,Land Registry,21/05/2014,Wales Office,Property Maintenance,Carillion Services Ltd,Large,1012999,-21303.83,Property Maintenance,Administration
Land Registry,Land Registry,21/05/2014,Hull Office,Property Maintenance,Carillion Services Ltd,Large,1012999,-4217.42,Property Maintenance,Administration
Land Registry,Land Registry,21/05/2014,Peterborough Office,Property Maintenance,Carillion Services Ltd,Large,1012999,1673.89,Property Maintenance,Administration
Land Registry,Land Registry,21/05/2014,Nottingham Office,Property Maintenance,Carillion Services Ltd,Large,1012999,353.66,Property Maintenance,Administration
Land Registry,Land Registry,21/05/2014,Hull Office,Property Maintenance,Carillion Services Ltd,Large,1012999,6167.39,Property Maintenance,Administration
Land Registry,Land Registry,21/05/2014,Fylde Office,Property Maintenance,Carillion Services Ltd,Large,1012999,1125.92,Property Maintenance,Administration
Land Registry,Land Registry,21/05/2014,Durham Office,Property Maintenance,Carillion Services Ltd,Large,1012999,5204.36,Property Maintenance,Administration
Land Registry,Land Registry,21/05/2014,Birkenhead Office,Property Maintenance,Carillion Services Ltd,Large,1012999,11033.58,Property Maintenance,Administration
Land Registry,Land Registry,21/05/2014,Leicester Office,Property Maintenance,Carillion Services Ltd,Large,1012999,2583.46,Property Maintenance,Administration
Land Registry,Land Registry,21/05/2014,Gloucester Computer Centre,Property Maintenance,Carillion Services Ltd,Large,1012999,1484.73,Property Maintenance,Administration
Land Registry,Land Registry,21/05/2014,Gloucester Office,Property Maintenance,Carillion Services Ltd,Large,1012999,11502.99,Property Maintenance,Administration
Land Registry,Land Registry,21/05/2014,Coventry Office,Property Maintenance,Carillion Services Ltd,Large,1012999,1457.34,Property Maintenance,Administration
Land Registry,Land Registry,21/05/2014,Wales Office,Property Maintenance,Carillion Services Ltd,Large,1012999,7894.09,Property Maintenance,Administration
Land Registry,Land Registry,21/05/2014,Croydon Office,Property Maintenance,Carillion Services Ltd,Large,1012999,17938.21,Property Maintenance,Administration
Land Registry,Land Registry,21/05/2014,Weymouth Office,Property Maintenance,Carillion Services Ltd,Large,1012999,16000.35,Property Maintenance,Administration
Land Registry,Land Registry,21/05/2014,Governance & Policy,Property Maintenance,Carillion Services Ltd,Large,1012999,3939.57,Property Maintenance,Administration
Land Registry,Land Registry,21/05/2014,Governance & Policy,Property Maintenance,Carillion Services Ltd,Large,1012999,1812.97,Property Maintenance,Administration
Land Registry,Land Registry,21/05/2014,RFS15 - Plymouth Drakes Hill Court,Property Maintenance,Carillion Services Ltd,Large,1012999,562.58,Property Maintenance,Administration
Land Registry,Land Registry,21/05/2014,RFS15 - Plymouth Drakes Hill Court,Property Maintenance,Carillion Services Ltd,Large,1012999,40.17,Property Maintenance,Administration
Land Registry,Land Registry,21/05/2014,Governance & Policy,Property Maintenance,Carillion Services Ltd,Large,1012999,2033.2,Property Maintenance,Administration
Land Registry,Land Registry,21/05/2014,Central RFS,RFS Outsourced Services,TNT (UK) Ltd,Large,1013013,177203.81,RFS Outsourced Services,Administration
Land Registry,Land Registry,21/05/2014,RFS4 - Coventry,Security Expenses,Carillion Services Ltd,Large,1012999,5740.35,Security Expenses,Administration
Land Registry,Land Registry,21/05/2014,Hull Office,Security Expenses,Carillion Services Ltd,Large,1012999,91.68,Security Expenses,Administration
Land Registry,Land Registry,21/05/2014,Durham Office,Security Expenses,Carillion Services Ltd,Large,1012999,478.77,Security Expenses,Administration
Land Registry,Land Registry,21/05/2014,Birkenhead Office,Security Expenses,Carillion Services Ltd,Large,1012999,2593.46,Security Expenses,Administration
Land Registry,Land Registry,21/05/2014,Birkenhead Office,Security Expenses,Carillion Services Ltd,Large,1012999,3728.22,Security Expenses,Administration
Land Registry,Land Registry,21/05/2014,Telford Office,Security Expenses,Carillion Services Ltd,Large,1012999,81.49,Security Expenses,Administration
Land Registry,Land Registry,21/05/2014,Leicester Office,Security Expenses,Carillion Services Ltd,Large,1012999,244.47,Security Expenses,Administration
Land Registry,Land Registry,21/05/2014,Wales Office,Security Expenses,Carillion Services Ltd,Large,1012999,387.08,Security Expenses,Administration
Land Registry,Land Registry,21/05/2014,Croydon Office,Security Expenses,Carillion Services Ltd,Large,1012999,219.78,Security Expenses,Administration
Land Registry,Land Registry,21/05/2014,Weymouth Office,Security Expenses,Carillion Services Ltd,Large,1012999,105.93,Security Expenses,Administration
Land Registry,Land Registry,21/05/2014,Governance & Policy,Security Expenses,Carillion Services Ltd,Large,1012999,345.58,Security Expenses,Administration
Land Registry,Land Registry,21/05/2014,Governance & Policy,Security Expenses,Carillion Services Ltd,Large,1012999,6458.37,Security Expenses,Administration
Land Registry,Land Registry,21/05/2014,Leicester Office,Vending Machine Consumables & Repairs,Carillion Services Ltd,Large,1012999,26.07,Vending Machine Consumables & Repairs,Administration
Land Registry,Land Registry,21/05/2014,Peterborough Office,Waste Disposal,Carillion Services Ltd,Large,1012999,293.15,Waste Disposal,Administration
Land Registry,Land Registry,21/05/2014,Nottingham Office,Waste Disposal,Carillion Services Ltd,Large,1012999,104.49,Waste Disposal,Administration
Land Registry,Land Registry,21/05/2014,Hull Office,Waste Disposal,Carillion Services Ltd,Large,1012999,671.55,Waste Disposal,Administration
Land Registry,Land Registry,21/05/2014,Fylde Office,Waste Disposal,Carillion Services Ltd,Large,1012999,457.33,Waste Disposal,Administration
Land Registry,Land Registry,21/05/2014,Durham Office,Waste Disposal,Carillion Services Ltd,Large,1012999,556.91,Waste Disposal,Administration
Land Registry,Land Registry,21/05/2014,Leicester Office,Waste Disposal,Carillion Services Ltd,Large,1012999,343.41,Waste Disposal,Administration
Land Registry,Land Registry,21/05/2014,Leicester Office,Waste Disposal,Carillion Services Ltd,Large,1012999,450.47,Waste Disposal,Administration
Land Registry,Land Registry,21/05/2014,Gloucester Computer Centre,Waste Disposal,Carillion Services Ltd,Large,1012999,189.01,Waste Disposal,Administration
Land Registry,Land Registry,21/05/2014,Gloucester Office,Waste Disposal,Carillion Services Ltd,Large,1012999,993.69,Waste Disposal,Administration
Land Registry,Land Registry,21/05/2014,Coventry Office,Waste Disposal,Carillion Services Ltd,Large,1012999,278.2,Waste Disposal,Administration
Land Registry,Land Registry,21/05/2014,Wales Office,Waste Disposal,Carillion Services Ltd,Large,1012999,541.31,Waste Disposal,Administration
Land Registry,Land Registry,21/05/2014,Weymouth Office,Waste Disposal,Carillion Services Ltd,Large,1012999,121.18,Waste Disposal,Administration
Land Registry,Land Registry,21/05/2014,RFS15 - Plymouth Drakes Hill Court,Waste Disposal,Carillion Services Ltd,Large,1012999,5,Waste Disposal,Administration
Land Registry,Land Registry,21/05/2014,Governance & Policy,Waste Disposal,Carillion Services Ltd,Large,1012999,779.78,Waste Disposal,Administration
Land Registry,Land Registry,21/05/2014,Governance & Policy,Water,Carillion Services Ltd,Large,1012999,2565.57,Water,Administration
Land Registry,Land Registry,21/05/2014,RFS15 - Plymouth Drakes Hill Court,Water,Carillion Services Ltd,Large,1012999,33.63,Water,Administration
Land Registry,Land Registry,21/05/2014,Nottingham Office,Water,Carillion Services Ltd,Large,1012999,1512.05,Water,Administration
Land Registry,Land Registry,21/05/2014,RFS5 - Durham Belmont,Water,Carillion Services Ltd,Large,1012999,24.4,Water,Administration
Land Registry,Land Registry,21/05/2014,Croydon Office,Water,Carillion Services Ltd,Large,1012999,1794.89,Water,Administration
Land Registry,Land Registry,21/05/2014,Coventry Office,Water,Carillion Services Ltd,Large,1012999,2141.91,Water,Administration
Land Registry,Land Registry,22/05/2014,IS Service Delivery,Computer Equipment Maintenance,CGI IT UK Limited,Large,1013349,69750,Computer Equipment Maintenance,Administration
Land Registry,Land Registry,22/05/2014,LR Connect Portfolio,Travel & Subsistence General Duty,Redfern Travel Ltd,Large,1013360,62.6,Travel & Subsistence General Duty,Administration
Land Registry,Land Registry,22/05/2014,Projects and Programme Centre,Travel & Subsistence General Duty,Redfern Travel Ltd,Large,1013360,-62.6,Travel & Subsistence General Duty,Administration
Land Registry,Land Registry,22/05/2014,Commercial & Customer Strategy & Performance,Travel & Subsistence General Duty,Redfern Travel Ltd,Large,1013360,-86.04,Travel & Subsistence General Duty,Administration
Land Registry,Land Registry,22/05/2014,Business Development,Travel & Subsistence General Duty,Redfern Travel Ltd,Large,1013360,-449.1,Travel & Subsistence General Duty,Administration
Land Registry,Land Registry,22/05/2014,Internal Solutions Group,Travel & Subsistence General Duty,Redfern Travel Ltd,Large,1013360,395.12,Travel & Subsistence General Duty,Administration
Land Registry,Land Registry,22/05/2014,Product Development & Management,Travel & Subsistence General Duty,Redfern Travel Ltd,Large,1013360,124.05,Travel & Subsistence General Duty,Administration
Land Registry,Land Registry,22/05/2014,Corporate Legal Services,Travel & Subsistence General Duty,Redfern Travel Ltd,Large,1013360,150.5,Travel & Subsistence General Duty,Administration
Land Registry,Land Registry,22/05/2014,Governance & Policy,Travel & Subsistence General Duty,Redfern Travel Ltd,Large,1013360,193.48,Travel & Subsistence General Duty,Administration
Land Registry,Land Registry,22/05/2014,Commercial Director,Travel & Subsistence General Duty,Redfern Travel Ltd,Large,1013360,155.49,Travel & Subsistence General Duty,Administration
Land Registry,Land Registry,22/05/2014,Peterborough Office,Travel & Subsistence General Duty,Redfern Travel Ltd,Large,1013360,847.32,Travel & Subsistence General Duty,Administration
Land Registry,Land Registry,22/05/2014,Corporate Legal Services,Travel & Subsistence General Duty,Redfern Travel Ltd,Large,1013360,78.69,Travel & Subsistence General Duty,Administration
Land Registry,Land Registry,22/05/2014,International Unit,Travel & Subsistence General Duty,Redfern Travel Ltd,Large,1013360,1.56,Travel & Subsistence General Duty,Administration
Land Registry,Land Registry,22/05/2014,Peterborough Office,Travel & Subsistence General Duty,Redfern Travel Ltd,Large,1013360,247.33,Travel & Subsistence General Duty,Administration
Land Registry,Land Registry,22/05/2014,International Unit,Travel & Subsistence General Duty,Redfern Travel Ltd,Large,1013360,89.04,Travel & Subsistence General Duty,Administration
Land Registry,Land Registry,22/05/2014,Commercial Director,Travel & Subsistence General Duty,Redfern Travel Ltd,Large,1013360,155.49,Travel & Subsistence General Duty,Administration
Land Registry,Land Registry,22/05/2014,Internal Solutions Group,Travel & Subsistence General Duty,Redfern Travel Ltd,Large,1013360,82.41,Travel & Subsistence General Duty,Administration
Land Registry,Land Registry,22/05/2014,Registration Legal Services Group,Travel & Subsistence General Duty,Redfern Travel Ltd,Large,1013360,95.53,Travel & Subsistence General Duty,Administration
Land Registry,Land Registry,22/05/2014,International Unit,Travel & Subsistence General Duty,Redfern Travel Ltd,Large,1013360,206.18,Travel & Subsistence General Duty,Administration
Land Registry,Land Registry,22/05/2014,Marketing Services Team,Travel & Subsistence General Duty,Redfern Travel Ltd,Large,1013360,101.78,Travel & Subsistence General Duty,Administration
Land Registry,Land Registry,22/05/2014,Commercial & Customer Strategy & Performance,Travel & Subsistence General Duty,Redfern Travel Ltd,Large,1013360,10.19,Travel & Subsistence General Duty,Administration
Land Registry,Land Registry,22/05/2014,Chief Executives Office,Travel & Subsistence General Duty,Redfern Travel Ltd,Large,1013360,155.78,Travel & Subsistence General Duty,Administration
Land Registry,Land Registry,22/05/2014,Customer Services,Travel & Subsistence General Duty,Redfern Travel Ltd,Large,1013360,187.59,Travel & Subsistence General Duty,Administration
Land Registry,Land Registry,22/05/2014,Leicester Office,Travel & Subsistence General Duty,Redfern Travel Ltd,Large,1013360,166.13,Travel & Subsistence General Duty,Administration
Land Registry,Land Registry,22/05/2014,International Unit,Travel & Subsistence General Duty,Redfern Travel Ltd,Large,1013360,68.54,Travel & Subsistence General Duty,Administration
Land Registry,Land Registry,22/05/2014,Local Lawyer Group,Travel & Subsistence General Duty,Redfern Travel Ltd,Large,1013360,203.44,Travel & Subsistence General Duty,Administration
Land Registry,Land Registry,22/05/2014,HR,Travel & Subsistence General Duty,Redfern Travel Ltd,Large,1013360,162.94,Travel & Subsistence General Duty,Administration
Land Registry,Land Registry,22/05/2014,Central Facilities Management Team,Travel & Subsistence General Duty,Redfern Travel Ltd,Large,1013360,109.35,Travel & Subsistence General Duty,Administration
Land Registry,Land Registry,22/05/2014,HR,Travel & Subsistence General Duty,Redfern Travel Ltd,Large,1013360,117.34,Travel & Subsistence General Duty,Administration
Land Registry,Land Registry,22/05/2014,Central Facilities Management Team,Travel & Subsistence General Duty,Redfern Travel Ltd,Large,1013360,200.36,Travel & Subsistence General Duty,Administration
Land Registry,Land Registry,22/05/2014,HR,Travel & Subsistence General Duty,Redfern Travel Ltd,Large,1013360,77.83,Travel & Subsistence General Duty,Administration
Land Registry,Land Registry,22/05/2014,Internal Solutions Group,Travel & Subsistence General Duty,Redfern Travel Ltd,Large,1013360,127.2,Travel & Subsistence General Duty,Administration
Land Registry,Land Registry,22/05/2014,Corporate Legal Services,Travel & Subsistence General Duty,Redfern Travel Ltd,Large,1013360,130.13,Travel & Subsistence General Duty,Administration
Land Registry,Land Registry,22/05/2014,Nottingham Office,Travel & Subsistence General Duty,Redfern Travel Ltd,Large,1013360,96.09,Travel & Subsistence General Duty,Administration
Land Registry,Land Registry,22/05/2014,Central Operations Group,Travel & Subsistence General Duty,Redfern Travel Ltd,Large,1013360,97.13,Travel & Subsistence General Duty,Administration
Land Registry,Land Registry,22/05/2014,Plymouth Office,Travel & Subsistence General Duty,Redfern Travel Ltd,Large,1013360,112.22,Travel & Subsistence General Duty,Administration
Land Registry,Land Registry,22/05/2014,HR,Travel & Subsistence General Duty,Redfern Travel Ltd,Large,1013360,147.99,Travel & Subsistence General Duty,Administration
Land Registry,Land Registry,22/05/2014,Director of Operations,Travel & Subsistence General Duty,Redfern Travel Ltd,Large,1013360,96.09,Travel & Subsistence General Duty,Administration
Land Registry,Land Registry,22/05/2014,Chief Executives Office,Travel & Subsistence General Duty,Redfern Travel Ltd,Large,1013360,81.04,Travel & Subsistence General Duty,Administration
Land Registry,Land Registry,22/05/2014,Croydon Office,Travel & Subsistence General Duty,Redfern Travel Ltd,Large,1013360,96.09,Travel & Subsistence General Duty,Administration
Land Registry,Land Registry,22/05/2014,Director of Information Systems,Travel & Subsistence General Duty,Redfern Travel Ltd,Large,1013360,187.67,Travel & Subsistence General Duty,Administration
Land Registry,Land Registry,22/05/2014,Central Facilities Management Team,Travel & Subsistence General Duty,Redfern Travel Ltd,Large,1013360,41.7,Travel & Subsistence General Duty,Administration
Land Registry,Land Registry,22/05/2014,Corporate Legal Services,Travel & Subsistence General Duty,Redfern Travel Ltd,Large,1013360,39.96,Travel & Subsistence General Duty,Administration
Land Registry,Land Registry,22/05/2014,Registration Legal Services Group,Travel & Subsistence General Duty,Redfern Travel Ltd,Large,1013360,166.77,Travel & Subsistence General Duty,Administration
Land Registry,Land Registry,22/05/2014,Internal Solutions Group,Travel & Subsistence General Duty,Redfern Travel Ltd,Large,1013360,7.66,Travel & Subsistence General Duty,Administration
Land Registry,Land Registry,22/05/2014,Director of Information Systems,Travel & Subsistence General Duty,Redfern Travel Ltd,Large,1013360,9.71,Travel & Subsistence General Duty,Administration
Land Registry,Land Registry,22/05/2014,Internal Solutions Group,Travel & Subsistence General Duty,Redfern Travel Ltd,Large,1013360,7.66,Travel & Subsistence General Duty,Administration
Land Registry,Land Registry,22/05/2014,Chief Executives Office,Travel & Subsistence General Duty,Redfern Travel Ltd,Large,1013360,71.98,Travel & Subsistence General Duty,Administration
Land Registry,Land Registry,22/05/2014,Professional Library,Travel & Subsistence General Duty,Redfern Travel Ltd,Large,1013360,106.8,Travel & Subsistence General Duty,Administration
Land Registry,Land Registry,22/05/2014,Internal Solutions Group,Travel & Subsistence General Duty,Redfern Travel Ltd,Large,1013360,230.25,Travel & Subsistence General Duty,Administration
Land Registry,Land Registry,22/05/2014,Product Development & Management,Travel & Subsistence General Duty,Redfern Travel Ltd,Large,1013360,71.47,Travel & Subsistence General Duty,Administration
Land Registry,Land Registry,22/05/2014,Hull Office,Travel & Subsistence General Duty,Redfern Travel Ltd,Large,1013360,14.12,Travel & Subsistence General Duty,Administration
Land Registry,Land Registry,22/05/2014,Research & Data Mining,Travel & Subsistence General Duty,Redfern Travel Ltd,Large,1013360,73.63,Travel & Subsistence General Duty,Administration
Land Registry,Land Registry,22/05/2014,Projects and Programme Centre,Travel & Subsistence General Duty,Redfern Travel Ltd,Large,1013360,197.75,Travel & Subsistence General Duty,Administration
Land Registry,Land Registry,22/05/2014,Director of Information Systems,Travel & Subsistence General Duty,Redfern Travel Ltd,Large,1013360,59.87,Travel & Subsistence General Duty,Administration
Land Registry,Land Registry,22/05/2014,HR,Travel & Subsistence General Duty,Redfern Travel Ltd,Large,1013360,26.3,Travel & Subsistence General Duty,Administration
Land Registry,Land Registry,22/05/2014,Projects and Programme Centre,Travel & Subsistence General Duty,Redfern Travel Ltd,Large,1013360,123.3,Travel & Subsistence General Duty,Administration
Land Registry,Land Registry,22/05/2014,Central Operations Group,Travel & Subsistence General Duty,Redfern Travel Ltd,Large,1013360,183.6,Travel & Subsistence General Duty,Administration
Land Registry,Land Registry,22/05/2014,Corporate Legal Services,Travel & Subsistence General Duty,Redfern Travel Ltd,Large,1013360,68.26,Travel & Subsistence General Duty,Administration
Land Registry,Land Registry,22/05/2014,Central Facilities Management Team,Travel & Subsistence General Duty,Redfern Travel Ltd,Large,1013360,78.3,Travel & Subsistence General Duty,Administration
Land Registry,Land Registry,22/05/2014,Director of Information Systems,Travel & Subsistence General Duty,Redfern Travel Ltd,Large,1013360,45.82,Travel & Subsistence General Duty,Administration
Land Registry,Land Registry,22/05/2014,Internal Solutions Group,Travel & Subsistence General Duty,Redfern Travel Ltd,Large,1013360,50.2,Travel & Subsistence General Duty,Administration
Land Registry,Land Registry,22/05/2014,Director of Information Systems,Travel & Subsistence General Duty,Redfern Travel Ltd,Large,1013360,6.89,Travel & Subsistence General Duty,Administration
Land Registry,Land Registry,22/05/2014,Internal Solutions Group,Travel & Subsistence General Duty,Redfern Travel Ltd,Large,1013360,50.2,Travel & Subsistence General Duty,Administration
Land Registry,Land Registry,22/05/2014,HR,Travel & Subsistence General Duty,Redfern Travel Ltd,Large,1013360,328.71,Travel & Subsistence General Duty,Administration
Land Registry,Land Registry,22/05/2014,Fylde Office,Travel & Subsistence General Duty,Redfern Travel Ltd,Large,1013360,201.5,Travel & Subsistence General Duty,Administration
Land Registry,Land Registry,22/05/2014,Central Facilities Management Team,Travel & Subsistence General Duty,Redfern Travel Ltd,Large,1013360,70.98,Travel & Subsistence General Duty,Administration
Land Registry,Land Registry,22/05/2014,HR,Travel & Subsistence General Duty,Redfern Travel Ltd,Large,1013360,10.59,Travel & Subsistence General Duty,Administration
Land Registry,Land Registry,22/05/2014,Central Operations Group,Travel & Subsistence General Duty,Redfern Travel Ltd,Large,1013360,199.49,Travel & Subsistence General Duty,Administration
Land Registry,Land Registry,22/05/2014,Business Development,Travel & Subsistence General Duty,Redfern Travel Ltd,Large,1013360,67.96,Travel & Subsistence General Duty,Administration
Land Registry,Land Registry,22/05/2014,Governance & Policy,Travel & Subsistence General Duty,Redfern Travel Ltd,Large,1013360,280.56,Travel & Subsistence General Duty,Administration
Land Registry,Land Registry,22/05/2014,Director of Information Systems,Travel & Subsistence General Duty,Redfern Travel Ltd,Large,1013360,3.12,Travel & Subsistence General Duty,Administration
Land Registry,Land Registry,22/05/2014,Corporate Legal Services,Travel & Subsistence General Duty,Redfern Travel Ltd,Large,1013360,228.81,Travel & Subsistence General Duty,Administration
Land Registry,Land Registry,22/05/2014,LR Board & Board Chair,Travel & Subsistence General Duty,Redfern Travel Ltd,Large,1013360,1.56,Travel & Subsistence General Duty,Administration
Land Registry,Land Registry,22/05/2014,Central Operations Group,Travel & Subsistence General Duty,Redfern Travel Ltd,Large,1013360,12.45,Travel & Subsistence General Duty,Administration
Land Registry,Land Registry,22/05/2014,Governance & Policy,Travel & Subsistence General Duty,Redfern Travel Ltd,Large,1013360,87.83,Travel & Subsistence General Duty,Administration
Land Registry,Land Registry,22/05/2014,Corp Procurement,Travel & Subsistence General Duty,Redfern Travel Ltd,Large,1013360,65.95,Travel & Subsistence General Duty,Administration
Land Registry,Land Registry,22/05/2014,Internal Solutions Group,Travel & Subsistence General Duty,Redfern Travel Ltd,Large,1013360,135.36,Travel & Subsistence General Duty,Administration
Land Registry,Land Registry,22/05/2014,Central Facilities Management Team,Travel & Subsistence General Duty,Redfern Travel Ltd,Large,1013360,72.99,Travel & Subsistence General Duty,Administration
Land Registry,Land Registry,22/05/2014,Central Operations Group,Travel & Subsistence General Duty,Redfern Travel Ltd,Large,1013360,69.96,Travel & Subsistence General Duty,Administration
Land Registry,Land Registry,22/05/2014,IS Service Delivery,Travel & Subsistence General Duty,Redfern Travel Ltd,Large,1013360,72.99,Travel & Subsistence General Duty,Administration
Land Registry,Land Registry,22/05/2014,Product Development & Management,Travel & Subsistence General Duty,Redfern Travel Ltd,Large,1013360,90.85,Travel & Subsistence General Duty,Administration
Land Registry,Land Registry,22/05/2014,Internal Solutions Group,Travel & Subsistence General Duty,Redfern Travel Ltd,Large,1013360,62.14,Travel & Subsistence General Duty,Administration
Land Registry,Land Registry,22/05/2014,IS Service Delivery,Travel & Subsistence General Duty,Redfern Travel Ltd,Large,1013360,90.85,Travel & Subsistence General Duty,Administration
Land Registry,Land Registry,22/05/2014,Customer Services,Travel & Subsistence General Duty,Redfern Travel Ltd,Large,1013360,71.98,Travel & Subsistence General Duty,Administration
Land Registry,Land Registry,22/05/2014,IS Service Delivery,Travel & Subsistence General Duty,Redfern Travel Ltd,Large,1013360,83.27,Travel & Subsistence General Duty,Administration
Land Registry,Land Registry,22/05/2014,International Unit,Travel & Subsistence General Duty,Redfern Travel Ltd,Large,1013360,278.72,Travel & Subsistence General Duty,Administration
Land Registry,Land Registry,22/05/2014,Central Operations Group,Travel & Subsistence General Duty,Redfern Travel Ltd,Large,1013360,77.01,Travel & Subsistence General Duty,Administration
Land Registry,Land Registry,22/05/2014,Internal Solutions Group,Travel & Subsistence General Duty,Redfern Travel Ltd,Large,1013360,187.67,Travel & Subsistence General Duty,Administration
Land Registry,Land Registry,22/05/2014,Product Development & Management,Travel & Subsistence General Duty,Redfern Travel Ltd,Large,1013360,97.13,Travel & Subsistence General Duty,Administration
Land Registry,Land Registry,22/05/2014,Employee & Management Support Manager,Travel & Subsistence General Duty,Redfern Travel Ltd,Large,1013360,71.98,Travel & Subsistence General Duty,Administration
Land Registry,Land Registry,22/05/2014,Business Development,Travel & Subsistence General Duty,Redfern Travel Ltd,Large,1013360,97.13,Travel & Subsistence General Duty,Administration
Land Registry,Land Registry,22/05/2014,IS Service Delivery,Travel & Subsistence General Duty,Redfern Travel Ltd,Large,1013360,83.27,Travel & Subsistence General Duty,Administration
Land Registry,Land Registry,22/05/2014,Guarantee & Litigation,Travel & Subsistence General Duty,Redfern Travel Ltd,Large,1013360,82.04,Travel & Subsistence General Duty,Administration
Land Registry,Land Registry,22/05/2014,Corporate Legal Services,Travel & Subsistence General Duty,Redfern Travel Ltd,Large,1013360,50.7,Travel & Subsistence General Duty,Administration
Land Registry,Land Registry,22/05/2014,Croydon Office,Travel & Subsistence General Duty,Redfern Travel Ltd,Large,1013360,36.45,Travel & Subsistence General Duty,Administration
Land Registry,Land Registry,22/05/2014,Business Development,Travel & Subsistence General Duty,Redfern Travel Ltd,Large,1013360,152.46,Travel & Subsistence General Duty,Administration
Land Registry,Land Registry,22/05/2014,Director of Information Systems,Travel & Subsistence General Duty,Redfern Travel Ltd,Large,1013360,1,Travel & Subsistence General Duty,Administration
Land Registry,Land Registry,22/05/2014,Customer Services,Travel & Subsistence General Duty,Redfern Travel Ltd,Large,1013360,7.76,Travel & Subsistence General Duty,Administration
Land Registry,Land Registry,22/05/2014,Central Operations Group,Travel & Subsistence General Duty,Redfern Travel Ltd,Large,1013360,11.09,Travel & Subsistence General Duty,Administration
Land Registry,Land Registry,22/05/2014,Research & Data Mining,Travel & Subsistence General Duty,Redfern Travel Ltd,Large,1013360,156.37,Travel & Subsistence General Duty,Administration
Land Registry,Land Registry,22/05/2014,HR,Travel & Subsistence General Duty,Redfern Travel Ltd,Large,1013360,71.67,Travel & Subsistence General Duty,Administration
Land Registry,Land Registry,22/05/2014,Director of Information Systems,Travel & Subsistence General Duty,Redfern Travel Ltd,Large,1013360,2.41,Travel & Subsistence General Duty,Administration
Land Registry,Land Registry,22/05/2014,HR,Travel & Subsistence General Duty,Redfern Travel Ltd,Large,1013360,316.2,Travel & Subsistence General Duty,Administration
Land Registry,Land Registry,22/05/2014,Business Development,Travel & Subsistence General Duty,Redfern Travel Ltd,Large,1013360,62.93,Travel & Subsistence General Duty,Administration
Land Registry,Land Registry,22/05/2014,Central Operations Group,Travel & Subsistence General Duty,Redfern Travel Ltd,Large,1013360,67.96,Travel & Subsistence General Duty,Administration
Land Registry,Land Registry,22/05/2014,Product Development & Management,Travel & Subsistence General Duty,Redfern Travel Ltd,Large,1013360,141.4,Travel & Subsistence General Duty,Administration
Land Registry,Land Registry,22/05/2014,HR,Travel & Subsistence General Duty,Redfern Travel Ltd,Large,1013360,182.64,Travel & Subsistence General Duty,Administration
Land Registry,Land Registry,22/05/2014,Durham Office,Travel & Subsistence General Duty,Redfern Travel Ltd,Large,1013360,197.73,Travel & Subsistence General Duty,Administration
Land Registry,Land Registry,22/05/2014,Employee & Management Support Manager,Travel & Subsistence General Duty,Redfern Travel Ltd,Large,1013360,243,Travel & Subsistence General Duty,Administration
Land Registry,Land Registry,22/05/2014,HR,Travel & Subsistence General Duty,Redfern Travel Ltd,Large,1013360,262.34,Travel & Subsistence General Duty,Administration
Land Registry,Land Registry,22/05/2014,Director of Information Systems,Travel & Subsistence General Duty,Redfern Travel Ltd,Large,1013360,71.98,Travel & Subsistence General Duty,Administration
Land Registry,Land Registry,22/05/2014,Chief Executives Office,Travel & Subsistence General Duty,Redfern Travel Ltd,Large,1013360,255.58,Travel & Subsistence General Duty,Administration
Land Registry,Land Registry,22/05/2014,Business Development,Travel & Subsistence General Duty,Redfern Travel Ltd,Large,1013360,62.93,Travel & Subsistence General Duty,Administration
Land Registry,Land Registry,22/05/2014,Business Continuity,Travel & Subsistence General Duty,Redfern Travel Ltd,Large,1013360,131.2,Travel & Subsistence General Duty,Administration
Land Registry,Land Registry,22/05/2014,Internal Solutions Group,Travel & Subsistence General Duty,Redfern Travel Ltd,Large,1013360,72.17,Travel & Subsistence General Duty,Administration
Land Registry,Land Registry,22/05/2014,HR,Travel & Subsistence General Duty,Redfern Travel Ltd,Large,1013360,190.91,Travel & Subsistence General Duty,Administration
Land Registry,Land Registry,22/05/2014,International Unit,Travel & Subsistence General Duty,Redfern Travel Ltd,Large,1013360,75.05,Travel & Subsistence General Duty,Administration
Land Registry,Land Registry,22/05/2014,Director of Legal Services,Travel & Subsistence General Duty,Redfern Travel Ltd,Large,1013360,101.92,Travel & Subsistence General Duty,Administration
Land Registry,Land Registry,22/05/2014,Property Asset Management Group,Travel & Subsistence General Duty,Redfern Travel Ltd,Large,1013360,28.73,Travel & Subsistence General Duty,Administration
Land Registry,Land Registry,22/05/2014,HR,Travel & Subsistence General Duty,Redfern Travel Ltd,Large,1013360,530.26,Travel & Subsistence General Duty,Administration
Land Registry,Land Registry,22/05/2014,Governance & Policy,Travel & Subsistence General Duty,Redfern Travel Ltd,Large,1013360,116.22,Travel & Subsistence General Duty,Administration
Land Registry,Land Registry,22/05/2014,Survey & Mapping Services,Travel & Subsistence General Duty,Redfern Travel Ltd,Large,1013360,45.54,Travel & Subsistence General Duty,Administration
Land Registry,Land Registry,22/05/2014,Property Asset Management Group,Travel & Subsistence General Duty,Redfern Travel Ltd,Large,1013360,87.07,Travel & Subsistence General Duty,Administration
Land Registry,Land Registry,22/05/2014,Central Operations Group,Travel & Subsistence General Duty,Redfern Travel Ltd,Large,1013360,67.96,Travel & Subsistence General Duty,Administration
Land Registry,Land Registry,22/05/2014,HR,Travel & Subsistence General Duty,Redfern Travel Ltd,Large,1013360,129.64,Travel & Subsistence General Duty,Administration
Land Registry,Land Registry,22/05/2014,Commercial & Customer Strategy & Performance,Travel & Subsistence General Duty,Redfern Travel Ltd,Large,1013360,86.82,Travel & Subsistence General Duty,Administration
Land Registry,Land Registry,22/05/2014,Strategy Team,Travel & Subsistence General Duty,Redfern Travel Ltd,Large,1013360,142.4,Travel & Subsistence General Duty,Administration
Land Registry,Land Registry,22/05/2014,Registration Legal Services Group,Travel & Subsistence General Duty,Redfern Travel Ltd,Large,1013360,158.52,Travel & Subsistence General Duty,Administration
Land Registry,Land Registry,22/05/2014,Business Continuity,Travel & Subsistence General Duty,Redfern Travel Ltd,Large,1013360,65.33,Travel & Subsistence General Duty,Administration
Land Registry,Land Registry,22/05/2014,Director of Information Systems,Travel & Subsistence General Duty,Redfern Travel Ltd,Large,1013360,114.38,Travel & Subsistence General Duty,Administration
Land Registry,Land Registry,22/05/2014,Business Continuity,Travel & Subsistence General Duty,Redfern Travel Ltd,Large,1013360,186.58,Travel & Subsistence General Duty,Administration
Land Registry,Land Registry,22/05/2014,International Unit,Travel & Subsistence General Duty,Redfern Travel Ltd,Large,1013360,57.13,Travel & Subsistence General Duty,Administration
Land Registry,Land Registry,22/05/2014,Business Development,Travel & Subsistence General Duty,Redfern Travel Ltd,Large,1013360,321.51,Travel & Subsistence General Duty,Administration
Land Registry,Land Registry,22/05/2014,Internal Solutions Group,Travel & Subsistence General Duty,Redfern Travel Ltd,Large,1013360,223.52,Travel & Subsistence General Duty,Administration
Land Registry,Land Registry,22/05/2014,International Unit,Travel & Subsistence General Duty,Redfern Travel Ltd,Large,1013360,1.56,Travel & Subsistence General Duty,Administration
Land Registry,Land Registry,22/05/2014,Durham Office,Travel & Subsistence General Duty,Redfern Travel Ltd,Large,1013360,-192.08,Travel & Subsistence General Duty,Administration
Land Registry,Land Registry,22/05/2014,Central Operations Group,Travel & Subsistence General Duty,Redfern Travel Ltd,Large,1013360,-267.55,Travel & Subsistence General Duty,Administration
Land Registry,Land Registry,22/05/2014,Director of Information Systems,Travel & Subsistence General Duty,Redfern Travel Ltd,Large,1013360,-3.82,Travel & Subsistence General Duty,Administration
Land Registry,Land Registry,22/05/2014,Corp Procurement,Travel & Subsistence General Duty,Redfern Travel Ltd,Large,1013360,-41.95,Travel & Subsistence General Duty,Administration
Land Registry,Land Registry,22/05/2014,HR,Travel & Subsistence General Duty,Redfern Travel Ltd,Large,1013360,-75.57,Travel & Subsistence General Duty,Administration
Land Registry,Land Registry,22/05/2014,Corp Procurement,Travel & Subsistence General Duty,Redfern Travel Ltd,Large,1013360,-41.95,Travel & Subsistence General Duty,Administration
Land Registry,Land Registry,22/05/2014,Commercial & Customer Strategy & Performance,Travel & Subsistence General Duty,Redfern Travel Ltd,Large,1013360,-157.93,Travel & Subsistence General Duty,Administration
Land Registry,Land Registry,22/05/2014,Wales Office,Travel & Subsistence General Duty,Redfern Travel Ltd,Large,1013360,-245.26,Travel & Subsistence General Duty,Administration
Land Registry,Land Registry,22/05/2014,Commercial Director,Travel & Subsistence General Duty,Redfern Travel Ltd,Large,1013360,-92.05,Travel & Subsistence General Duty,Administration
Land Registry,Land Registry,22/05/2014,Employee & Management Support Manager,Travel & Subsistence General Duty,Redfern Travel Ltd,Large,1013360,-60.34,Travel & Subsistence General Duty,Administration
Land Registry,Land Registry,22/05/2014,Commercial & Customer Strategy & Performance,Travel & Subsistence General Duty,Redfern Travel Ltd,Large,1013360,-149.14,Travel & Subsistence General Duty,Administration
Land Registry,Land Registry,22/05/2014,International Unit,Travel & Subsistence General Duty,Redfern Travel Ltd,Large,1013360,-48.93,Travel & Subsistence General Duty,Administration
Land Registry,Land Registry,22/05/2014,HR,Travel & Subsistence General Duty,Redfern Travel Ltd,Large,1013360,-49.78,Travel & Subsistence General Duty,Administration
Land Registry,Land Registry,22/05/2014,Dir: (Statutory) Commercial & Customer,Travel & Subsistence General Duty,Redfern Travel Ltd,Large,1013360,-24.07,Travel & Subsistence General Duty,Administration
Land Registry,Land Registry,22/05/2014,Prog: e-Enablement,Travel & Subsistence General Duty,Redfern Travel Ltd,Large,1013360,184.11,Travel & Subsistence General Duty,Administration
Land Registry,Land Registry,22/05/2014,Dir: HR,Travel & Subsistence General Duty,Redfern Travel Ltd,Large,1013360,1.56,Travel & Subsistence General Duty,Administration
Land Registry,Land Registry,22/05/2014,Prog: e-Enablement,Travel & Subsistence General Duty,Redfern Travel Ltd,Large,1013360,34.87,Travel & Subsistence General Duty,Administration
Land Registry,Land Registry,22/05/2014,Dir: HR,Travel & Subsistence General Duty,Redfern Travel Ltd,Large,1013360,88.57,Travel & Subsistence General Duty,Administration
Land Registry,Land Registry,22/05/2014,Prog: IS,Travel & Subsistence General Duty,Redfern Travel Ltd,Large,1013360,1.56,Travel & Subsistence General Duty,Administration
Land Registry,Land Registry,22/05/2014,Dir: HR,Travel & Subsistence General Duty,Redfern Travel Ltd,Large,1013360,38.99,Travel & Subsistence General Duty,Administration
Land Registry,Land Registry,22/05/2014,Prog: e-Enablement,Travel & Subsistence General Duty,Redfern Travel Ltd,Large,1013360,125.62,Travel & Subsistence General Duty,Administration
Land Registry,Land Registry,22/05/2014,Dir: Finance,Travel & Subsistence General Duty,Redfern Travel Ltd,Large,1013360,299.97,Travel & Subsistence General Duty,Administration
Land Registry,Land Registry,22/05/2014,Dir: Operations,Travel & Subsistence General Duty,Redfern Travel Ltd,Large,1013360,127.31,Travel & Subsistence General Duty,Administration
Land Registry,Land Registry,22/05/2014,Prog: e-Enablement,Travel & Subsistence General Duty,Redfern Travel Ltd,Large,1013360,79.99,Travel & Subsistence General Duty,Administration
Land Registry,Land Registry,22/05/2014,Dir: HR,Travel & Subsistence General Duty,Redfern Travel Ltd,Large,1013360,72.99,Travel & Subsistence General Duty,Administration
Land Registry,Land Registry,22/05/2014,Dir: Finance,Travel & Subsistence General Duty,Redfern Travel Ltd,Large,1013360,163.04,Travel & Subsistence General Duty,Administration
Land Registry,Land Registry,22/05/2014,Prog: e-Enablement,Travel & Subsistence General Duty,Redfern Travel Ltd,Large,1013360,177.12,Travel & Subsistence General Duty,Administration
Land Registry,Land Registry,22/05/2014,Dir: Finance,Travel & Subsistence General Duty,Redfern Travel Ltd,Large,1013360,66.95,Travel & Subsistence General Duty,Administration
Land Registry,Land Registry,22/05/2014,Prog: e-Enablement,Travel & Subsistence General Duty,Redfern Travel Ltd,Large,1013360,198.56,Travel & Subsistence General Duty,Administration
Land Registry,Land Registry,22/05/2014,Dir: Finance,Travel & Subsistence General Duty,Redfern Travel Ltd,Large,1013360,120.75,Travel & Subsistence General Duty,Administration
Land Registry,Land Registry,22/05/2014,Dir: Operations,Travel & Subsistence General Duty,Redfern Travel Ltd,Large,1013360,35.28,Travel & Subsistence General Duty,Administration
Land Registry,Land Registry,22/05/2014,Dir: HR,Travel & Subsistence General Duty,Redfern Travel Ltd,Large,1013360,136.36,Travel & Subsistence General Duty,Administration
Land Registry,Land Registry,22/05/2014,Prog: e-Enablement,Travel & Subsistence General Duty,Redfern Travel Ltd,Large,1013360,234.18,Travel & Subsistence General Duty,Administration
Land Registry,Land Registry,22/05/2014,Dir: HR,Travel & Subsistence General Duty,Redfern Travel Ltd,Large,1013360,146.99,Travel & Subsistence General Duty,Administration
Land Registry,Land Registry,22/05/2014,Dir: Finance,Travel & Subsistence General Duty,Redfern Travel Ltd,Large,1013360,123.92,Travel & Subsistence General Duty,Administration
Land Registry,Land Registry,22/05/2014,Prog: e-Enablement,Travel & Subsistence General Duty,Redfern Travel Ltd,Large,1013360,46.4,Travel & Subsistence General Duty,Administration
Land Registry,Land Registry,22/05/2014,Dir: Finance,Travel & Subsistence General Duty,Redfern Travel Ltd,Large,1013360,144.41,Travel & Subsistence General Duty,Administration
Land Registry,Land Registry,22/05/2014,Prog: e-Enablement,Travel & Subsistence General Duty,Redfern Travel Ltd,Large,1013360,471.11,Travel & Subsistence General Duty,Administration
Land Registry,Land Registry,22/05/2014,Dir: Finance,Travel & Subsistence General Duty,Redfern Travel Ltd,Large,1013360,293.64,Travel & Subsistence General Duty,Administration
Land Registry,Land Registry,22/05/2014,Dir: Operations,Travel & Subsistence General Duty,Redfern Travel Ltd,Large,1013360,72.99,Travel & Subsistence General Duty,Administration
Land Registry,Land Registry,22/05/2014,Dir: Finance,Travel & Subsistence General Duty,Redfern Travel Ltd,Large,1013360,403.29,Travel & Subsistence General Duty,Administration
Land Registry,Land Registry,22/05/2014,Prog: e-Enablement,Travel & Subsistence General Duty,Redfern Travel Ltd,Large,1013360,365,Travel & Subsistence General Duty,Administration
Land Registry,Land Registry,22/05/2014,Dir: Finance,Travel & Subsistence General Duty,Redfern Travel Ltd,Large,1013360,315.13,Travel & Subsistence General Duty,Administration
Land Registry,Land Registry,22/05/2014,Dir: HR,Travel & Subsistence General Duty,Redfern Travel Ltd,Large,1013360,70.98,Travel & Subsistence General Duty,Administration
Land Registry,Land Registry,22/05/2014,Dir: Finance,Travel & Subsistence General Duty,Redfern Travel Ltd,Large,1013360,71.67,Travel & Subsistence General Duty,Administration
Land Registry,Land Registry,22/05/2014,Dir: HR,Travel & Subsistence General Duty,Redfern Travel Ltd,Large,1013360,71.7,Travel & Subsistence General Duty,Administration
Land Registry,Land Registry,22/05/2014,Dir: Operations,Travel & Subsistence General Duty,Redfern Travel Ltd,Large,1013360,161.64,Travel & Subsistence General Duty,Administration
Land Registry,Land Registry,22/05/2014,Prog: e-Enablement,Travel & Subsistence General Duty,Redfern Travel Ltd,Large,1013360,13.43,Travel & Subsistence General Duty,Administration
Land Registry,Land Registry,22/05/2014,Customer Services,Travel & Subsistence General Duty,Redfern Travel Ltd,Large,1013360,60.94,Travel & Subsistence General Duty,Administration
Land Registry,Land Registry,22/05/2014,International Unit,Travel & Subsistence General Duty,Redfern Travel Ltd,Large,1013360,346.88,Travel & Subsistence General Duty,Administration
Land Registry,Land Registry,22/05/2014,Marketing Services Team,Travel & Subsistence General Duty,Redfern Travel Ltd,Large,1013360,0.45,Travel & Subsistence General Duty,Administration
Land Registry,Land Registry,22/05/2014,Commercial & Customer Strategy & Performance,Travel & Subsistence General Duty,Redfern Travel Ltd,Large,1013360,71.7,Travel & Subsistence General Duty,Administration
Land Registry,Land Registry,22/05/2014,Business Development,Travel & Subsistence General Duty,Redfern Travel Ltd,Large,1013360,374.25,Travel & Subsistence General Duty,Administration
Land Registry,Land Registry,22/05/2014,Customer Services,Travel & Subsistence General Duty,Redfern Travel Ltd,Large,1013360,-73.13,Travel & Subsistence General Duty,Administration
Land Registry,Land Registry,22/05/2014,Product Development & Management,Travel & Subsistence General Duty,Redfern Travel Ltd,Large,1013360,276.64,Travel & Subsistence General Duty,Administration
Land Registry,Land Registry,22/05/2014,International Unit,Travel & Subsistence General Duty,Redfern Travel Ltd,Large,1013360,-416.26,Travel & Subsistence General Duty,Administration
Land Registry,Land Registry,22/05/2014,Marketing Services Team,Travel & Subsistence General Duty,Redfern Travel Ltd,Large,1013360,-0.54,Travel & Subsistence General Duty,Administration
Land Registry,Land Registry,22/05/2014,Product Development & Management,Travel & Subsistence General Duty,Redfern Travel Ltd,Large,1013360,-331.96,Travel & Subsistence General Duty,Administration
Land Registry,Land Registry,22/05/2014,Director of Information Systems,Travel & Subsistence General Duty,Redfern Travel Ltd,Large,1013360,0.5,Travel & Subsistence General Duty,Administration
Land Registry,Land Registry,22/05/2014,Central Facilities Management Team,Travel & Subsistence General Duty,Redfern Travel Ltd,Large,1013360,229.11,Travel & Subsistence General Duty,Administration
Land Registry,Land Registry,22/05/2014,Croydon Office,Travel & Subsistence General Duty,Redfern Travel Ltd,Large,1013360,37.71,Travel & Subsistence General Duty,Administration
Land Registry,Land Registry,22/05/2014,LR Sports Council,Travel & Subsistence General Duty,Redfern Travel Ltd,Large,1013360,77.74,Travel & Subsistence General Duty,Administration
Land Registry,Land Registry,22/05/2014,Corporate Legal Services,Travel & Subsistence General Duty,Redfern Travel Ltd,Large,1013360,53.41,Travel & Subsistence General Duty,Administration
Land Registry,Land Registry,22/05/2014,LR Sports Council,Travel & Subsistence General Duty,Redfern Travel Ltd,Large,1013360,41.45,Travel & Subsistence General Duty,Administration
Land Registry,Land Registry,22/05/2014,Property Asset Management Group,Travel & Subsistence General Duty,Redfern Travel Ltd,Large,1013360,1.56,Travel & Subsistence General Duty,Administration
Land Registry,Land Registry,22/05/2014,Central Facilities Management Team,Travel & Subsistence General Duty,Redfern Travel Ltd,Large,1013360,1.56,Travel & Subsistence General Duty,Administration
Land Registry,Land Registry,22/05/2014,International Unit,Travel & Subsistence General Duty,Redfern Travel Ltd,Large,1013360,2.29,Travel & Subsistence General Duty,Administration
Land Registry,Land Registry,22/05/2014,Central Operations Group,Travel & Subsistence General Duty,Redfern Travel Ltd,Large,1013360,100.47,Travel & Subsistence General Duty,Administration
Land Registry,Land Registry,22/05/2014,Chief Executives Office,Travel & Subsistence General Duty,Redfern Travel Ltd,Large,1013360,68.54,Travel & Subsistence General Duty,Administration
Land Registry,Land Registry,22/05/2014,HR,Travel & Subsistence General Duty,Redfern Travel Ltd,Large,1013360,1.56,Travel & Subsistence General Duty,Administration
Land Registry,Land Registry,22/05/2014,Central Facilities Management Team,Travel & Subsistence General Duty,Redfern Travel Ltd,Large,1013360,1.56,Travel & Subsistence General Duty,Administration
Land Registry,Land Registry,22/05/2014,Research & Data Mining,Travel & Subsistence General Duty,Redfern Travel Ltd,Large,1013360,11.95,Travel & Subsistence General Duty,Administration
Land Registry,Land Registry,22/05/2014,Croydon Office,Travel & Subsistence General Duty,Redfern Travel Ltd,Large,1013360,1.56,Travel & Subsistence General Duty,Administration
Land Registry,Land Registry,22/05/2014,Property Asset Management Group,Travel & Subsistence General Duty,Redfern Travel Ltd,Large,1013360,1.56,Travel & Subsistence General Duty,Administration
Land Registry,Land Registry,22/05/2014,Central Facilities Management Team,Travel & Subsistence General Duty,Redfern Travel Ltd,Large,1013360,3.12,Travel & Subsistence General Duty,Administration
Land Registry,Land Registry,22/05/2014,HR,Travel & Subsistence General Duty,Redfern Travel Ltd,Large,1013360,20.26,Travel & Subsistence General Duty,Administration
Land Registry,Land Registry,22/05/2014,Governance & Policy,Travel & Subsistence General Duty,Redfern Travel Ltd,Large,1013360,124.28,Travel & Subsistence General Duty,Administration
Land Registry,Land Registry,22/05/2014,Property Asset Management Group,Travel & Subsistence General Duty,Redfern Travel Ltd,Large,1013360,163.93,Travel & Subsistence General Duty,Administration
Land Registry,Land Registry,22/05/2014,Internal Solutions Group,Travel & Subsistence General Duty,Redfern Travel Ltd,Large,1013360,1.56,Travel & Subsistence General Duty,Administration
Land Registry,Land Registry,22/05/2014,HR,Travel & Subsistence General Duty,Redfern Travel Ltd,Large,1013360,12.48,Travel & Subsistence General Duty,Administration
Land Registry,Land Registry,22/05/2014,Central Operations Group,Travel & Subsistence General Duty,Redfern Travel Ltd,Large,1013360,158.05,Travel & Subsistence General Duty,Administration
Land Registry,Land Registry,22/05/2014,Corp Procurement,Travel & Subsistence General Duty,Redfern Travel Ltd,Large,1013360,1.56,Travel & Subsistence General Duty,Administration
Land Registry,Land Registry,22/05/2014,Central Operations Group,Travel & Subsistence General Duty,Redfern Travel Ltd,Large,1013360,31.62,Travel & Subsistence General Duty,Administration
Land Registry,Land Registry,22/05/2014,Internal Solutions Group,Travel & Subsistence General Duty,Redfern Travel Ltd,Large,1013360,1.56,Travel & Subsistence General Duty,Administration
Land Registry,Land Registry,22/05/2014,Local Lawyer Group,Travel & Subsistence General Duty,Redfern Travel Ltd,Large,1013360,58.39,Travel & Subsistence General Duty,Administration
Land Registry,Land Registry,22/05/2014,Corporate Legal Services,Travel & Subsistence General Duty,Redfern Travel Ltd,Large,1013360,65.83,Travel & Subsistence General Duty,Administration
Land Registry,Land Registry,22/05/2014,Weymouth Office,Travel & Subsistence General Duty,Redfern Travel Ltd,Large,1013360,49.64,Travel & Subsistence General Duty,Administration
Land Registry,Land Registry,22/05/2014,HR,Travel & Subsistence General Duty,Redfern Travel Ltd,Large,1013360,67.48,Travel & Subsistence General Duty,Administration
Land Registry,Land Registry,22/05/2014,Internal Solutions Group,Travel & Subsistence General Duty,Redfern Travel Ltd,Large,1013360,47.67,Travel & Subsistence General Duty,Administration
Land Registry,Land Registry,22/05/2014,HR,Travel & Subsistence General Duty,Redfern Travel Ltd,Large,1013360,164.87,Travel & Subsistence General Duty,Administration
Land Registry,Land Registry,22/05/2014,Fylde Office,Travel & Subsistence General Duty,Redfern Travel Ltd,Large,1013360,196.77,Travel & Subsistence General Duty,Administration
Land Registry,Land Registry,22/05/2014,Governance & Policy,Travel & Subsistence General Duty,Redfern Travel Ltd,Large,1013360,1.56,Travel & Subsistence General Duty,Administration
Land Registry,Land Registry,22/05/2014,Central Facilities Management Team,Travel & Subsistence General Duty,Redfern Travel Ltd,Large,1013360,63.86,Travel & Subsistence General Duty,Administration
Land Registry,Land Registry,22/05/2014,Governance & Policy,Travel & Subsistence General Duty,Redfern Travel Ltd,Large,1013360,124.86,Travel & Subsistence General Duty,Administration
Land Registry,Land Registry,22/05/2014,HR,Travel & Subsistence General Duty,Redfern Travel Ltd,Large,1013360,1.56,Travel & Subsistence General Duty,Administration
Land Registry,Land Registry,22/05/2014,International Unit,Travel & Subsistence General Duty,Redfern Travel Ltd,Large,1013360,117,Travel & Subsistence General Duty,Administration
Land Registry,Land Registry,22/05/2014,Survey & Mapping Services,Travel & Subsistence General Duty,Redfern Travel Ltd,Large,1013360,56.89,Travel & Subsistence General Duty,Administration
Land Registry,Land Registry,22/05/2014,Internal Audit,Travel & Subsistence General Duty,Redfern Travel Ltd,Large,1013360,61.14,Travel & Subsistence General Duty,Administration
Land Registry,Land Registry,22/05/2014,HR,Travel & Subsistence General Duty,Redfern Travel Ltd,Large,1013360,1.56,Travel & Subsistence General Duty,Administration
Land Registry,Land Registry,22/05/2014,Director of Information Systems,Travel & Subsistence General Duty,Redfern Travel Ltd,Large,1013360,222.38,Travel & Subsistence General Duty,Administration
Land Registry,Land Registry,22/05/2014,Local Lawyer Group,Travel & Subsistence General Duty,Redfern Travel Ltd,Large,1013360,81.71,Travel & Subsistence General Duty,Administration
Land Registry,Land Registry,22/05/2014,Central Operations Group,Travel & Subsistence General Duty,Redfern Travel Ltd,Large,1013360,81.7,Travel & Subsistence General Duty,Administration
Land Registry,Land Registry,22/05/2014,Technical Assurance Group,Travel & Subsistence General Duty,Redfern Travel Ltd,Large,1013360,67.96,Travel & Subsistence General Duty,Administration
Land Registry,Land Registry,22/05/2014,International Unit,Travel & Subsistence General Duty,Redfern Travel Ltd,Large,1013360,51.69,Travel & Subsistence General Duty,Administration
Land Registry,Land Registry,22/05/2014,Internal Solutions Group,Travel & Subsistence General Duty,Redfern Travel Ltd,Large,1013360,143.63,Travel & Subsistence General Duty,Administration
Land Registry,Land Registry,22/05/2014,International Unit,Travel & Subsistence General Duty,Redfern Travel Ltd,Large,1013360,1754.09,Travel & Subsistence General Duty,Administration
Land Registry,Land Registry,22/05/2014,Central Operations Group,Travel & Subsistence General Duty,Redfern Travel Ltd,Large,1013360,249.6,Travel & Subsistence General Duty,Administration
Land Registry,Land Registry,22/05/2014,Croydon Office,Travel & Subsistence General Duty,Redfern Travel Ltd,Large,1013360,7.52,Travel & Subsistence General Duty,Administration
Land Registry,Land Registry,22/05/2014,Central Facilities Management Team,Travel & Subsistence General Duty,Redfern Travel Ltd,Large,1013360,72.99,Travel & Subsistence General Duty,Administration
Land Registry,Land Registry,22/05/2014,Business Development,Travel & Subsistence General Duty,Redfern Travel Ltd,Large,1013360,211.01,Travel & Subsistence General Duty,Administration
Land Registry,Land Registry,22/05/2014,Property Asset Management Group,Travel & Subsistence General Duty,Redfern Travel Ltd,Large,1013360,71.48,Travel & Subsistence General Duty,Administration
Land Registry,Land Registry,22/05/2014,Central Facilities Management Team,Travel & Subsistence General Duty,Redfern Travel Ltd,Large,1013360,56.89,Travel & Subsistence General Duty,Administration
Land Registry,Land Registry,22/05/2014,HR,Travel & Subsistence General Duty,Redfern Travel Ltd,Large,1013360,222.38,Travel & Subsistence General Duty,Administration
Land Registry,Land Registry,22/05/2014,Chief Executives Office,Travel & Subsistence General Duty,Redfern Travel Ltd,Large,1013360,322.98,Travel & Subsistence General Duty,Administration
Land Registry,Land Registry,22/05/2014,Internal Solutions Group,Travel & Subsistence General Duty,Redfern Travel Ltd,Large,1013360,143.63,Travel & Subsistence General Duty,Administration
Land Registry,Land Registry,22/05/2014,HR,Travel & Subsistence General Duty,Redfern Travel Ltd,Large,1013360,75.27,Travel & Subsistence General Duty,Administration
Land Registry,Land Registry,22/05/2014,Property Asset Management Group,Travel & Subsistence General Duty,Redfern Travel Ltd,Large,1013360,158.52,Travel & Subsistence General Duty,Administration
Land Registry,Land Registry,22/05/2014,Product Development & Management,Travel & Subsistence General Duty,Redfern Travel Ltd,Large,1013360,157.68,Travel & Subsistence General Duty,Administration
Land Registry,Land Registry,22/05/2014,HR,Travel & Subsistence General Duty,Redfern Travel Ltd,Large,1013360,123.88,Travel & Subsistence General Duty,Administration
Land Registry,Land Registry,22/05/2014,Product Development & Management,Travel & Subsistence General Duty,Redfern Travel Ltd,Large,1013360,120.5,Travel & Subsistence General Duty,Administration
Land Registry,Land Registry,22/05/2014,Governance & Policy,Travel & Subsistence General Duty,Redfern Travel Ltd,Large,1013360,306.75,Travel & Subsistence General Duty,Administration
Land Registry,Land Registry,22/05/2014,HR,Travel & Subsistence General Duty,Redfern Travel Ltd,Large,1013360,24.24,Travel & Subsistence General Duty,Administration
Land Registry,Land Registry,22/05/2014,Property Asset Management Group,Travel & Subsistence General Duty,Redfern Travel Ltd,Large,1013360,96.2,Travel & Subsistence General Duty,Administration
Land Registry,Land Registry,22/05/2014,LR Board & Board Chair,Travel & Subsistence General Duty,Redfern Travel Ltd,Large,1013360,137.37,Travel & Subsistence General Duty,Administration
Land Registry,Land Registry,22/05/2014,HR,Travel & Subsistence General Duty,Redfern Travel Ltd,Large,1013360,46.8,Travel & Subsistence General Duty,Administration
Land Registry,Land Registry,22/05/2014,Business Development,Travel & Subsistence General Duty,Redfern Travel Ltd,Large,1013360,1.56,Travel & Subsistence General Duty,Administration
Land Registry,Land Registry,22/05/2014,HR,Travel & Subsistence General Duty,Redfern Travel Ltd,Large,1013360,116.56,Travel & Subsistence General Duty,Administration
Land Registry,Land Registry,22/05/2014,Chief Executives Office,Travel & Subsistence General Duty,Redfern Travel Ltd,Large,1013360,102.16,Travel & Subsistence General Duty,Administration
Land Registry,Land Registry,22/05/2014,HR,Travel & Subsistence General Duty,Redfern Travel Ltd,Large,1013360,1.56,Travel & Subsistence General Duty,Administration
Land Registry,Land Registry,22/05/2014,Corporate Legal Services,Travel & Subsistence General Duty,Redfern Travel Ltd,Large,1013360,52.54,Travel & Subsistence General Duty,Administration
Land Registry,Land Registry,22/05/2014,HR,Travel & Subsistence General Duty,Redfern Travel Ltd,Large,1013360,1.56,Travel & Subsistence General Duty,Administration
Land Registry,Land Registry,22/05/2014,Property Asset Management Group,Travel & Subsistence General Duty,Redfern Travel Ltd,Large,1013360,158.52,Travel & Subsistence General Duty,Administration
Land Registry,Land Registry,22/05/2014,Commercial Director,Travel & Subsistence General Duty,Redfern Travel Ltd,Large,1013360,100.25,Travel & Subsistence General Duty,Administration
Land Registry,Land Registry,22/05/2014,International Unit,Travel & Subsistence General Duty,Redfern Travel Ltd,Large,1013360,66.6,Travel & Subsistence General Duty,Administration
Land Registry,Land Registry,22/05/2014,Survey & Mapping Services,Travel & Subsistence General Duty,Redfern Travel Ltd,Large,1013360,127.6,Travel & Subsistence General Duty,Administration
Land Registry,Land Registry,22/05/2014,Commercial & Customer Strategy & Performance,Travel & Subsistence General Duty,Redfern Travel Ltd,Large,1013360,155.49,Travel & Subsistence General Duty,Administration
Land Registry,Land Registry,22/05/2014,HR,Travel & Subsistence General Duty,Redfern Travel Ltd,Large,1013360,164.38,Travel & Subsistence General Duty,Administration
Land Registry,Land Registry,22/05/2014,Central Operations Group,Travel & Subsistence General Duty,Redfern Travel Ltd,Large,1013360,73.62,Travel & Subsistence General Duty,Administration
Land Registry,Land Registry,22/05/2014,International Unit,Travel & Subsistence General Duty,Redfern Travel Ltd,Large,1013360,1.56,Travel & Subsistence General Duty,Administration
Land Registry,Land Registry,22/05/2014,HR,Travel & Subsistence General Duty,Redfern Travel Ltd,Large,1013360,68.73,Travel & Subsistence General Duty,Administration
Land Registry,Land Registry,22/05/2014,Director of Legal Services,Travel & Subsistence General Duty,Redfern Travel Ltd,Large,1013360,203.21,Travel & Subsistence General Duty,Administration
Land Registry,Land Registry,22/05/2014,Internal Audit,Travel & Subsistence General Duty,Redfern Travel Ltd,Large,1013360,197.83,Travel & Subsistence General Duty,Administration
Land Registry,Land Registry,22/05/2014,Director of Information Systems,Travel & Subsistence General Duty,Redfern Travel Ltd,Large,1013360,11.86,Travel & Subsistence General Duty,Administration
Land Registry,Land Registry,22/05/2014,Central Facilities Management Team,Travel & Subsistence General Duty,Redfern Travel Ltd,Large,1013360,465.78,Travel & Subsistence General Duty,Administration
Land Registry,Land Registry,22/05/2014,HR,Travel & Subsistence General Duty,Redfern Travel Ltd,Large,1013360,150.32,Travel & Subsistence General Duty,Administration
Land Registry,Land Registry,22/05/2014,Central Facilities Management Team,Travel & Subsistence General Duty,Redfern Travel Ltd,Large,1013360,67.18,Travel & Subsistence General Duty,Administration
Land Registry,Land Registry,22/05/2014,HR,Travel & Subsistence General Duty,Redfern Travel Ltd,Large,1013360,67.29,Travel & Subsistence General Duty,Administration
Land Registry,Land Registry,22/05/2014,Projects and Programme Centre,Travel & Subsistence General Duty,Redfern Travel Ltd,Large,1013360,62.6,Travel & Subsistence General Duty,Administration
Land Registry,Land Registry,22/05/2014,Employee & Management Support Manager,Travel & Subsistence General Duty,Redfern Travel Ltd,Large,1013360,11.85,Travel & Subsistence General Duty,Administration
Land Registry,Land Registry,22/05/2014,Central Facilities Management Team,Travel & Subsistence General Duty,Redfern Travel Ltd,Large,1013360,78.3,Travel & Subsistence General Duty,Administration
Land Registry,Land Registry,22/05/2014,Central Operations Group,Travel & Subsistence General Duty,Redfern Travel Ltd,Large,1013360,83.08,Travel & Subsistence General Duty,Administration
Land Registry,Land Registry,22/05/2014,Commercial Director,Travel & Subsistence General Duty,Redfern Travel Ltd,Large,1013360,155.49,Travel & Subsistence General Duty,Administration
Land Registry,Land Registry,22/05/2014,Corp Procurement,Travel & Subsistence General Duty,Redfern Travel Ltd,Large,1013360,194,Travel & Subsistence General Duty,Administration
Land Registry,Land Registry,22/05/2014,Property Asset Management Group,Travel & Subsistence General Duty,Redfern Travel Ltd,Large,1013360,144.76,Travel & Subsistence General Duty,Administration
Land Registry,Land Registry,22/05/2014,HR,Travel & Subsistence General Duty,Redfern Travel Ltd,Large,1013360,120.56,Travel & Subsistence General Duty,Administration
Land Registry,Land Registry,22/05/2014,Business Development,Travel & Subsistence General Duty,Redfern Travel Ltd,Large,1013360,203.21,Travel & Subsistence General Duty,Administration
Land Registry,Land Registry,22/05/2014,Central Facilities Management Team,Travel & Subsistence General Duty,Redfern Travel Ltd,Large,1013360,43.27,Travel & Subsistence General Duty,Administration
Land Registry,Land Registry,22/05/2014,Chief Executives Office,Travel & Subsistence General Duty,Redfern Travel Ltd,Large,1013360,163.1,Travel & Subsistence General Duty,Administration
Land Registry,Land Registry,22/05/2014,Central Facilities Management Team,Travel & Subsistence General Duty,Redfern Travel Ltd,Large,1013360,88.2,Travel & Subsistence General Duty,Administration
Land Registry,Land Registry,22/05/2014,Dir: Operations,Travel & Subsistence General Duty,Redfern Travel Ltd,Large,1013360,72.99,Travel & Subsistence General Duty,Administration
Land Registry,Land Registry,22/05/2014,Chief Executives Office,Travel & Subsistence General Duty,Redfern Travel Ltd,Large,1013360,63.17,Travel & Subsistence General Duty,Administration
Land Registry,Land Registry,22/05/2014,Dir: Finance,Travel & Subsistence General Duty,Redfern Travel Ltd,Large,1013360,96.09,Travel & Subsistence General Duty,Administration
Land Registry,Land Registry,22/05/2014,Dir: Operations,Travel & Subsistence General Duty,Redfern Travel Ltd,Large,1013360,134.12,Travel & Subsistence General Duty,Administration
Land Registry,Land Registry,22/05/2014,Prog: e-Enablement,Travel & Subsistence General Duty,Redfern Travel Ltd,Large,1013360,119.99,Travel & Subsistence General Duty,Administration
Land Registry,Land Registry,22/05/2014,Dir: HR,Travel & Subsistence General Duty,Redfern Travel Ltd,Large,1013360,136.36,Travel & Subsistence General Duty,Administration
Land Registry,Land Registry,22/05/2014,Prog: e-Enablement,Travel & Subsistence General Duty,Redfern Travel Ltd,Large,1013360,99.59,Travel & Subsistence General Duty,Administration
Land Registry,Land Registry,22/05/2014,Dir: HR,Travel & Subsistence General Duty,Redfern Travel Ltd,Large,1013360,68.46,Travel & Subsistence General Duty,Administration
Land Registry,Land Registry,22/05/2014,Prog: e-Enablement,Travel & Subsistence General Duty,Redfern Travel Ltd,Large,1013360,164.13,Travel & Subsistence General Duty,Administration
Land Registry,Land Registry,22/05/2014,Dir: HR,Travel & Subsistence General Duty,Redfern Travel Ltd,Large,1013360,49.9,Travel & Subsistence General Duty,Administration
Land Registry,Land Registry,22/05/2014,Prog: e-Enablement,Travel & Subsistence General Duty,Redfern Travel Ltd,Large,1013360,83.97,Travel & Subsistence General Duty,Administration
Land Registry,Land Registry,22/05/2014,Dir: HR,Travel & Subsistence General Duty,Redfern Travel Ltd,Large,1013360,72.99,Travel & Subsistence General Duty,Administration
Land Registry,Land Registry,22/05/2014,Dir: Finance,Travel & Subsistence General Duty,Redfern Travel Ltd,Large,1013360,58.99,Travel & Subsistence General Duty,Administration
Land Registry,Land Registry,22/05/2014,Dir: HR,Travel & Subsistence General Duty,Redfern Travel Ltd,Large,1013360,72.99,Travel & Subsistence General Duty,Administration
Land Registry,Land Registry,22/05/2014,Dir: Finance,Travel & Subsistence General Duty,Redfern Travel Ltd,Large,1013360,73.71,Travel & Subsistence General Duty,Administration
Land Registry,Land Registry,22/05/2014,Prog: e-Enablement,Travel & Subsistence General Duty,Redfern Travel Ltd,Large,1013360,77.01,Travel & Subsistence General Duty,Administration
Land Registry,Land Registry,22/05/2014,Dir: HR,Travel & Subsistence General Duty,Redfern Travel Ltd,Large,1013360,72.99,Travel & Subsistence General Duty,Administration
Land Registry,Land Registry,22/05/2014,Prog: e-Enablement,Travel & Subsistence General Duty,Redfern Travel Ltd,Large,1013360,368.26,Travel & Subsistence General Duty,Administration
Land Registry,Land Registry,22/05/2014,Dir: Finance,Travel & Subsistence General Duty,Redfern Travel Ltd,Large,1013360,150,Travel & Subsistence General Duty,Administration
Land Registry,Land Registry,22/05/2014,Prog: e-Enablement,Travel & Subsistence General Duty,Redfern Travel Ltd,Large,1013360,87.67,Travel & Subsistence General Duty,Administration
Land Registry,Land Registry,22/05/2014,Dir: Operations,Travel & Subsistence General Duty,Redfern Travel Ltd,Large,1013360,191.7,Travel & Subsistence General Duty,Administration
Land Registry,Land Registry,22/05/2014,Prog: e-Enablement,Travel & Subsistence General Duty,Redfern Travel Ltd,Large,1013360,175.34,Travel & Subsistence General Duty,Administration
Land Registry,Land Registry,22/05/2014,Dir: (Add Value) Commercial & Customer,Travel & Subsistence General Duty,Redfern Travel Ltd,Large,1013360,101.16,Travel & Subsistence General Duty,Administration
Land Registry,Land Registry,22/05/2014,Prog: e-Enablement,Travel & Subsistence General Duty,Redfern Travel Ltd,Large,1013360,123.03,Travel & Subsistence General Duty,Administration
Land Registry,Land Registry,22/05/2014,Dir: HR,Travel & Subsistence General Duty,Redfern Travel Ltd,Large,1013360,1.56,Travel & Subsistence General Duty,Administration
Land Registry,Land Registry,22/05/2014,Prog: e-Enablement,Travel & Subsistence General Duty,Redfern Travel Ltd,Large,1013360,155.11,Travel & Subsistence General Duty,Administration
Land Registry,Land Registry,22/05/2014,Dir: Operations,Travel & Subsistence General Duty,Redfern Travel Ltd,Large,1013360,253.52,Travel & Subsistence General Duty,Administration
Land Registry,Land Registry,22/05/2014,Dir: HR,Travel & Subsistence General Duty,Redfern Travel Ltd,Large,1013360,80.94,Travel & Subsistence General Duty,Administration
Land Registry,Land Registry,22/05/2014,Prog: e-Enablement,Travel & Subsistence General Duty,Redfern Travel Ltd,Large,1013360,147.81,Travel & Subsistence General Duty,Administration
Land Registry,Land Registry,22/05/2014,Prog: IS,Travel & Subsistence General Duty,Redfern Travel Ltd,Large,1013360,130.33,Travel & Subsistence General Duty,Administration
Land Registry,Land Registry,22/05/2014,Prog: e-Enablement,Travel & Subsistence General Duty,Redfern Travel Ltd,Large,1013360,497.11,Travel & Subsistence General Duty,Administration
Land Registry,Land Registry,22/05/2014,Dir: Finance,Travel & Subsistence General Duty,Redfern Travel Ltd,Large,1013360,95.09,Travel & Subsistence General Duty,Administration
Land Registry,Land Registry,22/05/2014,Prog: IS,Travel & Subsistence General Duty,Redfern Travel Ltd,Large,1013360,1.56,Travel & Subsistence General Duty,Administration
Land Registry,Land Registry,22/05/2014,Dir: Finance,Travel & Subsistence General Duty,Redfern Travel Ltd,Large,1013360,1.56,Travel & Subsistence General Duty,Administration
Land Registry,Land Registry,22/05/2014,Dir: Operations,Travel & Subsistence General Duty,Redfern Travel Ltd,Large,1013360,996.48,Travel & Subsistence General Duty,Administration
Land Registry,Land Registry,22/05/2014,Prog: e-Enablement,Travel & Subsistence General Duty,Redfern Travel Ltd,Large,1013360,129.16,Travel & Subsistence General Duty,Administration
Land Registry,Land Registry,22/05/2014,Dir: HR,Travel & Subsistence General Duty,Redfern Travel Ltd,Large,1013360,209.8,Travel & Subsistence General Duty,Administration
Land Registry,Land Registry,22/05/2014,Prog: e-Enablement,Travel & Subsistence General Duty,Redfern Travel Ltd,Large,1013360,411.11,Travel & Subsistence General Duty,Administration
Land Registry,Land Registry,22/05/2014,Dir: HR,Travel & Subsistence General Duty,Redfern Travel Ltd,Large,1013360,140.39,Travel & Subsistence General Duty,Administration
Land Registry,Land Registry,22/05/2014,Dir: Finance,Travel & Subsistence General Duty,Redfern Travel Ltd,Large,1013360,1.56,Travel & Subsistence General Duty,Administration
Land Registry,Land Registry,22/05/2014,Dir: Operations,Travel & Subsistence General Duty,Redfern Travel Ltd,Large,1013360,570.51,Travel & Subsistence General Duty,Administration
Land Registry,Land Registry,22/05/2014,Dir: Finance,Travel & Subsistence General Duty,Redfern Travel Ltd,Large,1013360,86.11,Travel & Subsistence General Duty,Administration
Land Registry,Land Registry,22/05/2014,Prog: e-Enablement,Travel & Subsistence General Duty,Redfern Travel Ltd,Large,1013360,212.82,Travel & Subsistence General Duty,Administration
Land Registry,Land Registry,22/05/2014,Dir: HR,Travel & Subsistence General Duty,Redfern Travel Ltd,Large,1013360,279.22,Travel & Subsistence General Duty,Administration
Land Registry,Land Registry,22/05/2014,Prog: e-Enablement,Travel & Subsistence General Duty,Redfern Travel Ltd,Large,1013360,143.63,Travel & Subsistence General Duty,Administration
Land Registry,Land Registry,22/05/2014,Dir: (Statutory) Commercial & Customer,Travel & Subsistence General Duty,Redfern Travel Ltd,Large,1013360,144.41,Travel & Subsistence General Duty,Administration
Land Registry,Land Registry,22/05/2014,Prog: e-Enablement,Travel & Subsistence General Duty,Redfern Travel Ltd,Large,1013360,129.16,Travel & Subsistence General Duty,Administration
Land Registry,Land Registry,22/05/2014,Dir: HR,Travel & Subsistence General Duty,Redfern Travel Ltd,Large,1013360,419.6,Travel & Subsistence General Duty,Administration
Land Registry,Land Registry,22/05/2014,Dir: Finance,Travel & Subsistence General Duty,Redfern Travel Ltd,Large,1013360,11.95,Travel & Subsistence General Duty,Administration
Land Registry,Land Registry,22/05/2014,Prog: e-Enablement,Travel & Subsistence General Duty,Redfern Travel Ltd,Large,1013360,243.73,Travel & Subsistence General Duty,Administration
Land Registry,Land Registry,22/05/2014,Dir: Finance,Travel & Subsistence General Duty,Redfern Travel Ltd,Large,1013360,212.82,Travel & Subsistence General Duty,Administration
Land Registry,Land Registry,22/05/2014,Dir: Operations,Travel & Subsistence General Duty,Redfern Travel Ltd,Large,1013360,498.24,Travel & Subsistence General Duty,Administration
Land Registry,Land Registry,22/05/2014,Dir: HR,Travel & Subsistence General Duty,Redfern Travel Ltd,Large,1013360,10.59,Travel & Subsistence General Duty,Administration
Land Registry,Land Registry,22/05/2014,Prog: IS,Travel & Subsistence General Duty,Redfern Travel Ltd,Large,1013360,1.56,Travel & Subsistence General Duty,Administration
Land Registry,Land Registry,22/05/2014,Prog: e-Enablement,Travel & Subsistence General Duty,Redfern Travel Ltd,Large,1013360,198.58,Travel & Subsistence General Duty,Administration
Land Registry,Land Registry,22/05/2014,Dir: Operations,Travel & Subsistence General Duty,Redfern Travel Ltd,Large,1013360,118.03,Travel & Subsistence General Duty,Administration
Land Registry,Land Registry,22/05/2014,Dir: HR,Travel & Subsistence General Duty,Redfern Travel Ltd,Large,1013360,71.67,Travel & Subsistence General Duty,Administration
Land Registry,Land Registry,22/05/2014,Prog: e-Enablement,Travel & Subsistence General Duty,Redfern Travel Ltd,Large,1013360,98.3,Travel & Subsistence General Duty,Administration
Land Registry,Land Registry,22/05/2014,Dir: Finance,Travel & Subsistence General Duty,Redfern Travel Ltd,Large,1013360,1.56,Travel & Subsistence General Duty,Administration
Land Registry,Land Registry,22/05/2014,Prog: e-Enablement,Travel & Subsistence General Duty,Redfern Travel Ltd,Large,1013360,42.2,Travel & Subsistence General Duty,Administration
Land Registry,Land Registry,22/05/2014,Dir: HR,Travel & Subsistence General Duty,Redfern Travel Ltd,Large,1013360,38.99,Travel & Subsistence General Duty,Administration
Land Registry,Land Registry,22/05/2014,Dir: Operations,Travel & Subsistence General Duty,Redfern Travel Ltd,Large,1013360,22.59,Travel & Subsistence General Duty,Administration
Land Registry,Land Registry,22/05/2014,Prog: IS,Travel & Subsistence General Duty,Redfern Travel Ltd,Large,1013360,76.55,Travel & Subsistence General Duty,Administration
Land Registry,Land Registry,22/05/2014,Dir: HR,Travel & Subsistence General Duty,Redfern Travel Ltd,Large,1013360,38.99,Travel & Subsistence General Duty,Administration
Land Registry,Land Registry,22/05/2014,Dir: Operations,Travel & Subsistence General Duty,Redfern Travel Ltd,Large,1013360,118.03,Travel & Subsistence General Duty,Administration
Land Registry,Land Registry,22/05/2014,Prog: e-Enablement,Travel & Subsistence General Duty,Redfern Travel Ltd,Large,1013360,-8,Travel & Subsistence General Duty,Administration
Land Registry,Land Registry,22/05/2014,Dir: Finance,Travel & Subsistence General Duty,Redfern Travel Ltd,Large,1013360,-65.21,Travel & Subsistence General Duty,Administration
Land Registry,Land Registry,22/05/2014,Dir: HR,Travel & Subsistence General Duty,Redfern Travel Ltd,Large,1013360,-122.3,Travel & Subsistence General Duty,Administration
Land Registry,Land Registry,22/05/2014,Dir: Finance,Travel & Subsistence General Duty,Redfern Travel Ltd,Large,1013360,-16.83,Travel & Subsistence General Duty,Administration
Land Registry,Land Registry,22/05/2014,Prog: e-Enablement,Travel & Subsistence General Duty,Redfern Travel Ltd,Large,1013360,-232.9,Travel & Subsistence General Duty,Administration
Land Registry,Land Registry,22/05/2014,Dir: Finance,Travel & Subsistence General Duty,Redfern Travel Ltd,Large,1013360,-17.99,Travel & Subsistence General Duty,Administration
Land Registry,Land Registry,22/05/2014,Dir: HR,Travel & Subsistence General Duty,Redfern Travel Ltd,Large,1013360,-122.3,Travel & Subsistence General Duty,Administration
Land Registry,Land Registry,22/05/2014,Dir: Finance,Travel & Subsistence General Duty,Redfern Travel Ltd,Large,1013360,-190.69,Travel & Subsistence General Duty,Administration
Land Registry,Land Registry,23/05/2014,Central RFS,RFS Outsourced Services,TNT (UK) Ltd,Large,1013635,74855.52,RFS Outsourced Services,Administration
Land Registry,Land Registry,27/05/2014,Central Facilities Management Team,Hays Document Exchange (DX),DX Network Services Ltd,Large,1014386,460532.31,DX Postage,Administration
Land Registry,Land Registry,27/05/2014,Dir: HR,Rates Payable,City of York Council,Large,482288,21208,Rates Payable,Administration
Land Registry,Land Registry,27/05/2014,Telford Office,Rates Payable,Telford & Wrekin Council,Large,482308,24823,Rates Payable,Administration
Land Registry,Land Registry,27/05/2014,Wales Office,Rates Payable,City & County of Swansea,Large,482286,17265,Rates Payable,Administration
Land Registry,Land Registry,27/05/2014,Governance & Policy,Rates Payable,City of Plymouth,Large,482287,36150,Rates Payable,Administration
Land Registry,Land Registry,27/05/2014,Leicester Office,Rates Payable,Leicester City Council,Large,482298,18075,Rates Payable,Administration
Land Registry,Land Registry,27/05/2014,Gloucester Office,Rates Payable,Gloucester City Council,Large,482294,23980,Rates Payable,Administration
Land Registry,Land Registry,27/05/2014,Nottingham Office,Rates Payable,Nottingham City Council,Large,482299,47477,Rates Payable,Administration
Land Registry,Land Registry,27/05/2014,Coventry Office,Rates Payable,Coventry City Council,Large,482289,44585,Rates Payable,Administration
Land Registry,Land Registry,27/05/2014,Peterborough Office,Rates Payable,Peterborough City Council,Large,482302,2651,Rates Payable,Administration
Land Registry,Land Registry,27/05/2014,Peterborough Office,Rates Payable,Peterborough City Council,Large,482302,2555,Rates Payable,Administration
Land Registry,Land Registry,27/05/2014,Peterborough Office,Rates Payable,Peterborough City Council,Large,482302,2607,Rates Payable,Administration
Land Registry,Land Registry,27/05/2014,Peterborough Office,Rates Payable,Peterborough City Council,Large,482302,2723,Rates Payable,Administration
Land Registry,Land Registry,27/05/2014,Nottingham Office,Rates Payable,Nottingham City Council,Large,482299,24100,Rates Payable,Administration
Land Registry,Land Registry,27/05/2014,Durham Office,Rates Payable,Durham County Council,Large,482290,27956,Rates Payable,Administration
Land Registry,Land Registry,27/05/2014,Fylde Office,Rates Payable,Fylde Borough Council,Large,482293,17955,Rates Payable,Administration
Land Registry,Land Registry,27/05/2014,Governance & Policy,Rates Payable,South Hams District Council,Large,482304,4724,Rates Payable,Administration
Land Registry,Land Registry,27/05/2014,RFS11 - Plymouth,Rates Payable,South Hams District Council,Large,482304,7808,Rates Payable,Administration
Land Registry,Land Registry,27/05/2014,LR Connect Portfolio,Travel & Subsistence General Duty,Redfern Travel Ltd,Large,1013906,144.41,Travel & Subsistence General Duty,Administration
Land Registry,Land Registry,27/05/2014,Projects and Programme Centre,Travel & Subsistence General Duty,Redfern Travel Ltd,Large,1013906,-144.41,Travel & Subsistence General Duty,Administration
Land Registry,Land Registry,27/05/2014,LR Connect Portfolio,Travel & Subsistence General Duty,Redfern Travel Ltd,Large,1013906,136.73,Travel & Subsistence General Duty,Administration
Land Registry,Land Registry,27/05/2014,Projects and Programme Centre,Travel & Subsistence General Duty,Redfern Travel Ltd,Large,1013906,-136.73,Travel & Subsistence General Duty,Administration
Land Registry,Land Registry,27/05/2014,LR Connect Portfolio,Travel & Subsistence General Duty,Redfern Travel Ltd,Large,1013906,47.96,Travel & Subsistence General Duty,Administration
Land Registry,Land Registry,27/05/2014,Projects and Programme Centre,Travel & Subsistence General Duty,Redfern Travel Ltd,Large,1013906,-47.96,Travel & Subsistence General Duty,Administration
Land Registry,Land Registry,27/05/2014,LR Connect Portfolio,Travel & Subsistence General Duty,Redfern Travel Ltd,Large,1013906,67.48,Travel & Subsistence General Duty,Administration
Land Registry,Land Registry,27/05/2014,Projects and Programme Centre,Travel & Subsistence General Duty,Redfern Travel Ltd,Large,1013906,-67.48,Travel & Subsistence General Duty,Administration
Land Registry,Land Registry,27/05/2014,Customer Services,Travel & Subsistence General Duty,Redfern Travel Ltd,Large,1013906,154.25,Travel & Subsistence General Duty,Administration
Land Registry,Land Registry,27/05/2014,International Unit,Travel & Subsistence General Duty,Redfern Travel Ltd,Large,1013906,5.3,Travel & Subsistence General Duty,Administration
Land Registry,Land Registry,27/05/2014,Marketing Services Team,Travel & Subsistence General Duty,Redfern Travel Ltd,Large,1013906,0.85,Travel & Subsistence General Duty,Administration
Land Registry,Land Registry,27/05/2014,Product Development & Management,Travel & Subsistence General Duty,Redfern Travel Ltd,Large,1013906,64.29,Travel & Subsistence General Duty,Administration
Land Registry,Land Registry,27/05/2014,Commercial & Customer Strategy & Performance,Travel & Subsistence General Duty,Redfern Travel Ltd,Large,1013906,-1.55,Travel & Subsistence General Duty,Administration
Land Registry,Land Registry,27/05/2014,Business Development,Travel & Subsistence General Duty,Redfern Travel Ltd,Large,1013906,334.15,Travel & Subsistence General Duty,Administration
Land Registry,Land Registry,27/05/2014,Customer Services,Travel & Subsistence General Duty,Redfern Travel Ltd,Large,1013906,-185.1,Travel & Subsistence General Duty,Administration
Land Registry,Land Registry,27/05/2014,International Unit,Travel & Subsistence General Duty,Redfern Travel Ltd,Large,1013906,-6.36,Travel & Subsistence General Duty,Administration
Land Registry,Land Registry,27/05/2014,Marketing Services Team,Travel & Subsistence General Duty,Redfern Travel Ltd,Large,1013906,-1.02,Travel & Subsistence General Duty,Administration
Land Registry,Land Registry,27/05/2014,Product Development & Management,Travel & Subsistence General Duty,Redfern Travel Ltd,Large,1013906,-77.15,Travel & Subsistence General Duty,Administration
Land Registry,Land Registry,27/05/2014,Commercial & Customer Strategy & Performance,Travel & Subsistence General Duty,Redfern Travel Ltd,Large,1013906,1.86,Travel & Subsistence General Duty,Administration
Land Registry,Land Registry,27/05/2014,Business Development,Travel & Subsistence General Duty,Redfern Travel Ltd,Large,1013906,-178.26,Travel & Subsistence General Duty,Administration
Land Registry,Land Registry,27/05/2014,HR,Travel & Subsistence General Duty,Redfern Travel Ltd,Large,1013906,130.33,Travel & Subsistence General Duty,Administration
Land Registry,Land Registry,27/05/2014,Business Development,Travel & Subsistence General Duty,Redfern Travel Ltd,Large,1013906,59.57,Travel & Subsistence General Duty,Administration
Land Registry,Land Registry,27/05/2014,Central Facilities Management Team,Travel & Subsistence General Duty,Redfern Travel Ltd,Large,1013906,39.01,Travel & Subsistence General Duty,Administration
Land Registry,Land Registry,27/05/2014,Central Operations Group,Travel & Subsistence General Duty,Redfern Travel Ltd,Large,1013906,53.61,Travel & Subsistence General Duty,Administration
Land Registry,Land Registry,27/05/2014,Central Facilities Management Team,Travel & Subsistence General Duty,Redfern Travel Ltd,Large,1013906,136.01,Travel & Subsistence General Duty,Administration
Land Registry,Land Registry,27/05/2014,Property Asset Management Group,Travel & Subsistence General Duty,Redfern Travel Ltd,Large,1013906,163.98,Travel & Subsistence General Duty,Administration
Land Registry,Land Registry,27/05/2014,Central Facilities Management Team,Travel & Subsistence General Duty,Redfern Travel Ltd,Large,1013906,137.83,Travel & Subsistence General Duty,Administration
Land Registry,Land Registry,27/05/2014,Product Development & Management,Travel & Subsistence General Duty,Redfern Travel Ltd,Large,1013906,96.39,Travel & Subsistence General Duty,Administration
Land Registry,Land Registry,27/05/2014,Central Facilities Management Team,Travel & Subsistence General Duty,Redfern Travel Ltd,Large,1013906,78.3,Travel & Subsistence General Duty,Administration
Land Registry,Land Registry,27/05/2014,Product Development & Management,Travel & Subsistence General Duty,Redfern Travel Ltd,Large,1013906,92.94,Travel & Subsistence General Duty,Administration
Land Registry,Land Registry,27/05/2014,IS Service Delivery,Travel & Subsistence General Duty,Redfern Travel Ltd,Large,1013906,1556.64,Travel & Subsistence General Duty,Administration
Land Registry,Land Registry,27/05/2014,Property Asset Management Group,Travel & Subsistence General Duty,Redfern Travel Ltd,Large,1013906,219.29,Travel & Subsistence General Duty,Administration
Land Registry,Land Registry,27/05/2014,Internal Solutions Group,Travel & Subsistence General Duty,Redfern Travel Ltd,Large,1013906,235.69,Travel & Subsistence General Duty,Administration
Land Registry,Land Registry,27/05/2014,Corporate Legal Services,Travel & Subsistence General Duty,Redfern Travel Ltd,Large,1013906,52.93,Travel & Subsistence General Duty,Administration
Land Registry,Land Registry,27/05/2014,Property Asset Management Group,Travel & Subsistence General Duty,Redfern Travel Ltd,Large,1013906,150.02,Travel & Subsistence General Duty,Administration
Land Registry,Land Registry,27/05/2014,Internal Audit,Travel & Subsistence General Duty,Redfern Travel Ltd,Large,1013906,16.83,Travel & Subsistence General Duty,Administration
Land Registry,Land Registry,27/05/2014,Corporate Legal Services,Travel & Subsistence General Duty,Redfern Travel Ltd,Large,1013906,52.54,Travel & Subsistence General Duty,Administration
Land Registry,Land Registry,27/05/2014,Director of Information Systems,Travel & Subsistence General Duty,Redfern Travel Ltd,Large,1013906,11.86,Travel & Subsistence General Duty,Administration
Land Registry,Land Registry,27/05/2014,Nottingham Office,Travel & Subsistence General Duty,Redfern Travel Ltd,Large,1013906,161.84,Travel & Subsistence General Duty,Administration
Land Registry,Land Registry,27/05/2014,Central Facilities Management Team,Travel & Subsistence General Duty,Redfern Travel Ltd,Large,1013906,55.77,Travel & Subsistence General Duty,Administration
Land Registry,Land Registry,27/05/2014,Nottingham Office,Travel & Subsistence General Duty,Redfern Travel Ltd,Large,1013906,102.82,Travel & Subsistence General Duty,Administration
Land Registry,Land Registry,27/05/2014,Property Asset Management Group,Travel & Subsistence General Duty,Redfern Travel Ltd,Large,1013906,1.56,Travel & Subsistence General Duty,Administration
Land Registry,Land Registry,27/05/2014,Central Facilities Management Team,Travel & Subsistence General Duty,Redfern Travel Ltd,Large,1013906,1.56,Travel & Subsistence General Duty,Administration
Land Registry,Land Registry,27/05/2014,Leicester Office,Travel & Subsistence General Duty,Redfern Travel Ltd,Large,1013906,160.51,Travel & Subsistence General Duty,Administration
Land Registry,Land Registry,27/05/2014,International Unit,Travel & Subsistence General Duty,Redfern Travel Ltd,Large,1013906,1.56,Travel & Subsistence General Duty,Administration
Land Registry,Land Registry,27/05/2014,Central Facilities Management Team,Travel & Subsistence General Duty,Redfern Travel Ltd,Large,1013906,55.08,Travel & Subsistence General Duty,Administration
Land Registry,Land Registry,27/05/2014,International Unit,Travel & Subsistence General Duty,Redfern Travel Ltd,Large,1013906,1.56,Travel & Subsistence General Duty,Administration
Land Registry,Land Registry,27/05/2014,Central Facilities Management Team,Travel & Subsistence General Duty,Redfern Travel Ltd,Large,1013906,115.05,Travel & Subsistence General Duty,Administration
Land Registry,Land Registry,27/05/2014,International Unit,Travel & Subsistence General Duty,Redfern Travel Ltd,Large,1013906,1.56,Travel & Subsistence General Duty,Administration
Land Registry,Land Registry,27/05/2014,Strategy Team,Travel & Subsistence General Duty,Redfern Travel Ltd,Large,1013906,1.56,Travel & Subsistence General Duty,Administration
Land Registry,Land Registry,27/05/2014,Product Development & Management,Travel & Subsistence General Duty,Redfern Travel Ltd,Large,1013906,140.41,Travel & Subsistence General Duty,Administration
Land Registry,Land Registry,27/05/2014,Director of Information Systems,Travel & Subsistence General Duty,Redfern Travel Ltd,Large,1013906,232.94,Travel & Subsistence General Duty,Administration
Land Registry,Land Registry,27/05/2014,Corporate Legal Services,Travel & Subsistence General Duty,Redfern Travel Ltd,Large,1013906,48.34,Travel & Subsistence General Duty,Administration
Land Registry,Land Registry,27/05/2014,Nottingham Office,Travel & Subsistence General Duty,Redfern Travel Ltd,Large,1013906,91.1,Travel & Subsistence General Duty,Administration
Land Registry,Land Registry,27/05/2014,Product Development & Management,Travel & Subsistence General Duty,Redfern Travel Ltd,Large,1013906,237.61,Travel & Subsistence General Duty,Administration
Land Registry,Land Registry,27/05/2014,Corporate Legal Services,Travel & Subsistence General Duty,Redfern Travel Ltd,Large,1013906,48.34,Travel & Subsistence General Duty,Administration
Land Registry,Land Registry,27/05/2014,Business Continuity,Travel & Subsistence General Duty,Redfern Travel Ltd,Large,1013906,184.87,Travel & Subsistence General Duty,Administration
Land Registry,Land Registry,27/05/2014,Strategy Team,Travel & Subsistence General Duty,Redfern Travel Ltd,Large,1013906,130.33,Travel & Subsistence General Duty,Administration
Land Registry,Land Registry,27/05/2014,HR,Travel & Subsistence General Duty,Redfern Travel Ltd,Large,1013906,130.33,Travel & Subsistence General Duty,Administration
Land Registry,Land Registry,27/05/2014,Business Continuity,Travel & Subsistence General Duty,Redfern Travel Ltd,Large,1013906,36.54,Travel & Subsistence General Duty,Administration
Land Registry,Land Registry,27/05/2014,Central Operations Group,Travel & Subsistence General Duty,Redfern Travel Ltd,Large,1013906,96.31,Travel & Subsistence General Duty,Administration
Land Registry,Land Registry,27/05/2014,Business Continuity,Travel & Subsistence General Duty,Redfern Travel Ltd,Large,1013906,18.2,Travel & Subsistence General Duty,Administration
Land Registry,Land Registry,27/05/2014,Internal Audit,Travel & Subsistence General Duty,Redfern Travel Ltd,Large,1013906,196.01,Travel & Subsistence General Duty,Administration
Land Registry,Land Registry,27/05/2014,Business Continuity,Travel & Subsistence General Duty,Redfern Travel Ltd,Large,1013906,147.79,Travel & Subsistence General Duty,Administration
Land Registry,Land Registry,27/05/2014,Employee & Management Support Manager,Travel & Subsistence General Duty,Redfern Travel Ltd,Large,1013906,99.77,Travel & Subsistence General Duty,Administration
Land Registry,Land Registry,27/05/2014,Property Asset Management Group,Travel & Subsistence General Duty,Redfern Travel Ltd,Large,1013906,145.63,Travel & Subsistence General Duty,Administration
Land Registry,Land Registry,27/05/2014,Director of Operations,Travel & Subsistence General Duty,Redfern Travel Ltd,Large,1013906,1.56,Travel & Subsistence General Duty,Administration
Land Registry,Land Registry,27/05/2014,HR,Travel & Subsistence General Duty,Redfern Travel Ltd,Large,1013906,161.84,Travel & Subsistence General Duty,Administration
Land Registry,Land Registry,27/05/2014,Central Operations Group,Travel & Subsistence General Duty,Redfern Travel Ltd,Large,1013906,105.93,Travel & Subsistence General Duty,Administration
Land Registry,Land Registry,27/05/2014,HR,Travel & Subsistence General Duty,Redfern Travel Ltd,Large,1013906,189.26,Travel & Subsistence General Duty,Administration
Land Registry,Land Registry,27/05/2014,Commercial Director,Travel & Subsistence General Duty,Redfern Travel Ltd,Large,1013906,99,Travel & Subsistence General Duty,Administration
Land Registry,Land Registry,27/05/2014,Business Development,Travel & Subsistence General Duty,Redfern Travel Ltd,Large,1013906,18.5,Travel & Subsistence General Duty,Administration
Land Registry,Land Registry,27/05/2014,Internal Audit,Travel & Subsistence General Duty,Redfern Travel Ltd,Large,1013906,58.91,Travel & Subsistence General Duty,Administration
Land Registry,Land Registry,27/05/2014,Marketing Services Team,Travel & Subsistence General Duty,Redfern Travel Ltd,Large,1013906,178.5,Travel & Subsistence General Duty,Administration
Land Registry,Land Registry,27/05/2014,Fylde Office,Travel & Subsistence General Duty,Redfern Travel Ltd,Large,1013906,147.81,Travel & Subsistence General Duty,Administration
Land Registry,Land Registry,27/05/2014,Projects and Programme Centre,Travel & Subsistence General Duty,Redfern Travel Ltd,Large,1013906,136.73,Travel & Subsistence General Duty,Administration
Land Registry,Land Registry,27/05/2014,HR,Travel & Subsistence General Duty,Redfern Travel Ltd,Large,1013906,139.6,Travel & Subsistence General Duty,Administration
Land Registry,Land Registry,27/05/2014,Chief Executives Office,Travel & Subsistence General Duty,Redfern Travel Ltd,Large,1013906,114.41,Travel & Subsistence General Duty,Administration
Land Registry,Land Registry,27/05/2014,HR,Travel & Subsistence General Duty,Redfern Travel Ltd,Large,1013906,127.49,Travel & Subsistence General Duty,Administration
Land Registry,Land Registry,27/05/2014,Local Lawyer Group,Travel & Subsistence General Duty,Redfern Travel Ltd,Large,1013906,101.72,Travel & Subsistence General Duty,Administration
Land Registry,Land Registry,27/05/2014,HR,Travel & Subsistence General Duty,Redfern Travel Ltd,Large,1013906,93.86,Travel & Subsistence General Duty,Administration
Land Registry,Land Registry,27/05/2014,Projects and Programme Centre,Travel & Subsistence General Duty,Redfern Travel Ltd,Large,1013906,87.54,Travel & Subsistence General Duty,Administration
Land Registry,Land Registry,27/05/2014,Director of Operations,Travel & Subsistence General Duty,Redfern Travel Ltd,Large,1013906,99.9,Travel & Subsistence General Duty,Administration
Land Registry,Land Registry,27/05/2014,Durham Office,Travel & Subsistence General Duty,Redfern Travel Ltd,Large,1013906,156.45,Travel & Subsistence General Duty,Administration
Land Registry,Land Registry,27/05/2014,Central Operations Group,Travel & Subsistence General Duty,Redfern Travel Ltd,Large,1013906,101.29,Travel & Subsistence General Duty,Administration
Land Registry,Land Registry,27/05/2014,HR,Travel & Subsistence General Duty,Redfern Travel Ltd,Large,1013906,56.27,Travel & Subsistence General Duty,Administration
Land Registry,Land Registry,27/05/2014,Central Operations Group,Travel & Subsistence General Duty,Redfern Travel Ltd,Large,1013906,71.63,Travel & Subsistence General Duty,Administration
Land Registry,Land Registry,27/05/2014,HR,Travel & Subsistence General Duty,Redfern Travel Ltd,Large,1013906,158.52,Travel & Subsistence General Duty,Administration
Land Registry,Land Registry,27/05/2014,Central Facilities Management Team,Travel & Subsistence General Duty,Redfern Travel Ltd,Large,1013906,89.87,Travel & Subsistence General Duty,Administration
Land Registry,Land Registry,27/05/2014,Fylde Office,Travel & Subsistence General Duty,Redfern Travel Ltd,Large,1013906,147.81,Travel & Subsistence General Duty,Administration
Land Registry,Land Registry,27/05/2014,Central Operations Group,Travel & Subsistence General Duty,Redfern Travel Ltd,Large,1013906,382.56,Travel & Subsistence General Duty,Administration
Land Registry,Land Registry,27/05/2014,Central Facilities Management Team,Travel & Subsistence General Duty,Redfern Travel Ltd,Large,1013906,83.66,Travel & Subsistence General Duty,Administration
Land Registry,Land Registry,27/05/2014,Product Development & Management,Travel & Subsistence General Duty,Redfern Travel Ltd,Large,1013906,34.29,Travel & Subsistence General Duty,Administration
Land Registry,Land Registry,27/05/2014,Projects and Programme Centre,Travel & Subsistence General Duty,Redfern Travel Ltd,Large,1013906,127.79,Travel & Subsistence General Duty,Administration
Land Registry,Land Registry,27/05/2014,Business Development,Travel & Subsistence General Duty,Redfern Travel Ltd,Large,1013906,143.68,Travel & Subsistence General Duty,Administration
Land Registry,Land Registry,27/05/2014,Corp Procurement,Travel & Subsistence General Duty,Redfern Travel Ltd,Large,1013906,107.62,Travel & Subsistence General Duty,Administration
Land Registry,Land Registry,27/05/2014,Wales Office,Travel & Subsistence General Duty,Redfern Travel Ltd,Large,1013906,127.31,Travel & Subsistence General Duty,Administration
Land Registry,Land Registry,27/05/2014,Central Facilities Management Team,Travel & Subsistence General Duty,Redfern Travel Ltd,Large,1013906,377.77,Travel & Subsistence General Duty,Administration
Land Registry,Land Registry,27/05/2014,Finance Group,Travel & Subsistence General Duty,Redfern Travel Ltd,Large,1013906,80.25,Travel & Subsistence General Duty,Administration
Land Registry,Land Registry,27/05/2014,Chief Executives Office,Travel & Subsistence General Duty,Redfern Travel Ltd,Large,1013906,88.83,Travel & Subsistence General Duty,Administration
Land Registry,Land Registry,27/05/2014,HR,Travel & Subsistence General Duty,Redfern Travel Ltd,Large,1013906,80.25,Travel & Subsistence General Duty,Administration
Land Registry,Land Registry,27/05/2014,Business Development,Travel & Subsistence General Duty,Redfern Travel Ltd,Large,1013906,63.66,Travel & Subsistence General Duty,Administration
Land Registry,Land Registry,27/05/2014,HR,Travel & Subsistence General Duty,Redfern Travel Ltd,Large,1013906,109.75,Travel & Subsistence General Duty,Administration
Land Registry,Land Registry,27/05/2014,Business Development,Travel & Subsistence General Duty,Redfern Travel Ltd,Large,1013906,40.44,Travel & Subsistence General Duty,Administration
Land Registry,Land Registry,27/05/2014,Corp Procurement,Travel & Subsistence General Duty,Redfern Travel Ltd,Large,1013906,107.62,Travel & Subsistence General Duty,Administration
Land Registry,Land Registry,27/05/2014,Business Continuity,Travel & Subsistence General Duty,Redfern Travel Ltd,Large,1013906,77.01,Travel & Subsistence General Duty,Administration
Land Registry,Land Registry,27/05/2014,Central Operations Group,Travel & Subsistence General Duty,Redfern Travel Ltd,Large,1013906,90.85,Travel & Subsistence General Duty,Administration
Land Registry,Land Registry,27/05/2014,HR,Travel & Subsistence General Duty,Redfern Travel Ltd,Large,1013906,81.04,Travel & Subsistence General Duty,Administration
Land Registry,Land Registry,27/05/2014,Director of Information Systems,Travel & Subsistence General Duty,Redfern Travel Ltd,Large,1013906,500.89,Travel & Subsistence General Duty,Administration
Land Registry,Land Registry,27/05/2014,Product Development & Management,Travel & Subsistence General Duty,Redfern Travel Ltd,Large,1013906,58.49,Travel & Subsistence General Duty,Administration
Land Registry,Land Registry,27/05/2014,Employee & Management Support Manager,Travel & Subsistence General Duty,Redfern Travel Ltd,Large,1013906,71.98,Travel & Subsistence General Duty,Administration
Land Registry,Land Registry,27/05/2014,Internal Solutions Group,Travel & Subsistence General Duty,Redfern Travel Ltd,Large,1013906,285.98,Travel & Subsistence General Duty,Administration
Land Registry,Land Registry,27/05/2014,Property Asset Management Group,Travel & Subsistence General Duty,Redfern Travel Ltd,Large,1013906,123.29,Travel & Subsistence General Duty,Administration
Land Registry,Land Registry,27/05/2014,Corp Procurement,Travel & Subsistence General Duty,Redfern Travel Ltd,Large,1013906,81.04,Travel & Subsistence General Duty,Administration
Land Registry,Land Registry,27/05/2014,HR,Travel & Subsistence General Duty,Redfern Travel Ltd,Large,1013906,82.04,Travel & Subsistence General Duty,Administration
Land Registry,Land Registry,27/05/2014,Central Facilities Management Team,Travel & Subsistence General Duty,Redfern Travel Ltd,Large,1013906,49.85,Travel & Subsistence General Duty,Administration
Land Registry,Land Registry,27/05/2014,Central Operations Group,Travel & Subsistence General Duty,Redfern Travel Ltd,Large,1013906,104.13,Travel & Subsistence General Duty,Administration
Land Registry,Land Registry,27/05/2014,Central Facilities Management Team,Travel & Subsistence General Duty,Redfern Travel Ltd,Large,1013906,51.86,Travel & Subsistence General Duty,Administration
Land Registry,Land Registry,27/05/2014,International Unit,Travel & Subsistence General Duty,Redfern Travel Ltd,Large,1013906,146.16,Travel & Subsistence General Duty,Administration
Land Registry,Land Registry,27/05/2014,Business Development,Travel & Subsistence General Duty,Redfern Travel Ltd,Large,1013906,18.78,Travel & Subsistence General Duty,Administration
Land Registry,Land Registry,27/05/2014,HR,Travel & Subsistence General Duty,Redfern Travel Ltd,Large,1013906,98.02,Travel & Subsistence General Duty,Administration
Land Registry,Land Registry,27/05/2014,Business Development,Travel & Subsistence General Duty,Redfern Travel Ltd,Large,1013906,227.11,Travel & Subsistence General Duty,Administration
Land Registry,Land Registry,27/05/2014,International Unit,Travel & Subsistence General Duty,Redfern Travel Ltd,Large,1013906,157.62,Travel & Subsistence General Duty,Administration
Land Registry,Land Registry,27/05/2014,Director of Information Systems,Travel & Subsistence General Duty,Redfern Travel Ltd,Large,1013906,31.53,Travel & Subsistence General Duty,Administration
Land Registry,Land Registry,27/05/2014,Business Development,Travel & Subsistence General Duty,Redfern Travel Ltd,Large,1013906,95.08,Travel & Subsistence General Duty,Administration
Land Registry,Land Registry,27/05/2014,Plymouth Office,Travel & Subsistence General Duty,Redfern Travel Ltd,Large,1013906,65.33,Travel & Subsistence General Duty,Administration
Land Registry,Land Registry,27/05/2014,Property Asset Management Group,Travel & Subsistence General Duty,Redfern Travel Ltd,Large,1013906,207.59,Travel & Subsistence General Duty,Administration
Land Registry,Land Registry,27/05/2014,Central Operations Group,Travel & Subsistence General Duty,Redfern Travel Ltd,Large,1013906,59.86,Travel & Subsistence General Duty,Administration
Land Registry,Land Registry,27/05/2014,National Lawyer Training,Travel & Subsistence General Duty,Redfern Travel Ltd,Large,1013906,43.88,Travel & Subsistence General Duty,Administration
Land Registry,Land Registry,27/05/2014,Fylde Office,Travel & Subsistence General Duty,Redfern Travel Ltd,Large,1013906,147.81,Travel & Subsistence General Duty,Administration
